Workbook

Sheet Main
AD2: COMPLETE
G3: =J3 -> Exergy Investment | H3: =SUM(K4:K52) -> -1567674.485 | J3: Exergy Investment | L3: Energy Invest. | M3: Exergy Use | O3: Exergy Loss | AD3: WCS LP/MP | AE3: -539968.6437 | AF3: -1456043.379
G4: =M3 -> Exergy Use | H4: =SUM(N4:N52) -> 712738.6287 | J4: C-LP/MP | K4: -602486.1813 | L4: -1255179.544 | M4: 2K Loops | N4: 574295.3391 | O4: Adsobers | P4: 2776.190005 | AD4: WCS MP/HP | AE4: -810352.8163
A5: Reference warm temperature for exergy | D5: 300 | G5: =O3 -> Exergy Loss | H5: =SUM(P4:P52) -> 854935.8561 | J5: C-MP/HP | K5: -866541.8722 | L5: -1805295.567 | M5: TS | N5: 79925.64318 | O5: ORS | P5: 15474.28884 | AD5: WCS VLP/LP | AE5: -94751.29675
A6: Reference cold temperature for exergy | D6: 4.5 | G6: Exergy Balance | H6: =H3+H4+H5 -> -1.28056854e-09 | J6: C-VLP/LP | K6: -87675.80902 | L6: -182657.9355 | M6: RF Coupler | N6: 58517.64651 | O6: Dewar w Heat Loss | P6: 16848.08934 | AD6: Cold compressors | AE6: -10970.62225
G7: Relative difference | H7: =1-ABS((H5+H4)/H3) -> 0 | J7: Electricity CC-100 | K7: -2361.469293 | L7: -2361.469293 | O7: WCS Bypass | P7: 0 | AD7: Nitrogen
A8: Specific W/W | B8: =(_TRef-_TRefCold)/_TRefCold -> 65.66666667 | J8: Electricity CC-101 | K8: -4224.988774 | L8: -4224.988774 | O8: VLV-HP/LP | P8: 54366.3537
A9: Carnot efficiency | B9: =1/_WpW -> 0.0152284264 | J9: Electricity CC-102 | K9: -4384.164181 | L9: -4384.164181 | O9: JT Valve | P9: 6477.251105 | AD9: Comp bypass | AE9: 50841.14921 | AF9: 1456043.379
O10: HX-01 | P10: 27456.97024 | AD10: ORS | AE10: 14470.9103
D11: Group all elements | O11: HX-02 | P11: 5654.22394 | AD11: Piping | AE11: 15786.2082
A12: Heat exchanger | D12: NO | O12: HX-03 | P12: 32657.41636 | AD12: Adsorbers | AE12: 3032.463305
A13: Compressor | D13: NO | O13: HX-04 | P13: 9419.232097 | AD13: Cold compressors | AE13: 88290.46434
A14: Valves | D14: NO | G14: ="Useful power @ " & _TRefCold&" K" -> Useful power @ 4.5 K | O14: HX-05 | P14: 880.0264866 | AD14: HX-01 | AE14: 42895.28971
A15: Mixer | D15: YES | G15: =_ExUse/_WpW -> 10853.88775 | O15: HX-06 | P15: 9520.510672 | AD15: HX-02 | AE15: 9169.020122
A16: Piping | D16: YES | G16: Ideal cycle efficiency | H16: Real cycle efficiency | O16: HX-07 | P16: 1008.60621 | AD16: HX-03 | AE16: 30415.29884
A17: Turbines | D17: NO | G17: =-_ExInv/_UsefulPower -> 144.4343742 | H17: =-SUM(L4:L52)/_UsefulPower -> 299.8099617 | O17: HX-08 | P17: 19572.09837 | AD17: HX-04 | AE17: 8614.470167
A18: Add bearing losses to turbine | D18: NO | G18: Ideal Carnot efficiency | H18: Real Carnot efficiency | O18: HX-09 | P18: 13824.34645 | AD18: HX-05 | AE18: 972.9775071
A19: Add inlet Dp to turbine | D19: NO | G19: =-_ExUse/_ExInv -> 0.4546470812 | H19: =_WpW/_Eff_WW_Real -> 0.2190276344 | O19: HX-10 | P19: 15662.96947 | AD19: HX-06 | AE19: 11304.53974
A20: Group bearing & inlet Dp if separated | D20: NO | O20: HX-11 | P20: 18310.29519 | AD20: HX-07 | AE20: 2605.85726
O21: HX-12 | P21: 6402.944896 | AD21: HX-08 | AE21: 25647.1912
A22: Root Path | B22: D:\USERS\GOLO.ZICK\DESKTOP\ESS\FINAL\ | O22: HX-13 | P22: 1812.742174 | AD22: HX-09 | AE22: 10271.09321
A23: Hysys case | B23: ST!SC_MML__HX-VLP.HSC | O23: HX-VLP | P23: 68596.12865 | AD23: HX-10 | AE23: 7961.952594
O24: Bearing Feed gas | P24: 51396.39101 | AD24: HX-11 | AE24: 13577.75774
O25: Turbine bearing losses | P25: 10310.58226 | AD25: HX-12 | AE25: 6399.024735
O26: Turbine inlet Dp losses | P26: 11829.71598 | AD26: HX-13 | AE26: 1810.286746
O27: T-1 | P27: 33019.83776 | AD27: T-1 | AE27: 37948.68611
O28: T-2 | P28: 37375.98757 | AD28: T-2 | AE28: 27540.22172
O29: T-3 | P29: 61244.28327 | AD29: T-3 | AE29: 63336.21667
A30: Stream Summary units | G30: Total # of turbines | O30: T-4 | P30: 91097.04066 | AD30: T-4 | AE30: 80371.27764
A31: Temperature | C31: K | G31: =COUNTA(Turbines!A2:A1048576) -> 6 | O31: T-5 | P31: 79863.16004 | AD31: T-5 | AE31: 77626.72257
A32: Pressure | C32: bar | G32: Total turbine power | O32: T-6 | P32: 45200.97382 | AD32: T-6 | AE32: 45200.97382
A33: Mass Flow | C33: g/s | G33: =SUM(Turbines!B2:B1048576) -> 69531.91047 | O33: VLV-Dewar | P33: 464.5580341 | AD33: Expander gas losses | AE33: 32799.96191
A34: Mass Enthalpy | C34: kJ/kg | G34: Total UA in LNG | O34: VLV-HXVLP | P34: 869.9425183 | AD34: Expanders upstream valves | AE34: 10246.83646
A35: Mass Entropy | C35: kJ/kg-K | G35: =SUM(LNG!B2:B1048576) -> 558968.509 | O35: Mixer | P35: 1150.710785 | AD35: JT valve | AE35: 6477.251105
A36: Mass Heat capacity | C36: kJ/kg-K | O36: Piping | P36: 16101.52384 | AD36: Mixer & Valves | AE36: 467.6017582
A37: Mass Density | C37: kg/m3 | O37: CC-100 | P37: 32645.95445 | AD37: Subcooler | AE37: 10129.90752
A38: Molar Flow | C38: Nm3/h* | O38: CC-101 | P38: 32765.95423 | AD38: LHe Dewar heat inleaks | AE38: 6718.181818
A39: Molar Enthalpy | C39: J/mol* | O39: CC-102 | P39: 22878.55566 | AD39: 2K Loop | AE39: 574295.3391
A40: Molar Entropy | C40: kJ/kgmole-C | AD40: RF Coupler | AE40: 58517.64651
A41: Molar Heat capacity | C41: kJ/kgmole-C | AD41: Thermal Shields | AE41: 80300.5994
A42: Molar Density | C42: kgmole/m3
A43: Volume Flow | C43: m3/h
A44: Dynamic Viscosity | C44: Pa-s
A45: Kinematic viscosity | C45: m²/s*
A46: Thermal conductivity | C46: W/m-K

Sheet ExergyBalance
Q1: Turbine Bearing stream | R1: Turbine Bearings | S1: Turbine bearing +losses return stream | T1: From Turbines 2
A2: Special Equipments | E2: Useful exergy destruction | H2: Heat Exchanger | J2: Compressors | Q2: Turbines | U2: Valves | W2: Mixer | Y2: Piping | AA2: Additional circuits
A3: Name | B3: ID | C3: Type | D3: Group | E3: Name | F3: ID | G3: Group | H3: Name | I3: ID | J3: Name | K3: ID | L3: Exergetic efficiency | M3: Cooler | N3: Electrical energy | O3: In Coldbox | P3: Group | Q3: Name | R3: ID | S3: Gas loss stream | T3: Inlet valve | U3: Name | V3: ID | W3: Name | X3: ID | Y3: Name | Z3: ID | AA3: Name | AB3: ID IN | AC3: ID OUT | AD3: Production efficiency
A4: Adsobers | B4: Ads80K | C4: =INDEX(_cT_Obj_Type,MATCH(B4,_cT_Obj,0)) -> heaterop | D4: 1 | F4: 2K Loops | I4: HX-01 | K4: CC-100 | N4: Q-CC100 | O4: YES | R4: T-1 | S4: T1_Loss | T4: VLV-T1 | V4: VLV-Dewar | X4: MIX-100 | Z4: PIPE-HP | AA4: Nitrogen | AD4: 8
B5: ADS20K | C5: heaterop | D5: 1 | F5: TS | I5: HX-02 | K5: CC-101 | N5: Q-CC101 | O5: YES | R5: T-2 | S5: T2_Loss | T5: VLV-T2 | V5: VLV-HXVLP | X5: MIX-102 | Z5: PIPE-LP
A6: ORS | B6: ORS | C6: coolerop | F6: RF Coupler | I6: HX-03 | K6: CC-102 | N6: Q-CC102 | O6: YES | R6: T-3 | S6: T3_Loss | T6: VLV-T3 | X6: MIX-102-2 | Z6: PIPE-MP
A7: Dewar w Heat Loss | B7: Subcooler | C7: coolerop | D7: 2 | I7: HX-04 | K7: C-LP/MP | L7: 0.48 | M7: MP Cooler | R7: T-4 | S7: T4_Loss | T7: VLV-T4 | X7: MIX-103-2-2 | Z7: PIPE-VLP
B8: Dewar | C8: tankop | D8: 2 | I8: HX-05 | K8: C-MP/HP | L8: 0.48 | M8: HP Cooler | R8: T-5 | S8: T5_Loss | T8: VLV-T5 | X8: MIX-103-2-3
A9: WCS Bypass | B9: VLV-LP/VLP | C9: valveop | I9: HX-06 | K9: C-VLP/LP | L9: 0.48 | M9: E-104 | R9: T-6 | S9: T6_Loss | T9: VLV-T6 | X9: MIX-103-8
B10: VLV-HP/LP | C10: valveop | I10: HX-07 | X10: MIX-103-8-2
A11: JT Valve | B11: VLV-JT | C11: valveop | I11: HX-08 | X11: MIX-105
I12: HX-09 | X12: MIX-106
I13: HX-10 | X13: MIX-107
I14: HX-11 | X14: MIX-108
I15: HX-12
I16: HX-13
I17: HX-VLP
C36: =INDEX(_cT_Obj_Type,MATCH(B36,_cT_Obj,0)) -> 
C68: =INDEX(_cT_Obj_Type,MATCH(B68,_cT_Obj,0)) -> 
C100: =INDEX(_cT_Obj_Type,MATCH(B100,_cT_Obj,0)) -> 

Sheet TS Setup
A1: Trace isobars for | C1: Linewidth | S1: 4 | AI1: TURBINES | AJ1: Linewidth | BY1: Linewidth | BZ1: 1 | CB1: 1 | CD1: 1 | CF1: 1 | CH1: 1 | CJ1: 1.5 | CN1: 1054.768786 | CP1: 533.3914079 | CR1: 374.7276711 | CT1: 266.6615484 | CV1: 123.8085799 | CX1: 63.64706316 | CZ1: 37.91169592 | DB1: 26.384842 | DD1: 20.82722008 | DF1: 17.84471465
A2: 19.5 | C2: Linetype | P2: - . - . - | S2: -------- | AE2: - . . - . . | AJ2: Linetype | AK2: - . . - . . | AO2: - . . - . . | AS2: - . . - . . | AW2: - . . - . . | BA2: - . . - . . | BE2: - . . - . . | BY2: Linetype | BZ2: - - - - - | CB2: - - - - - | CD2: - - - - - | CF2: - - - - - | CH2: - - - - - | CJ2: - - - - - | CN2: 200 | CO2: 19419.26016 | CP2: 100 | CQ2: 15803.20984 | CR2: 69.99999999 | CS2: 13915.58341 | CT2: 50 | CU2: 12096.32475 | CV2: 25 | CW2: 8113.799753 | CX2: 15.00000005 | CY2: 5047.111444 | CZ2: 10.000001 | DA2: 2979.167797 | DB2: 7.000000377 | DC2: 1620.715728 | DD2: 5.00000003 | DE2: 693.2195621 | DF2: 3.500034246 | DG2: -2.67469734
A3: 5 | C3: Linecolor | AJ3: Linecolor | BY3: Linecolor | CN3: 200.1557978 | CO3: 19529.51 | CP3: 100.1341662 | CQ3: 15917.29018 | CR3: 70.10854278 | CS3: 14032.76126 | CT3: 50.07676257 | CU3: 12216.08396 | CV3: 25.03035816 | CW3: 8238.47862 | CX3: 15.09694881 | CY3: 5179.023453 | CZ3: 10.2129484 | DA3: 3136.654889 | DB3: 7.339829903 | DC3: 1821.830119 | DD3: 5.491243145 | DE3: 957.0380846 | DF3: 4.198592559 | DG3: 339.6480223
A4: 1.17 | C4: Name | D4: HP | G4: LP | J4: VLP | M4: MP | P4: Client | S4: Thermal Shields | V4: Last HX | Y4: T1->T2 | AB4: T4->T5 | AE4: Cold Compressors | AJ4: Name | BY4: Name | BZ4: =OFFSET(INDIRECT("_Isobar_p"),1,0) & " barA" -> 19.5 barA | CB4: =OFFSET(INDIRECT("_Isobar_p"),2,0) & " barA" -> 5 barA | CD4: =OFFSET(INDIRECT("_Isobar_p"),3,0) & " barA" -> 1.17 barA | CF4: =OFFSET(INDIRECT("_Isobar_p"),4,0) & " barA" -> 0.027 barA | CH4: =OFFSET(INDIRECT("_Isobar_p"),5,0) & " barA" -> 0.49 barA | CJ4: LV equilibrium | CN4: 200.3116751 | CO4: 19645.51661 | CP4: 100.2684902 | CQ4: 16037.12306 | CR4: 70.21694664 | CS4: 14155.33752 | CT4: 50.1524272 | CU4: 12341.20375 | CV4: 25.05357398 | CW4: 8368.545383 | CX4: 15.18140657 | CY4: 5317.417722 | CZ4: 10.41178443 | DA4: 3297.408935 | DB4: 7.655221847 | DC4: 2019.623355 | DD4: 5.931640387 | DE4: 1204.327427 | DF4: 4.773245229 | DG4: 643.9132807
A5: 0.027 | C5: Streams | D5: 0HPa | E5: =INDEX(_TSData,MATCH(D5,_cT_Streams,0),1) -> 300 | F5: =INDEX(_TSData,MATCH(D5,_cT_Streams,0),2) -> 23450.90075 | G5: 0LPa | H5: =INDEX(_TSData,MATCH(G5,_cT_Streams,0),1) -> 297.016791 | I5: =INDEX(_TSData,MATCH(G5,_cT_Streams,0),2) -> 29451.13734 | J5: VLPa | K5: =INDEX(_TSData,MATCH(J5,_cT_Streams,0),1) -> 18.10338179 | L5: =INDEX(_TSData,MATCH(J5,_cT_Streams,0),2) -> 16547.28886 | M5: 0MPc | N5: =INDEX(_TSData,MATCH(M5,_cT_Streams,0),1) -> 297.0167906 | O5: =INDEX(_TSData,MATCH(M5,_cT_Streams,0),2) -> 26220.46518 | P5: Supply 2K | Q5: =INDEX(_TSData,MATCH(P5,_cT_Streams,0),1) -> 4.5 | R5: =INDEX(_TSData,MATCH(P5,_cT_Streams,0),2) -> 1655.630808 | S5: To TS | T5: =INDEX(_TSData,MATCH(S5,_cT_Streams,0),1) -> 35.44808292 | U5: =INDEX(_TSData,MATCH(S5,_cT_Streams,0),2) -> 12261.47619 | V5: 12MPb | W5: =INDEX(_TSData,MATCH(V5,_cT_Streams,0),1) -> 5.434873495 | X5: =INDEX(_TSData,MATCH(V5,_cT_Streams,0),2) -> 3107.495431 | Y5: T1Lb | Z5: =INDEX(_TSData,MATCH(Y5,_cT_Streams,0),1) -> 135.2348406 | AA5: =INDEX(_TSData,MATCH(Y5,_cT_Streams,0),2) -> 20345.52143 | AB5: T4Lb | AC5: =INDEX(_TSData,MATCH(AB5,_cT_Streams,0),1) -> 14.47509801 | AD5: =INDEX(_TSData,MATCH(AB5,_cT_Streams,0),2) -> 10387.00126 | AE5: 2K Return | AF5: =INDEX(_TSData,MATCH(AE5,_cT_Streams,0),1) -> 3.9 | AG5: =INDEX(_TSData,MATCH(AE5,_cT_Streams,0),2) -> 14573.43542 | AJ5: ID | AK5: T-1 | AO5: T-2 | AS5: T-3 | AW5: T-4 | BA5: T-5 | BE5: T-6 | BZ5: 300.0002037 | CA5: 23476.28129 | CB5: 300.0002006 | CC5: 26301.22632 | CD5: 300.0001918 | CE5: 29317.4882 | CF5: 300.0000936 | CG5: 37145.51355 | CH5: 300.0002043 | CI5: 31125.15392 | CJ5: 3.5 | CK5: 886.95161 | CN5: 200.4676311 | CO5: 19767.93944 | CP5: 100.4029785 | CQ5: 16163.3672 | CR5: 70.32522617 | CS5: 14284.31803 | CT5: 50.22700557 | CU5: 12473.30455 | CV5: 25.06932616 | CW5: 8505.369249 | CX5: 15.25229462 | CY5: 5458.589498 | CZ5: 10.59572944 | DA5: 3458.08934 | DB5: 7.948042101 | DC5: 2213.663024 | DD5: 6.330682895 | DE5: 1435.829338 | DF5: 5.274402487 | DG5: 924.5790436
A6: 0.49 | D6: 1HPa | E6: 156.4331631 | F6: 20074.43288 | G6: 1LPa | H6: 150.7073901 | I6: 25877.32776 | J6: 0VLPA | K6: 290 | L6: 31191.62884 | M6: 1MPa | N6: 150.7073735 | O6: 22676.94456 | P6: 2K Return | Q6: 3.9 | R6: 14573.43542 | S6: From TS | T6: 50.55191708 | U6: 14232.23678 | V6: 13MPa | W6: 4.485 | X6: 1640.182545 | Y6: T2Ha | Z6: 63.564069 | AA6: 16411.93636 | AB6: T5Ha | AC6: 12.15013411 | AD6: 9371.621705 | AE6: CC1 | AF6: 6.962859888 | AG6: 15303.28014 | AJ6: Streams | AK6: 1HPa | AL6: =INDEX(_TSData,MATCH(AK6,_cT_Streams,0),1) -> 156.4331631 | AM6: =INDEX(_TSData,MATCH(AK6,_cT_Streams,0),2) -> 20074.43288 | AO6: T2Ha | AP6: =INDEX(_TSData,MATCH(AO6,_cT_Streams,0),1) -> 63.564069 | AQ6: =INDEX(_TSData,MATCH(AO6,_cT_Streams,0),2) -> 16411.93636 | AS6: T3Hc | AT6: =INDEX(_TSData,MATCH(AS6,_cT_Streams,0),1) -> 50.55191708 | AU6: =INDEX(_TSData,MATCH(AS6,_cT_Streams,0),2) -> 14232.07921 | AW6: 8HPa | AX6: =INDEX(_TSData,MATCH(AW6,_cT_Streams,0),1) -> 21.46621544 | AY6: =INDEX(_TSData,MATCH(AW6,_cT_Streams,0),2) -> 9410.660254 | BA6: T5Ha | BB6: =INDEX(_TSData,MATCH(BA6,_cT_Streams,0),1) -> 12.15013411 | BC6: =INDEX(_TSData,MATCH(BA6,_cT_Streams,0),2) -> 9371.621705 | BE6: 12HPa | BF6: =INDEX(_TSData,MATCH(BE6,_cT_Streams,0),1) -> 6.98888493 | BG6: =INDEX(_TSData,MATCH(BE6,_cT_Streams,0),2) -> 2453.432732 | BJ6: =INDEX(_TSData,MATCH(BI6,_cT_Streams,0),1) ->  | BK6: =INDEX(_TSData,MATCH(BI6,_cT_Streams,0),2) ->  | BN6: =INDEX(_TSData,MATCH(BM6,_cT_Streams,0),1) ->  | BO6: =INDEX(_TSData,MATCH(BM6,_cT_Streams,0),2) ->  | BR6: =INDEX(_TSData,MATCH(BQ6,_cT_Streams,0),1) ->  | BS6: =INDEX(_TSData,MATCH(BQ6,_cT_Streams,0),2) ->  | BV6: =INDEX(_TSData,MATCH(BU6,_cT_Streams,0),1) ->  | BW6: =INDEX(_TSData,MATCH(BU6,_cT_Streams,0),2) ->  | BZ6: 237.1774726 | CA6: 22256.39523 | CB6: 231.3031806 | CC6: 24950.94348 | CD6: 224.784621 | CE6: 27818.71604 | CF6: 237.2762752 | CG6: 35927.55449 | CH6: 220.8040443 | CI6: 29533.59573 | CJ6: 3.677894743 | CK6: 1055.311717 | CN6: 200.6236653 | CO6: 19897.5577 | CP6: 100.537638 | CQ6: 16296.80123 | CR6: 70.43339687 | CS6: 14420.48149 | CT6: 50.30051186 | CU6: 12612.23586 | CV6: 25.0772759 | CW6: 8647.176266 | CX6: 15.30841516 | CY6: 5604.040875 | CZ6: 10.76369984 | DA6: 3621.397784 | DB6: 8.219343822 | DC6: 2405.908807 | DD6: 6.694605192 | DE6: 1663.443399 | DF6: 5.72073999 | DG6: 1180.119384
D7: 2HPa | E7: 135.2348406 | F7: 19319.41661 | G7: 2LPa | H7: 133.895983 | I7: 25255.01715 | M7: 2MPa | N7: 133.8959707 | O7: 22054.41694 | AE7: CC2 | AF7: 12.43661247 | AG7: 16035.80762 | AK7: T1Ha | AL7: 156.4331631 | AM7: 20074.43288 | AO7: T2Hb | AP7: 63.56974541 | AQ7: 16439.05612 | AS7: T3La | AT7: 34.93937886 | AU7: 15001.74727 | AW7: 8HPb | AX7: 22.10126105 | AY7: 9584.253304 | BA7: T5Hb | BB7: 12.11841955 | BC7: 9433.213543 | BE7: 12HPb | BF7: 7.001213938 | BG7: 2468.63053 | BZ7: 187.5240536 | CA7: 21036.5152 | CB7: 178.340883 | CC7: 23600.64518 | CD7: 168.4159651 | CE7: 26319.56397 | CF7: 187.6668519 | CG7: 34709.59883 | CH7: 162.5150476 | CI7: 27942.0301 | CJ7: 3.855789486 | CK7: 1229.295768 | CN7: 200.7797769 | CO7: 20035.30142 | CP7: 100.6724759 | CQ7: 16438.35473 | CR7: 70.54147518 | CS7: 14564.7575 | CT7: 50.37296277 | CU7: 12759.25551 | CV7: 25.07706715 | CW7: 8797.118676 | CX7: 15.34843963 | CY7: 5756.334915 | CZ7: 10.91426158 | DA7: 3787.363963 | DB7: 8.469458322 | DC7: 2597.044144 | DD7: 7.027439602 | DE7: 1880.086889 | DF7: 6.12257078 | DG7: 1427.685721
A8: Tmin | D8: 3HPa | E8: 63.564069 | F8: 15374.56809 | G8: 3LPa | H8: 60.54498186 | I8: 21080.51202 | M8: 3MPa | N8: 60.54497285 | O8: 17916.88762 | AE8: VLPA | AF8: 18.10338179 | AG8: 16547.28886 | AK8: T1Hb | AL8: 156.4423629 | AM8: 20090.65219 | AO8: T2La | AP8: 50.04642342 | AQ8: 16913.90763 | AS8: T3Lb | AT8: 34.93937886 | AU8: 15001.74727 | AW8: T4Ha | AX8: 22.10094451 | AY8: 9589.626799 | BA8: T5La | BB8: 7.831011114 | BC8: 10164.33411 | BE8: 12MPa | BF8: 5.434873495 | BG8: 3107.495431 | BZ8: 148.2887681 | CA8: 19816.65317 | CB8: 137.5133222 | CC8: 22250.3517 | CD8: 126.1892506 | CE8: 24820.58115 | CF8: 148.4296391 | CG8: 33491.63983 | CH8: 119.612918 | CI8: 26350.38791 | CJ8: 4.033684229 | CK8: 1409.637587 | CN8: 200.9359654 | CO8: 20182.2931 | CP8: 100.8074993 | CQ8: 16589.14985 | CR8: 70.64947853 | CS8: 14718.26828 | CT8: 50.44437791 | CU8: 12915.4861 | CV8: 25.06832858 | CW8: 8956.258588 | CX8: 15.37089566 | CY8: 5915.308963 | CZ8: 11.04553431 | DA8: 3956.736951 | DB8: 8.698034732 | DC8: 2790.29255 | DD8: 7.331672557 | DE8: 2094.923206 | DF8: 6.48629901 | DG8: 1663.760001
A9: 3.5 | D9: 4HPa | E9: 50.53297062 | F9: 14160.82654 | G9: 4LPa | H9: 50.04642342 | I9: 20079.43623 | M9: 4MPa | N9: 50.04655954 | O9: 16913.92144 | AK9: T1La | AL9: 135.2348406 | AM9: 20345.52143 | AO9: T2Lb | AP9: 50.04642342 | AQ9: 16913.90763 | AW9: T4Hb | AX9: 22.09484073 | AY9: 9606.296022 | BA9: T5Lb | BB9: 7.831011114 | BC9: 10164.33411 | BZ9: 117.2967434 | CA9: 18596.78517 | CB9: 106.0448199 | CC9: 20900.07378 | CD9: 94.55377021 | CE9: 23321.5903 | CF9: 117.3950814 | CG9: 32273.63337 | CH9: 88.04458327 | CI9: 24759.10712 | CJ9: 4.211578971 | CK9: 1597.866868 | CN9: 201.09223 | CO9: 20339.90494 | CP9: 100.9427158 | CQ9: 16750.55856 | CR9: 70.7574254 | CS9: 14882.38583 | CT9: 50.51477988 | CU9: 13082.29992 | CV9: 25.05067634 | CW9: 9124.81899 | CX9: 15.37414447 | CY9: 6081.255411 | CZ9: 11.15518537 | DA9: 4130.699554 | DB9: 8.904006382 | DC9: 2981.123728 | DD9: 7.608465727 | DE9: 2307.457157 | DF9: 6.815874951 | DG9: 1894.050413
A10: Tmax | D10: 5HPa | E10: 50.53857018 | F10: 14173.35081 | G10: 5LPa | H10: 50.04599682 | I10: 20079.3919 | M10: 5MPa | N10: 50.04599191 | O10: 16905.80409 | AK10: T1Lb | AL10: 135.2348406 | AM10: 20345.52143 | AO10: 4MPb | AP10: 50.04649523 | AQ10: 16913.91472 | AW10: T4La | AX10: 14.47509801 | AY10: 10387.00126 | BA10: 11LPb | BB10: 7.831011114 | BC10: 10164.32272 | BZ10: 92.8296075 | CA10: 17376.85677 | CB10: 81.79500953 | CC10: 19549.76644 | CD10: 70.85549364 | CE10: 21822.61627 | CF10: 92.85240521 | CG10: 31055.79022 | CH10: 64.80547797 | CI10: 23167.39368 | CJ10: 4.389473714 | CK10: 1796.705597 | CN10: 201.2485701 | CO10: 20509.83891 | CP10: 101.0781332 | CQ10: 16924.28269 | CR10: 70.8653353 | CS10: 15058.81205 | CT10: 50.58419443 | CU10: 13261.39905 | CV10: 25.02371817 | CW10: 9305.179921 | CX10: 15.35626301 | CY10: 6256.277664 | CZ10: 11.24026713 | DA10: 4310.218312 | DB10: 9.085464031 | DC10: 3175.783807 | DD10: 7.857779705 | DE10: 2519.696417 | DF10: 7.113389439 | DG10: 2122.744549
A11: 300 | D11: 6HPa | E11: 35.44808292 | F11: 12261.47619 | G11: 6LPa | H11: 35.05168599 | I11: 18186.0794 | M11: 6MPa | N11: 35.05168687 | O11: 15026.77588 | AW11: T4Lb | AX11: 14.47509801 | AY11: 10387.00126 | BZ11: 73.53221354 | CA11: 16156.93939 | CB11: 63.11609324 | CC11: 18199.47548 | CD11: 53.10428053 | CE11: 20323.51975 | CF11: 73.43976137 | CG11: 29837.87848 | CH11: 47.70577571 | CI11: 21575.78294 | CJ11: 4.567368457 | CK11: 2010.937133 | CN11: 201.4049848 | CO11: 20694.24179 | CP11: 101.2137595 | CQ11: 17112.46894 | CR11: 70.97322888 | CS11: 15249.6937 | CT11: 50.65265065 | CU11: 13454.93042 | CV11: 24.98705905 | CW11: 9500.018573 | CX11: 15.31521287 | CY11: 6442.506591 | CZ11: 11.29714967 | DA11: 4495.024604 | DB11: 9.239566051 | DC11: 3374.012575 | DD11: 8.078414354 | DE11: 2733.881965 | DF11: 7.379251152 | DG11: 2346.191991
D12: 7HPa | E12: 35.29625049 | F12: 12240.04769 | G12: 7LPc | M12: 7MPa | BZ12: 58.33240597 | CA12: 14937.05018 | CB12: 48.73741393 | CC12: 16849.18446 | CD12: 39.81448478 | CE12: 18824.67761 | CF12: 58.08505752 | CG12: 28619.89578 | CH12: 35.12479991 | CI12: 19984.20976 | CJ12: 4.7452632 | CK12: 2249.64453 | CN12: 201.5614736 | CO12: 20895.87523 | CP12: 101.3496029 | CQ12: 17317.8789 | CR12: 71.08112793 | CS12: 15457.79243 | CT12: 50.72018107 | CU12: 13665.65571 | CV12: 24.94030778 | CW12: 9711.175276 | CX12: 15.24849747 | CY12: 6642.534138 | CZ12: 11.32134513 | DA12: 4692.091055 | DB12: 9.362215239 | DC12: 3577.856654 | DD12: 8.267688065 | DE12: 2948.465167 | DF12: 7.612332486 | DG12: 2571.730282
A13: Trace LV equilibrium | D13: 8HPa | E13: 21.46621544 | F13: 9410.660254 | G13: 8LPa | H13: 19.41327205 | I13: 15079.91217 | M13: T3Lb | N13: 34.93937886 | O13: 15001.74727 | BZ13: 46.38192772 | CA13: 13717.16176 | CB13: 37.68186002 | CC13: 15499.10236 | CD13: 29.86680901 | CE13: 17325.73386 | CF13: 45.94129698 | CG13: 27401.96058 | CH13: 25.87104249 | CI13: 18392.70945 | CJ13: 4.923157943 | CK13: 2533.423183 | CN13: 201.7180356 | CO13: 21118.37553 | CP13: 101.4856721 | CQ13: 17544.14876 | CR13: 71.18905547 | CS13: 15686.74435 | CT13: 50.78682189 | CU13: 13897.21084 | CV13: 24.88308444 | CW13: 9942.585518 | CX13: 15.15319737 | CY13: 6858.925943 | CZ13: 11.30745106 | DA13: 4900.482276 | DB13: 9.447695696 | DC13: 3789.335229 | DD13: 8.421272276 | DE13: 3167.907617 | DF13: 7.809581922 | DG13: 2801.775686
A14: YES | D14: 9HPa | E14: 14.47509801 | F14: 6927.021477 | G14: 9LPa | H14: 14.33569713 | I14: 13471.14118 | BZ14: 37.00952898 | CA14: 12497.29481 | CB14: 29.1914868 | CC14: 14148.66034 | CD14: 22.42679381 | CE14: 15826.75343 | CF14: 36.33675818 | CG14: 26184.04101 | CH14: 19.06685522 | CI14: 16801.08057 | CJ14: 5.101052686 | CK14: 2930.691124 | CN14: 201.87467 | CO14: 21366.66728 | CP14: 101.6219757 | CQ14: 17796.20296 | CR14: 71.29703576 | CS14: 15941.47369 | CT14: 50.8526131 | CU14: 14154.51953 | CV14: 24.81502767 | CW14: 10199.15624 | CX14: 15.02581824 | CY14: 7097.950583 | CZ14: 11.24886034 | DA14: 5124.012917 | DB14: 9.488155269 | DC14: 4011.359296 | DD14: 8.532405992 | DE14: 3394.845778 | DF14: 7.965534457 | DG14: 3034.036122
D15: 10HPa | E15: 12.15013411 | F15: 5730.800162 | G15: 10LPa | H15: 10.55648741 | I15: 11821.85197 | BZ15: 29.68189887 | CA15: 11277.43685 | CB15: 22.69014984 | CC15: 12798.49334 | CD15: 16.86846409 | CE15: 14327.51309 | CF15: 28.74028023 | CG15: 24966.08985 | CH15: 14.06833114 | CI15: 15209.52452 | CJ15: 5.190000057 | CK15: 3266.600403 | CN15: 202.0313763 | CO15: 21647.65431 | CP15: 101.758523 | CQ15: 18080.94496 | CR15: 71.40509437 | CS15: 16228.88336 | CT15: 50.91759869 | CU15: 14444.48336 | CV15: 24.73580067 | CW15: 10487.76657 | CX15: 14.86218455 | CY15: 7364.596598 | CZ15: 11.13744788 | DA15: 5367.977664 | DB15: 9.472929183 | DC15: 4248.869402 | DD15: 8.590933658 | DE15: 3632.802952 | DF15: 8.071328013 | DG15: 3275.148924
A16: # of data points | D16: 11HPa | E16: 7.923794414 | F16: 3047.665492 | G16: 11LPa | H16: 7.831011114 | I16: 10164.33411 | BZ16: 23.97375038 | CA16: 10057.60009 | CB16: 17.72881759 | CC16: 11448.06234 | CD16: 12.7265044 | CE16: 12828.77712 | CF16: 22.73307881 | CG16: 23748.32035 | CH16: 10.4011531 | CI16: 13618.01388 | CJ16: 5.012105314 | CK16: 5028.704622 | CN16: 202.1881534 | CO16: 21971.44703 | CP16: 101.8953232 | CQ16: 18408.48446 | CR16: 71.51325826 | CS16: 16559.08181 | CT16: 50.98182676 | CU16: 14777.20807 | CV16: 24.64509429 | CW16: 10818.48806 | CX16: 14.65740742 | CY16: 7667.201728 | CZ16: 10.96278393 | DA16: 5640.336373 | DB16: 9.387581598 | DC16: 4505.584869 | DD16: 8.58185516 | DE16: 3886.930023 | DF16: 8.112911093 | DG16: 3529.745016
A17: 20 | D17: 12HPa | E17: 6.98888493 | F17: 2453.432732 | G17: 12LPa | H17: 5.334896731 | I17: 7834.239416 | BZ17: 19.54186325 | CA17: 8837.597438 | CB17: 13.96788089 | CC17: 10097.74414 | CD17: 9.650155314 | CE17: 11329.84741 | CF17: 17.98063374 | CG17: 22530.16888 | CH17: 7.717854858 | CI17: 12026.44823 | CJ17: 4.834210571 | CK17: 5502.083787 | CN17: 202.3450007 | CO17: 22353.71837 | CP17: 102.0323861 | CQ17: 18794.49286 | CR17: 71.62155578 | CS17: 16947.73793 | CT17: 51.04534979 | CU17: 15168.35684 | CV17: 24.5426254 | CW17: 11206.92539 | CX17: 14.40600674 | CY17: 8025.350799 | CZ17: 10.71048516 | DA17: 5953.60007 | DB17: 9.212726336 | DC17: 4793.659626 | DD17: 8.482892177 | DE17: 4165.697527 | DF17: 8.068134549 | DG17: 3807.378196
G18: 13LPd | H18: 4.383104362 | I18: 6275.899125 | BZ18: 16.10438784 | CA18: 7617.706602 | CB18: 11.15151914 | CC18: 8747.449239 | CD18: 7.384674531 | CE18: 9830.845355 | CF18: 14.22218151 | CG18: 21311.97805 | CH18: 5.767924545 | CI18: 10434.84335 | CJ18: 4.656315829 | CK18: 5844.800229 | CN18: 202.5019173 | CO18: 22820.72122 | CP18: 102.1697217 | CQ18: 19265.22022 | CR18: 71.73001682 | CS18: 17421.09681 | CT18: 51.10822479 | CU18: 15644.7036 | CV18: 24.42812835 | CW18: 11679.20155 | CX18: 14.10224766 | CY18: 8459.735748 | CZ18: 10.35936607 | DA18: 6329.015554 | DB18: 8.920732428 | DC18: 5129.764951 | DD18: 8.261344239 | DE18: 4482.269002 | DF18: 7.901990014 | DG18: 4113.448021
A19: Reference stream | BZ19: 13.41490526 | CA19: 6397.84661 | CB19: 9.098415732 | CC19: 7397.200871 | CD19: 5.7527925 | CE19: 8331.667826 | CF19: 11.251645 | CG19: 20094.51805 | CH19: 4.3788231 | CI19: 8843.264394 | CJ19: 4.478421086 | CK19: 6134.216014 | CN19: 202.6589024 | CO19: 23421.66006 | CP19: 102.3073402 | CQ19: 19869.86528 | CR19: 71.83867281 | CS19: 18028.74017 | CT19: 51.17051352 | CU19: 16254.59082 | CV19: 24.30133803 | CW19: 12286.16884 | CX19: 13.74064669 | CY19: 9019.805562 | CZ19: 9.878444246 | DA19: 6809.70567 | DB19: 8.465784582 | DC19: 5549.845424 | DD19: 7.866090464 | DE19: 4866.556622 | DF19: 7.558660108 | DG19: 4480.440847
A20: 0HPa | BZ20: 11.24212138 | CA20: 5178.041298 | CB20: 7.686198658 | CC20: 6046.889893 | CD20: 4.652958259 | CE20: 6832.880599 | CF20: 8.901504298 | CG20: 18876.51601 | CH20: 3.534023922 | CI20: 7251.699405 | CJ20: 4.300526343 | CK20: 6396.302786 | CN20: 202.8159551 | CO20: 24266.95431 | CP20: 102.4452524 | CQ20: 20718.84563 | CR20: 71.9475568 | CS20: 18880.45295 | CT20: 51.23228278 | CU20: 17108.82272 | CV20: 24.16196221 | CW20: 13135.89651 | CX20: 13.3163243 | CY20: 9817.351498 | CZ20: 9.228530788 | DA20: 7495.38126 | DB20: 7.759612333 | DC20: 6130.903382 | DD20: 7.194845476 | DE20: 5386.148508 | DF20: 6.932598607 | DG20: 4963.995619
BZ21: 9.338221237 | CA21: 3958.03525 | CB21: 6.781819986 | CC21: 4696.605984 | CD21: 4.37934286 | CE21: 5333.90426 | CF21: 7.04328021 | CG21: 17658.45413 | CH21: 3.533101263 | CI21: 5660.136006 | CJ21: 4.1226316 | CK21: 6643.816894 | CN21: 202.9730747 | CO21: 25708.68033 | CP21: 102.5834691 | CQ21: 22164.51863 | CR21: 72.05670359 | CS21: 20328.57678 | CT21: 51.29360469 | CU21: 18559.45798 | CV21: 24.00964397 | CW21: 14581.3652 | CX21: 12.82453006 | CY21: 11200.27065 | CZ21: 8.376223833 | DA21: 8726.44099 | DB21: 6.660468286 | DC21: 7180.781362 | DD21: 6.000529163 | DE21: 6301.163627 | DF21: 5.72603625 | DG21: 5791.202037
AJ22: Show in textbox | BZ22: 7.45374383 | CA22: 2738.142856 | CB22: 6.108671168 | CC22: 3346.06376 | CD22: 4.376226712 | CE22: 3834.930471 | CF22: 5.574560258 | CG22: 16440.44163 | CH22: 3.534894712 | CI22: 4068.572608 | CJ22: 3.944736857 | CK22: 6884.62209 | CN22: 203.1302602 | CO22: 39086.92156 | CP22: 102.7220016 | CQ22: 35546.50873 | CR22: 72.16614976 | CS22: 33713.23767 | CT22: 51.354557 | CU22: 31946.62337 | CV22: 23.84391333 | CW22: 27962.67527 | CX22: 12.25853771 | CY22: 24507.67654 | CZ22: 7.303290965 | DA22: 21817.81528 | DB22: 5.084467195 | DC22: 19935.52652 | DD22: 4.015231068 | DE22: 18706.77305 | DF22: 3.441873681 | DG22: 17903.34212
AJ23: Name | BZ23: 5.484784654 | CA23: 1518.269386 | CB23: 5.061674452 | CC23: 1995.976582 | CD23: 4.379419642 | CE23: 2335.956682 | CF23: 4.414590133 | CG23: 15222.56685 | CH23: 3.535659983 | CI23: 2477.009209 | CJ23: 3.766842114 | CK23: 7124.320787
AJ24: Power | AK24: X | AO24: X | AS24: X | AW24: X | BA24: X | BE24: X | BZ24: 3.499962634 | CA24: 298.3401084 | CB24: 3.499999429 | CC24: 645.6869756 | CD24: 3.499979932 | CE24: 836.9642931 | CF24: 3.500014782 | CG24: 14004.57276 | CH24: 3.49998918 | CI24: 885.4352781 | CJ24: 3.588947371 | CK24: 7367.47578
AJ25: h is | AK25: X | AO25: X | AS25: X | AW25: X | BA25: X | BE25: X
AJ26: DHs | AK26: X | AO26: X | AS26: X | AW26: X | BA26: X | BE26: X
AJ27: Mass flow | AK27: X | AO27: X | AS27: X | AW27: X | BA27: X | BE27: X
A28: Trace Isenthalpes | AJ28: Molar flow
A29: YES | AJ29: Vol. flow
A30: # of data points | AJ30: T IN
A31: 20 | AJ31: T OUT
A32: Trace isobars between | AJ32: p IN
A33: 50 | AJ33: p OUT
A34: 0.004
A35: Start temperature
A36: 200 | AI36: VALVES | AJ36: Linewidth
A37: 100 | E37: =INDEX(_TSData,MATCH(D37,_cT_Streams,0),1) ->  | F37: =INDEX(_TSData,MATCH(D37,_cT_Streams,0),2) ->  | H37: =INDEX(_TSData,MATCH(G37,_cT_Streams,0),1) ->  | I37: =INDEX(_TSData,MATCH(G37,_cT_Streams,0),2) ->  | K37: =INDEX(_TSData,MATCH(J37,_cT_Streams,0),1) ->  | L37: =INDEX(_TSData,MATCH(J37,_cT_Streams,0),2) ->  | Q37: =INDEX(_TSData,MATCH(P37,_cT_Streams,0),1) ->  | R37: =INDEX(_TSData,MATCH(P37,_cT_Streams,0),2) ->  | AF37: =INDEX(_TSData,MATCH(AE37,_cT_Streams,0),1) ->  | AG37: =INDEX(_TSData,MATCH(AE37,_cT_Streams,0),2) ->  | AJ37: Linetype | AK37: --------
A38: 70 | AJ38: Linecolor
A39: 50 | AJ39: Name | AK39: JT Valve
A40: 25 | AJ40: ID | AK40: VLV-JT | AL40: =MATCH(AK40,TSAuxData!$A$1:$A$100,0) -> 2 | AP40: =MATCH(AO40,TSAuxData!$A$1:$A$100,0) ->  | AT40: =MATCH(AS40,TSAuxData!$A$1:$A$100,0) ->  | AX40: =MATCH(AW40,TSAuxData!$A$1:$A$100,0) ->  | BB40: =MATCH(BA40,TSAuxData!$A$1:$A$100,0) ->  | BF40: =MATCH(BE40,TSAuxData!$A$1:$A$100,0) ->  | BJ40: =MATCH(BI40,TSAuxData!$A$1:$A$100,0) ->  | BN40: =MATCH(BM40,TSAuxData!$A$1:$A$100,0) ->  | BR40: =MATCH(BQ40,TSAuxData!$A$1:$A$100,0) ->  | BV40: =MATCH(BU40,TSAuxData!$A$1:$A$100,0) -> 
A41: 15 | AK41: 1 | AL41: =OFFSET(INDIRECT("TSAUXDATA!A1",TRUE),AL$40-1,AK41) -> 4.485006038 | AM41: =OFFSET(INDIRECT("TSAUXDATA!A1",TRUE),AL$40-1,AK41+10) -> 1644.986052 | AO41: 1 | AP41: =OFFSET(INDIRECT("TSAUXDATA!A1",TRUE),AP$40-1,AO41) ->  | AQ41: =OFFSET(INDIRECT("TSAUXDATA!A1",TRUE),AP$40-1,AO41+10) ->  | AS41: 1 | AT41: =OFFSET(INDIRECT("TSAUXDATA!A1",TRUE),AT$40-1,AS41) ->  | AU41: =OFFSET(INDIRECT("TSAUXDATA!A1",TRUE),AT$40-1,AS41+10) ->  | AW41: 1 | AX41: =OFFSET(INDIRECT("TSAUXDATA!A1",TRUE),AX$40-1,AW41) ->  | AY41: =OFFSET(INDIRECT("TSAUXDATA!A1",TRUE),AX$40-1,AW41+10) ->  | BA41: 1 | BB41: =OFFSET(INDIRECT("TSAUXDATA!A1",TRUE),BB$40-1,BA41) ->  | BC41: =OFFSET(INDIRECT("TSAUXDATA!A1",TRUE),BB$40-1,BA41+10) ->  | BE41: 1 | BF41: =OFFSET(INDIRECT("TSAUXDATA!A1",TRUE),BF$40-1,BE41) ->  | BG41: =OFFSET(INDIRECT("TSAUXDATA!A1",TRUE),BF$40-1,BE41+10) ->  | BI41: 1 | BJ41: =OFFSET(INDIRECT("TSAUXDATA!A1",TRUE),BJ$40-1,BI41) ->  | BK41: =OFFSET(INDIRECT("TSAUXDATA!A1",TRUE),BJ$40-1,BI41+10) ->  | BM41: 1 | BN41: =OFFSET(INDIRECT("TSAUXDATA!A1",TRUE),BN$40-1,BM41) ->  | BO41: =OFFSET(INDIRECT("TSAUXDATA!A1",TRUE),BN$40-1,BM41+10) ->  | BQ41: 1 | BR41: =OFFSET(INDIRECT("TSAUXDATA!A1",TRUE),BR$40-1,BQ41) ->  | BS41: =OFFSET(INDIRECT("TSAUXDATA!A1",TRUE),BR$40-1,BQ41+10) ->  | BU41: 1 | BV41: =OFFSET(INDIRECT("TSAUXDATA!A1",TRUE),BV$40-1,BU41) ->  | BW41: =OFFSET(INDIRECT("TSAUXDATA!A1",TRUE),BV$40-1,BU41+10) -> 
A42: 10 | AK42: 2 | AL42: 4.496105963 | AM42: 1674.931689 | AO42: 2 | AS42: 2 | AW42: 2 | BA42: 2 | BE42: 2 | BI42: 2 | BM42: 2 | BQ42: 2 | BU42: 2
A43: 7 | AK43: 3 | AL43: 4.505455784 | AM43: 1711.9443 | AO43: 3 | AS43: 3 | AW43: 3 | BA43: 3 | BE43: 3 | BI43: 3 | BM43: 3 | BQ43: 3 | BU43: 3
A44: 5 | AK44: 4 | AL44: 4.512890325 | AM44: 1744.017893 | AO44: 4 | AS44: 4 | AW44: 4 | BA44: 4 | BE44: 4 | BI44: 4 | BM44: 4 | BQ44: 4 | BU44: 4
A45: 3.5 | AK45: 5 | AL45: 4.518232129 | AM45: 1778.694095 | AO45: 5 | AS45: 5 | AW45: 5 | BA45: 5 | BE45: 5 | BI45: 5 | BM45: 5 | BQ45: 5 | BU45: 5
AK46: 6 | AL46: 4.521262181 | AM46: 1815.144183 | AO46: 6 | AS46: 6 | AW46: 6 | BA46: 6 | BE46: 6 | BI46: 6 | BM46: 6 | BQ46: 6 | BU46: 6
AK47: 7 | AL47: 4.521725152 | AM47: 1854.883453 | AO47: 7 | AS47: 7 | AW47: 7 | BA47: 7 | BE47: 7 | BI47: 7 | BM47: 7 | BQ47: 7 | BU47: 7
AK48: 8 | AL48: 4.519299568 | AM48: 1888.856025 | AO48: 8 | AS48: 8 | AW48: 8 | BA48: 8 | BE48: 8 | BI48: 8 | BM48: 8 | BQ48: 8 | BU48: 8
AK49: 9 | AL49: 4.513601595 | AM49: 1925.196473 | AO49: 9 | AS49: 9 | AW49: 9 | BA49: 9 | BE49: 9 | BI49: 9 | BM49: 9 | BQ49: 9 | BU49: 9
AK50: 10 | AL50: 4.398830592 | AM50: 1964.541413 | AO50: 10 | AS50: 10 | AW50: 10 | BA50: 10 | BE50: 10 | BI50: 10 | BM50: 10 | BQ50: 10 | BU50: 10

Sheet LNG
A1: Name | B1: UA | C1: LMTD | D1: Cold Pinch Temperature | E1: DT min | F1: Duty | G1: Heat Leak | I1: Stream Names | J1: Duty | K1: Pressure Drop | L1: Mass flow | M1: Composition | N1: In Temperature | O1: In Pressure | P1: In liquid fraction | Q1: Out Temperature | R1: Out Pressure | S1: Out Liquid Fraction | U1: Stream Names | V1: Duty | W1: Pressure Drop | X1: Mass flow | Y1: Composition | Z1: In Temperature | AA1: In Pressure | AB1: In liquid fraction | AC1: Out Temperature | AD1: Out Pressure | AE1: Out Liquid Fraction | AG1: Stream Names | AH1: Duty | AI1: Pressure Drop | AJ1: Mass flow | AK1: Composition | AL1: In Temperature | AM1: In Pressure | AN1: In liquid fraction | AO1: Out Temperature | AP1: Out Pressure | AQ1: Out Liquid Fraction | AS1: Stream Names | AT1: Duty | AU1: Pressure Drop | AV1: Mass flow | AW1: Composition | AX1: In Temperature | AY1: In Pressure | AZ1: In liquid fraction | BA1: Out Temperature | BB1: Out Pressure | BC1: Out Liquid Fraction
A2: HX-01 | B2: 139247.2969 | C2: 4.197423565 | D2: 297.0167906 | E2: 2.983209391 | F2: 584.4798855 | G2: 139 | H2: HOT | I2: 0HPa ~ 1HPa | J2: 584.4788855 | K2: 50 | L2: 783.9420391 | M2: Helium:1 | N2: 300 | O2: 19.74 | P2: 0 | Q2: 156.4331631 | R2: 19.69 | S2: 0 | T2: COLD | U2: 1MPa ~ 0MPc | V2: 279.8482665 | W2: 50 | X2: 368.3525583 | Y2: Helium:1 | Z2: 150.7073735 | AA2: 5.12 | AB2: 0 | AC2: 297.0167906 | AD2: 5.07 | AE2: 0 | AF2: COLD | AG2: 1LPa ~ 0LPa | AH2: 304.771619 | AI2: 26.54130301 | AJ2: 401.1639165 | AK2: Helium:1 | AL2: 150.7073901 | AM2: 1.096541303 | AN2: 0 | AO2: 297.016791 | AP2: 1.07 | AQ2: 0
A3: HX-02 | B3: 22250.08313 | C3: 3.018640374 | D3: 133.8959707 | E3: 1.338869932 | F3: 67.16499927 | G3: 22 | H3: HOT | I3: 1HPb ~ 2HPa | J3: 67.16499927 | K3: 20 | L3: 609.3079924 | M3: Helium:1 | N3: 156.4331631 | O3: 19.69 | P3: 0 | Q3: 135.2348406 | R3: 19.67 | S3: 0 | T3: COLD | U3: 2MPa ~ 1MPa | V3: 32.16525626 | W3: 20 | X3: 368.3525583 | Y3: Helium:1 | Z3: 133.8959707 | AA3: 5.14 | AB3: 0 | AC3: 150.7073735 | AD3: 5.12 | AE3: 0 | AF3: COLD | AG3: 2LPa ~ 1LPa | AH3: 35.02174301 | AI3: 4.200781772 | AJ3: 401.1639165 | AK3: Helium:1 | AL3: 133.895983 | AM3: 1.100742085 | AN3: 0 | AO3: 150.7073901 | AP3: 1.096541303 | AQ3: 0
A4: HX-03 | B4: 145275.8517 | C4: 2.018562118 | D4: 133.8959707 | E4: 1.338869928 | F4: 293.248331 | G4: 145 | H4: HOT | I4: T1Lb ~ T2Ha | J4: 65.12173125 | K4: 20 | L4: 174.3340467 | M4: Helium:1 | N4: 135.2348406 | O4: 12 | P4: 0 | Q4: 63.564069 | R4: 11.98 | S4: 0 | T4: HOT | U4: 2HPa ~ 3HPa | V4: 228.1260872 | W4: 20 | X4: 609.3079924 | Y4: Helium:1 | Z4: 135.2348406 | AA4: 19.67 | AB4: 0 | AC4: 63.564069 | AD4: 19.65 | AE4: 0 | AF4: COLD | AG4: 3MPa ~ 2MPa | AH4: 140.5427167 | AI4: 20 | AJ4: 368.3525583 | AK4: Helium:1 | AL4: 60.54497285 | AM4: 5.16 | AN4: 0 | AO4: 133.8959707 | AP4: 5.14 | AQ4: 0 | AR4: COLD | AS4: 3LPa ~ 2LPa | AT4: 152.8511269 | AU4: 27.68697077 | AV4: 401.1639165 | AW4: Helium:1 | AX4: 60.54498186 | AY4: 1.128429056 | AZ4: 0 | BA4: 133.895983 | BB4: 1.100742085 | BC4: 0
A5: HX-04 | B5: 30515.38942 | C5: 1.378607547 | D5: 50.04649523 | E5: 0.4864753943 | F5: 42.06874614 | G5: 31 | H5: HOT | I5: 3HPa ~ 4HPa | J5: 42.06875809 | K5: 20 | L5: 609.3079924 | M5: Helium:1 | N5: 63.564069 | O5: 19.65 | P5: 0 | Q5: 50.53297062 | R5: 19.63 | S5: 0 | T5: COLD | U5: 4MPb ~ 3MPa | V5: 20.2013128 | W5: 20 | X5: 368.3525583 | Y5: Helium:1 | Z5: 50.04649523 | AA5: 5.18 | AB5: 0 | AC5: 60.54497285 | AD5: 5.16 | AE5: 0 | AF5: COLD | AG5: 4LPb ~ 3LPa | AH5: 21.89842138 | AI5: 5.919283406 | AJ5: 401.1639165 | AK5: Helium:1 | AL5: 50.04642342 | AM5: 1.134348339 | AN5: 0 | AO5: 60.54498186 | AP5: 1.128429056 | AQ5: 0
A6: HX-05 | B6: --- | C6: 0.4918045733 | D6: 50.04655954 | E6: 0.4918045733 | F6: 0.001 | G6: 0 | H6: HOT | I6: 4HPb ~ 5HPa | J6: 0.001 | K6: 20 | L6: 609.3079924 | M6: Helium:1 | N6: 50.53836411 | O6: 19.54 | P6: 0 | Q6: 50.53857018 | R6: 19.52 | S6: 0 | T6: COLD | U6: 5MPa ~ 4MPa | V6: 0.0001098540984 | W6: 20 | X6: 194.3185116 | Y6: Helium:1 | Z6: 50.04599191 | AA6: 5.2 | AB6: 0 | AC6: 50.04655954 | AD6: 5.18 | AE6: 0 | AF6: COLD | AG6: 5LPa ~ 4LPa | AH6: 0.0008901459016 | AI6: 0 | AJ6: 401.1639165 | AK6: Helium:1 | AL6: 50.04599682 | AM6: 1.134348339 | AN6: 0 | AO6: 50.04642342 | AP6: 1.134348339 | AQ6: 0
A7: HX-06 | B7: 112454.4402 | C7: 0.4135461921 | D7: 38.34134655 | E7: 0.384366621 | F7: 46.50510552 | G7: 113 | H7: HOT | I7: 5HPb ~ 6HPa | J7: 46.50510552 | K7: 20 | L7: 571.4532265 | M7: Helium:1 | N7: 50.53857018 | O7: 19.52 | P7: 0 | Q7: 35.44808292 | R7: 19.5 | S7: 0 | T7: COLD | U7: 6MPa ~ 5MPa | V7: 15.30339458 | W7: 20 | X7: 194.3185116 | Y7: Helium:1 | Z7: 35.05168687 | AA7: 5.22 | AB7: 0 | AC7: 50.04599191 | AD7: 5.2 | AE7: 0 | AF7: COLD | AG7: 6LPa ~ 5LPa | AH7: 31.31471094 | AI7: 21.57674274 | AJ7: 401.1639165 | AK7: Helium:1 | AL7: 35.05168599 | AM7: 1.155925082 | AN7: 0 | AO7: 50.04599682 | AP7: 1.134348339 | AQ7: 0
A8: HX-07 | B8: 904.6350758 | C8: 0.3817323927 | D8: 34.93937886 | E8: 0.3568716356 | F8: 0.345328512 | G8: 5 | H8: HOT | I8: 6HPb ~ 7HPa | J8: 0.3453295597 | K8: 20 | L8: 414.6894808 | M8: Helium:1 | N8: 35.44808292 | O8: 19.5 | P8: 0 | Q8: 35.29625049 | R8: 19.48 | S8: 0 | T8: COLD | U8: T3Lb ~ 6MPa | V8: 0.1154503976 | W8: 20 | X8: 194.3185116 | Y8: Helium:1 | Z8: 34.93937886 | AA8: 5.24 | AB8: 0 | AC8: 35.05168687 | AD8: 5.22 | AE8: 0 | AF8: COLD | AG8: 7LPa ~ 6LPa | AH8: 0.2348770667 | AI8: 0.9547231299 | AJ8: 401.1639165 | AK8: Helium:1 | AL8: 34.93937886 | AM8: 1.156879805 | AN8: 0 | AO8: 35.05168599 | AP8: 1.155925082 | AQ8: 0
A9: HX-08 | B9: 36388.03668 | C9: 0.8943686694 | D9: 34.93937886 | E9: 0.3568716368 | F9: 32.54431995 | G9: 36 | H9: HOT | I9: 7HPa ~ 8HPa | J9: 32.5438189 | K9: 20 | L9: 414.6894808 | M9: Helium:1 | N9: 35.29625049 | O9: 19.48 | P9: 0 | Q9: 21.46621544 | R9: 19.46 | S9: 0 | T9: COLD | U9: 8LPa ~ 7LPa | V9: 32.580821 | W9: 6.874006536 | X9: 401.1639165 | Y9: Helium:1 | Z9: 19.41327205 | AA9: 1.163753811 | AB9: 0 | AC9: 34.93937886 | AD9: 1.156879805 | AE9: 0
A10: HX-09 | B10: 13553.81304 | C10: 0.7938211462 | D10: 14.33569713 | E10: 0.1394008872 | F10: 10.7593034 | G10: 14 | H10: HOT | I10: 8HPd ~ 9HPa | J10: 10.7598034 | K10: 20 | L10: 225.0639165 | M10: Helium:1 | N10: 22.10094451 | O10: 19.415 | P10: 0 | Q10: 14.47509801 | R10: 19.395 | S10: 0 | T10: COLD | U10: 9LPa ~ 8LPa | V10: 10.7728034 | W10: 2.673224764 | X10: 401.1639165 | Y10: Helium:1 | Z10: 14.33569713 | AA10: 1.166427036 | AB10: 0 | AC10: 19.41327205 | AD10: 1.163753811 | AE10: 0
A11: HX-10 | B11: 13631.90139 | C11: 0.5963566574 | D11: 14.33569713 | E11: 0.1394008872 | F11: 8.129475146 | G11: 14 | H11: HOT | I11: T4Lb ~ T5Ha | J11: 4.550275833 | K11: 20 | L11: 335 | M11: Helium:1 | N11: 14.47509801 | O11: 4.824 | P11: 0 | Q11: 12.15013411 | R11: 4.804 | S11: 0 | T11: HOT | U11: 9HPa ~ 10HPa | V11: 3.579146322 | W11: 20 | X11: 225.0639165 | Y11: Helium:1 | Z11: 14.47509801 | AA11: 19.395 | AB11: 0 | AC11: 12.15013411 | AD11: 19.375 | AE11: 0 | AF11: COLD | AG11: 10LPa ~ 9LPa | AH11: 8.143528137 | AI11: 2.673224764 | AJ11: 401.1639165 | AK11: Helium:1 | AL11: 10.55648741 | AM11: 1.169100261 | AN11: 0 | AO11: 14.33569713 | AP11: 1.166427036 | AQ11: 0
A12: HX-11 | B12: 9278.228906 | C12: 0.6512339854 | D12: 7.831011114 | E12: 0.09278330002 | F12: 6.042297988 | G12: 9 | H12: HOT | I12: 10HPa ~ 11HPa | J12: 6.042326352 | K12: 20 | L12: 225.0639165 | M12: Helium:1 | N12: 12.15013411 | O12: 19.375 | P12: 0 | Q12: 7.923794414 | R12: 19.355 | S12: 0 | T12: COLD | U12: 11LPb ~ 10LPa | V12: 6.051269625 | W12: 1.718501634 | X12: 401.1639165 | Y12: Helium:1 | Z12: 7.831011114 | AA12: 1.170818763 | AB12: 0 | AC12: 10.55648741 | AD12: 1.169100261 | AE12: 0
A13: HX-12 | B13: 1717.885255 | C13: 0.5807668409 | D13: 7.831011114 | E13: 0.09278330002 | F13: 0.9976907925 | G13: 5 | H13: HOT | I13: 11HPa ~ 12HPa | J13: 0.997681798 | K13: 10 | L13: 225.0639165 | M13: Helium:1 | N13: 7.923794414 | O13: 19.355 | P13: 0 | Q13: 6.98888493 | R13: 19.345 | S13: 0 | T13: COLD | U13: 12LPa ~ 11LPa | V13: 1.002699787 | W13: 0.9547231299 | X13: 66.56391648 | Y13: Helium:1 | Z13: 5.334896731 | AA13: 1.171773486 | AB13: 0 | AC13: 7.831011114 | AD13: 1.170818763 | AE13: 0
A14: HX-13 | B14: 2249.436244 | C14: 0.2194512022 | D14: 5.334896731 | E14: 0.09997676416 | F14: 0.493641488 | G14: 5 | H14: HOT | I14: 12MPb ~ 13MPa | J14: 0.493641488 | K14: 10 | L14: 66.56391648 | M14: Helium:1 | N14: 5.434873495 | O14: 3.01 | P14: 0 | Q14: 4.485 | R14: 3 | S14: 1 | T14: COLD | U14: 13LPd ~ 12LPa | V14: 0.498641488 | W14: 0.9547231299 | X14: 66.56391648 | Y14: Helium:1 | Z14: 4.383104362 | AA14: 1.172728209 | AB14: 0.00193304412 | AC14: 5.334896731 | AD14: 1.171773486 | AE14: 0
A15: HX-VLP | B15: 31501.51098 | C15: 6.683923172 | D15: 45.15118093 | E15: 5.000440973 | F15: 210.5536792 | G15: 21 | H15: HOT | I15: HPa ~ HPb | J15: 210.5536785 | K15: 100 | L15: 145.6744357 | M15: Helium:1 | N15: 300 | O15: 19.74 | P15: 0 | Q15: 23.93815845 | R15: 19.64 | S15: 0 | T15: COLD | U15: VLPa ~ 0VLPa | V15: 210.5746799 | W15: 50 | X15: 149.1 | Y15: Helium:1 | Z15: 18.10338179 | AA15: 0.486 | AB15: 0 | AC15: 290 | AD15: 0.436 | AE15: 0

Sheet CoolerHeater
A1: Type | B1: Name | C1: Power | D1: Mass Flow | E1: Molar Flow | F1: Feed Volume Flow | G1: Molar composition | H1: Pressure Drop | I1: Delta T | J1: Feed Temperature | K1: Feed Pressure | L1: Feed Liquid Fraction | M1: Product Temperature | N1: Product Pressure | O1: Product Liquid Fraction
A2: Cooler | B2: E-104 | C2: 140093.2651 | D2: 149.1 | E2: 3005.472287 | F2: 1.321991404 | G2: Helium:1 | H2: 50 | I2: -180.949609 | J2: 477.9664 | K2: 1.12 | L2: 0 | M2: 297.016791 | N2: 1.07 | O2: 0
A3: Cooler | B3: HP Cooler | C3: 1530698.539 | D3: 987.2334792 | E3: 19900.08627 | F3: 0.6069822731 | G3: Helium:1 | H3: 0 | I3: -298.695343 | J3: 598.695343 | K3: 20.31 | L3: 0 | M3: 300 | N3: 20.31 | O3: 0
A4: Cooler | B4: MP Cooler | C4: 1095352.187 | D4: 618.8809209 | E4: 12475.04666 | F4: 1.64917665 | G4: Helium:1 | H4: 0 | I4: -340.8777577 | J4: 640.8777577 | K4: 5 | L4: 0 | M4: 300 | N4: 5 | O4: 0
A5: Cooler | B5: ORS | C5: 181.7809654 | D5: 987.2334792 | E5: 19900.08627 | F5: 0.3056957559 | G5: Helium:1 | H5: 500 | I5: -0.004356030394 | J5: 300 | K5: 20.31 | L5: 0 | M5: 299.995644 | N5: 19.81 | O5: 0
A6: Cooler | B6: Subcooler | C6: 1158.566849 | D6: 157.7 | E6: 3178.826155 | F6: 0.001665532674 | G6: Helium:1 | H6: 10 | I6: -0.9348734949 | J6: 5.434873495 | K6: 3.01 | L6: 0 | M6: 4.5 | N6: 3 | O6: 1
A7: Heater | B7: 2K Loops | C7: 3518.061265 | D7: 149.1 | E7: 3005.472287 | F7: 0.001150794389 | G7: Helium:1 | H7: 2973 | I7: -0.6 | J7: 4.5 | K7: 3 | L7: 1 | M7: 3.9 | N7: 0.027 | O7: 0
A8: Heater | B8: Ads20K | C8: 5 | D8: 560.3639165 | E8: 11295.49445 | F8: 0.01366402355 | G8: Helium:1 | H8: 45 | I8: -0.0003165348969 | J8: 22.10126105 | K8: 19.46 | L8: 0 | M8: 22.10094451 | N8: 19.415 | O8: 0
A9: Heater | B9: Ads80K | C9: 10 | D9: 609.3079924 | E9: 12282.08106 | F9: 0.03415235316 | G9: Helium:1 | H9: 90 | I9: 0.00539349323 | J9: 50.53297062 | K9: 19.63 | L9: 0 | M9: 50.53836411 | N9: 19.54 | O9: 0
A10: Heater | B10: E-106 | C10: 2716.022904 | D10: 30.4 | E10: 612.7857648 | F10: 0.1509837882 | G10: Helium:1 | H10: 120.8187625 | I10: 17.21369051 | J10: 279.8043456 | K10: 1.170818763 | L10: 0 | M10: 297.0180361 | N10: 1.05 | O10: 0
A11: Heater | B11: RF Coupler | C11: 13429.78615 | D11: 8.6 | E11: 173.3538677 | F11: 6.637714116e-05 | G11: Helium:1 | H11: 1950 | I11: 295.5 | J11: 4.5 | K11: 3 | L11: 1 | M11: 300 | N11: 1.05 | O11: 0
A12: Heater | B12: TS | C12: 12757.5 | D12: 156.7637457 | E12: 3159.953679 | F12: 0.006235653831 | G12: Helium:1 | H12: 500 | I12: 15.10383416 | J12: 35.44808292 | K12: 19.5 | L12: 0 | M12: 50.55191708 | N12: 19 | O12: 0

Sheet Compressors
A1: Name | B1: Power | C1: Isentropic efficiency | D1: Mass Flow | E1: Molar Flow | F1: Feed Volume Flow | G1: Compression Ratio | H1: Molar composition | I1: Feed Temperature | J1: Feed Pressure | K1: Product Temperature | L1: Product Pressure
A2: CC-100 | B2: 2361.469293 | C2: 0.7 | D2: 149.1 | E2: 3005.472287 | F2: 0.4438325884 | G2: 3 | H2: Helium:1 | I2: 3.9 | J2: 0.027 | K2: 6.962859888 | L2: 0.081
A3: CC-101 | B3: 4224.988774 | C3: 0.7 | D3: 149.1 | E3: 3005.472287 | F3: 0.264581473 | G3: 3 | H3: Helium:1 | I3: 6.962859888 | J3: 0.081 | K3: 12.43661247 | L3: 0.243
A4: CC-102 | B4: 4384.164181 | C4: 0.7 | D4: 149.1 | E4: 3005.472287 | F4: 0.1579748319 | G4: 2 | H4: Helium:1 | I4: 12.43661247 | J4: 0.243 | K4: 18.10338179 | L4: 0.486
A5: C-LP/MP | B5: 1104953.942 | C5: 0.75 | D5: 618.8809209 | E5: 12475.04666 | F5: 3.640842187 | G5: 4.761904762 | H5: Helium:1 | I5: 297.2578223 | J5: 1.05 | K5: 640.8777577 | L5: 5
A6: C-MP/HP | B6: 1541278.402 | C6: 0.75 | D6: 987.2334792 | E6: 19900.08627 | F6: 1.228558452 | G6: 4.062 | H6: Helium:1 | I6: 298.8885427 | J6: 5 | K6: 598.695343 | L6: 20.31
A7: C-VLP/LP | B7: 145556.2762 | C7: 0.75 | D7: 149.1 | E7: 3005.472287 | F7: 2.159272297 | G7: 2.692307692 | H7: Helium:1 | I7: 290.001247 | J7: 0.416 | K7: 477.9664 | L7: 1.12

Sheet Turbines
A1: Name | B1: Power | C1: Isentropic efficiency | D1: Mass Flow | E1: Molar Flow | F1: Feed Volume Flow | G1: Molar composition | H1: DHs | I1: Feed Temperature | J1: Feed Pressure | K1: Product Temperature | L1: Product Pressure | M1: Product Liquid Fraction | N1: Gas losses
A2: T-1 | B2: 19667.18355 | C2: 0.77 | D2: 174.6340467 | E2: 3520.172957 | F2: 0.02957070201 | G2: Helium:1 | H2: 146.3089386 | I2: 156.4423629 | J2: 19.54 | K2: 135.2348406 | L2: 12 | M2: 0 | N2: 0.3
A3: T-2 | B3: 12541.1521 | C3: 0.76 | D3: 174.3340467 | E3: 3514.125729 | F3: 0.01994819003 | G3: Helium:1 | H3: 94.6869142 | I3: 63.56974541 | J3: 11.83 | K3: 50.04642342 | L3: 5.18 | M3: 0 | N3: 0.3
A4: T-3 | B4: 16306.78774 | C4: 0.77 | D4: 194.6185116 | E4: 3923.008339 | F4: 0.01125750865 | G4: Helium:1 | H4: 108.8533697 | I4: 50.55191708 | J4: 19 | K4: 34.93937886 | L4: 5.24 | M4: 0 | N4: 0.3
A5: T-4 | B5: 12565.90122 | C5: 0.78 | D5: 335.3 | E5: 6758.785097 | F5: 0.008251387078 | G5: Helium:1 | H5: 48.0633256 | I5: 22.09484073 | J5: 19.265 | K5: 14.47509801 | L5: 4.824 | M5: 0 | N5: 0.3
A6: T-5 | B6: 6385.543014 | C6: 0.78 | D6: 335 | E6: 6752.737869 | F6: 0.01694840573 | G6: Helium:1 | H6: 24.44594086 | I6: 12.11841955 | J6: 4.654 | K6: 7.831011114 | L6: 1.170818763 | M6: 0 | N6: 0.4
A7: T-6 | B7: 2065.34284 | C7: 0.73 | D7: 225.0639165 | E7: 4536.709349 | F7: 0.001597788031 | G7: Helium:1 | H7: 12.57510885 | I7: 7.001213938 | J7: 19.195 | K7: 5.434873495 | L7: 3.01 | M7: 0 | N7: =NA() -> 

Sheet ExergyData (hidden)
A1: Object type | B1: Name | C1: Ex IN-OUT | D1: Materialstreams | I1: Energystreams | K1: LNG | M1: Turbine | O1: Compressor | Q1: Pipe | S1: Cooler | U1: Heater | W1: Valve | Y1: Mixer | AA1: Tank | AC1: SystemInlet | AE1: SystemOutlet
A2: compressor | B2: CC-100 | C2: 30284.48516 | D2: 0HPa | E2: -4289043.133 | F2: 0.7839420391 | G2: 300 | H2: 23450.90075 | I2: Q-100 | J2: 1530698.539 | K2: HX-01 | L2: 27456.97024 | M2: T-1 | N2: 33019.83776 | O2: CC-100 | P2: 30284.48516 | Q2: PIPE-HP | R2: 2069.064766 | S2: E-104 | T2: 33837.98688 | U2: 2K Loops | V2: 574295.3391 | W2: VLV-Dewar | X2: 464.5580341 | Y2: MIX-100 | Z2: 0 | AA2: Dewar | AB2: 84377.23777 | AC2: From Buffer | AD2: 0 | AE2: LHe | AF2: 0
A3: compressor | B3: CC-101 | C3: 28540.96546 | D3: 0HPb | E3: -5086045.853 | F3: 0.9296164748 | G3: 300 | H3: 23450.90075 | I3: Q-101 | J3: 1541278.402 | K3: HX-02 | L3: 5654.22394 | M3: T-2 | N3: 37375.98757 | O3: CC-101 | P3: 28540.96546 | Q3: PIPE-LP | R3: 6472.720179 | S3: HP Cooler | T3: 468405.1196 | U3: Ads20K | V3: 898.3337213 | W3: VLV-HP/LP | X3: 54366.3537 | Y3: MIX-102 | Z3: 17.89038271 | AC3: LevelCompensation | AD3: 0 | AE3: To Buffer | AF3: 0
A4: compressor | B4: CC-102 | C4: 18494.39148 | D4: 0HPc | E4: -5083976.788 | F4: 0.9296164748 | G4: 299.995644 | H4: 23443.48169 | I4: Q-102 | J4: 1095352.187 | K4: HX-03 | L4: 32657.41636 | M4: T-3 | N4: 61244.28327 | O4: CC-102 | P4: 18494.39148 | Q4: PIPE-MP | R4: 3198.47414 | S4: MP Cooler | T4: 363622.2005 | U4: Ads80K | V4: 1877.856284 | W4: VLV-HXVLP | X4: 869.9425183 | Y4: MIX-102-2 | Z4: -1.370992774
A5: compressor | B5: C-LP/MP | C5: -966108.3818 | D5: 0HPd | E5: -5399078.253 | F5: 0.9872334792 | G5: 299.995644 | H5: 23443.48169 | I5: Q-111 | J5: 145556.2762 | K5: HX-04 | L5: 9419.232097 | M5: T-4 | N5: 91097.04066 | O5: C-LP/MP | P5: -966108.3818 | Q5: PIPE-VLP | R5: 4361.26476 | S5: ORS | T5: 15474.28884 | U5: E-106 | V5: 2174.255225 | W5: VLV-JT | X5: 6477.251105 | Y5: MIX-103-2-2 | Z5: 0
A6: compressor | B6: C-VLP/LP | C6: -121513.7959 | D6: 0HPe | E6: -5383603.964 | F6: 0.9872334792 | G6: 300 | H6: 23391.84747 | I6: Q-112 | J6: 140093.2651 | K6: HX-05 | L6: 880.0264866 | M6: T-5 | N6: 79863.16004 | O6: C-MP/HP | P6: -1334946.992 | S6: Subcooler | T6: -67529.14843 | U6: RF Coupler | V6: 58517.64651 | W6: VLV-LP/VLP | X6: 0 | Y6: MIX-103-2-3 | Z6: -0.02177486429
A7: compressor | B7: C-MP/HP | C7: -1334946.992 | D7: 0HPf | E7: -4915198.845 | F7: 0.9872334792 | G7: 598.695343 | H7: 26978.61609 | I7: Q-115 | J7: 1104953.942 | K7: HX-06 | L7: 9520.510672 | M7: T-6 | N7: 45200.97382 | O7: C-VLP/LP | P7: -121513.7959 | U7: TS | V7: 79925.64318 | W7: VLV-T1 | X7: 849.732651 | Y7: MIX-103-8 | Z7: -9.19930175
A8: coolerop | B8: Subcooler | C8: -67529.14843 | D8: 0LPa | E8: -2925574.18 | F8: 0.4011639165 | G8: 297.016791 | H8: 29451.13734 | I8: Q-117 | J8: 2716.022904 | K8: HX-07 | L8: 1008.60621 | W8: VLV-T2 | X8: 1418.369422 | Y8: MIX-103-8-2 | Z8: 1145.605781
A9: coolerop | B9: ORS | C9: 15474.28884 | D9: 0LPb | E9: -4012918.013 | F9: 0.5502639165 | G9: 297.016791 | H9: 29451.13734 | I9: Q-2K | J9: 3518.061265 | K9: HX-08 | L9: 19572.09837 | W9: VLV-T3 | X9: 668.734289 | Y9: MIX-105 | Z9: 4.63658124
A10: coolerop | B10: E-104 | C10: 33837.98688 | D10: 0LPd | E10: -4019390.733 | F10: 0.5502639165 | G10: 297.0180361 | H10: 29490.34714 | I10: Q-4.5K | J10: -32767 | K10: HX-09 | L10: 13824.34645 | W10: VLV-T4 | X10: 1676.757138 | Y10: MIX-106 | Z10: -0.6515277191
A11: coolerop | B11: HP Cooler | C11: 468405.1196 | D11: 0LPe | E11: -1053506.497 | F11: 0.1491 | G11: 477.9664 | H11: 31826.6332 | I11: Q-CC100 | J11: 2361.469293 | K11: HX-10 | L11: 15662.96947 | W11: VLV-T5 | X11: 6189.979666 | Y11: MIX-107 | Z11: 0
A12: coolerop | B12: MP Cooler | C12: 363622.2005 | D12: 0LPf | E12: -1087344.484 | F12: 0.1491 | G12: 297.016791 | H12: 29451.15191 | I12: Q-CC101 | J12: 4224.988774 | K12: HX-11 | L12: 18310.29519 | W12: VLV-T6 | X12: 1026.142812 | Y12: MIX-108 | Z12: -6.178362748
A13: expandop | B13: T-6 | C13: 45200.97382 | D13: 0LPg | E13: -1087344.484 | F13: 0.1491 | G13: 297.016791 | H13: 29451.15191 | I13: Q-CC102 | J13: 4384.164181 | K13: HX-12 | L13: 6402.944896 | Y13: MIX-Turb | Z13: 59532.71804
A14: expandop | B14: T-3 | C14: 61244.28327 | D14: 0LPh | E14: -4520609.552 | F14: 0.6188809209 | G14: 297.2578223 | H14: 29494.53736 | I14: Q-DewarLoad | J14: 1258.566849 | K14: HX-13 | L14: 1812.742174
A15: expandop | B15: T-4 | C15: 91097.04066 | D15: 0MPa | E15: -3554501.17 | F15: 0.6188809209 | G15: 640.8777577 | H15: 30242.36867 | I15: Q-HL_Ads20K | J15: 5 | K15: HX-VLP | L15: 68596.12865
A16: expandop | B16: T-5 | C16: 79863.16004 | D16: 0MPb | E16: -3918123.371 | F16: 0.6188809209 | G16: 300 | H16: 26301.22285 | I16: Q-HL_Ads80K | J16: 10
A17: expandop | B17: T-1 | C17: 33019.83776 | D17: 0MPc | E17: -2328806.101 | F17: 0.3683525583 | G17: 297.0167906 | H17: 26220.46518 | I17: Q-HL_HP | J17: 0
A18: expandop | B18: T-2 | C18: 37375.98757 | D18: 0MPd | E18: -2332004.575 | F18: 0.3683525583 | G18: 297.0211487 | H18: 26249.40914 | I18: Q-HL_LP | J18: 0
A19: heaterop | B19: 2K Loops | C19: 574295.3391 | D19: 0MPe | E19: -6250145.837 | F19: 0.9872334792 | G19: 298.8885427 | H19: 26281.95073 | I19: Q-HL_MP | J19: 0
A20: heaterop | B20: TS | C20: 79925.64318 | D20: 0VLPa | E20: -1170659.028 | F20: 0.1491 | G20: 290 | H20: 31191.62884 | I20: Q-HL_VLP | J20: 0
A21: heaterop | B21: E-106 | C21: 2174.255225 | D21: 0VLPb | E21: -1175020.293 | F21: 0.1491 | G21: 290.001247 | H21: 31289.13085 | I21: Q-HL-Dewar | J21: 100
A22: heaterop | B22: RF Coupler | C22: 58517.64651 | D22: 0VLPc | E22: -1175020.293 | F22: 0.1491 | G22: 290.001247 | H22: 31289.13085 | I22: Q-ORS | J22: 181.7809654
A23: heaterop | B23: Ads80K | C23: 1877.856284 | D23: 10HPa | E23: -376966.271 | F23: 0.2250639165 | G23: 12.15013411 | H23: 5730.800162 | I23: Q-RFCoupler | J23: 13429.78615
A24: heaterop | B24: Ads20K | C24: 898.3337213 | D24: 10LPa | E24: -1401494.772 | F24: 0.4011639165 | G24: 10.55648741 | H24: 11821.85197 | I24: Q-Subcooler | J24: 1158.566849
A25: Inlet stream | B25: From Buffer | C25: 0 | D25: 11HPa | E25: -201845.5581 | F25: 0.2250639165 | G25: 7.923794414 | H25: 3047.665492 | I25: Q-T1 | J25: 19667.18355
A26: Inlet stream | B26: LevelCompensation | C26: 0 | D26: 11LPa | E26: -200450.5974 | F26: 0.06656391648 | G26: 7.831011114 | H26: 10164.33411 | I26: Q-T2 | J26: 12541.1521
A27: lngop | B27: HX-13 | C27: 1812.742174 | D27: 11LPb | E27: -1208063.764 | F27: 0.4011639165 | G27: 7.831011114 | H27: 10164.32272 | I27: Q-T3 | J27: 16306.78774
A28: lngop | B28: HX-12 | C28: 6402.944896 | D28: 12HPa | E28: -162721.1342 | F28: 0.2250639165 | G28: 6.98888493 | H28: 2453.432732 | I28: Q-T4 | J28: 12565.90122
A29: lngop | B29: HX-01 | C29: 27456.97024 | D29: 12HPb | E29: -163747.277 | F29: 0.2250639165 | G29: 7.001213938 | H29: 2468.63053 | I29: Q-T5 | J29: 6385.543014
A30: lngop | B30: HX-06 | C30: 9520.510672 | D30: 12LPa | E30: -154923.2286 | F30: 0.06656391648 | G30: 5.334896731 | H30: 7834.239416 | I30: Q-T6 | J30: 2065.34284
A31: lngop | B31: HX-11 | C31: 18310.29519 | D31: 12MPa | E31: -208948.2509 | F31: 0.2250639165 | G31: 5.434873495 | H31: 3107.495431 | I31: Q-TS | J31: 12757.5
A32: lngop | B32: HX-05 | C32: 880.0264866 | D32: 12MPb | E32: -61797.61792 | F32: 0.06656391648 | G32: 5.434873495 | H32: 3107.495431
A33: lngop | B33: HX-02 | C33: 5654.22394 | D33: 13LPa | E33: -39467.4828 | F33: 0.06656391648 | G33: 4.4 | H33: 1964.545025
A34: lngop | B34: HX-04 | C34: 9419.232097 | D34: 13LPb | E34: -123844.7206 | F34: 0.06656391648 | G34: 4.400314419 | H34: 6252.944763
A35: lngop | B35: HX-07 | C35: 1008.60621 | D35: 13LPc | E35: -123838.5422 | F35: 0.06656391648 | G35: 4.400314408 | H35: 6252.635368
A36: lngop | B36: HX-08 | C36: 19572.09837 | D36: 13LPd | E36: -124303.1002 | F36: 0.06656391648 | G36: 4.383104362 | H36: 6275.899125
A37: lngop | B37: HX-09 | C37: 13824.34645 | D37: 13MPa | E37: -32990.2317 | F37: 0.06656391648 | G37: 4.485 | H37: 1640.182545
A38: lngop | B38: HX-03 | C38: 32657.41636 | D38: 1HPa | E38: -4079435.487 | F38: 0.7839420391 | G38: 156.4331631 | H38: 20074.43288
A39: lngop | B39: HX-10 | C39: 15662.96947 | D39: 1HPb | E39: -3170684.212 | F39: 0.6093079924 | G39: 156.4331631 | H39: 20074.43288
A40: lngop | B40: HX-VLP | C40: 68596.12865 | D40: 1LPa | E40: -2800240.764 | F40: 0.4011639165 | G40: 150.7073901 | H40: 25877.32776
A41: mixerop | B41: MIX-100 | C41: 0 | D41: 1MPa | E41: -2217074.902 | F41: 0.3683525583 | G41: 150.7073735 | H41: 22676.94456
A42: mixerop | B42: MIX-Turb | C42: 59532.71804 | D42: 2HPa | E42: -3099837.976 | F42: 0.6093079924 | G42: 135.2348406 | H42: 19319.41661
A43: mixerop | B43: MIX-105 | C43: 4.63658124 | D43: 2K Return | E43: -648872.5386 | F43: 0.1491 | G43: 3.9 | H43: 14573.43542
A44: mixerop | B44: MIX-102-2 | C44: -1.370992774 | D44: 2LPa | E44: -2760367.939 | F44: 0.4011639165 | G44: 133.895983 | H44: 25255.01715
A45: mixerop | B45: MIX-106 | C45: -0.6515277191 | D45: 2MPa | E45: -2180447.266 | F45: 0.3683525583 | G45: 133.8959707 | H45: 22054.41694
A46: mixerop | B46: MIX-107 | C46: 0 | D46: 3HPa | E46: -2606875.744 | F46: 0.6093079924 | G46: 63.564069 | H46: 15374.56809
A47: mixerop | B47: MIX-108 | C47: -6.178362748 | D47: 3LPa | E47: -2410820.818 | F47: 0.4011639165 | G47: 60.54498186 | H47: 21080.51202
A48: mixerop | B48: MIX-102 | C48: 17.89038271 | D48: 3MPa | E48: -1863769.129 | F48: 0.3683525583 | G48: 60.54497285 | H48: 17916.88762
A49: mixerop | B49: MIX-103-2-2 | C49: 0 | D49: 4HPa | E49: -2427081.775 | F49: 0.6093079924 | G49: 50.53297062 | H49: 14160.82654
A50: mixerop | B50: MIX-103-2-3 | C50: -0.02177486429 | D50: 4HPb | E50: -2428959.631 | F50: 0.6093079924 | G50: 50.53836411 | H50: 14171.15442
A51: mixerop | B51: MIX-103-8 | C51: -9.19930175 | D51: 4LPa | E51: -2312240.594 | F51: 0.4011639165 | G51: 50.04642342 | H51: 20079.43623
A52: mixerop | B52: MIX-103-8-2 | C52: 1145.605781 | D52: 4LPb | E52: -2312240.594 | F52: 0.4011639165 | G52: 50.04642342 | H52: 20079.43623
A53: Outlet stream | B53: LHe | C53: 0 | D53: 4MPa | E53: -935389.9965 | F53: 0.1943185116 | G53: 50.04655954 | H53: 16913.92144
A54: Outlet stream | B54: To Buffer | C54: 0 | D54: 4MPb | E54: -1773136.152 | F54: 0.3683525583 | G54: 50.04649523 | H54: 16913.91472
A55: pipeseg | B55: PIPE-LP | C55: 6472.720179 | D55: 5HPa | E55: -2429362.116 | F55: 0.6093079924 | G55: 50.53857018 | H55: 14173.35081
A56: pipeseg | B56: PIPE-HP | C56: 2069.064766 | D56: 5HPb | E56: -2278431.987 | F56: 0.5714532265 | G56: 50.53857018 | H56: 14173.35081
A57: pipeseg | B57: PIPE-VLP | C57: 4361.26476 | D57: 5LPa | E57: -2312236.148 | F57: 0.4011639165 | G57: 50.04599682 | H57: 20079.3919
A58: pipeseg | B58: PIPE-MP | C58: 3198.47414 | D58: 5MPa | E58: -934916.9007 | F58: 0.1943185116 | G58: 50.04599191 | H58: 16905.80409
A59: tankop | B59: Dewar | C59: 84377.23777 | D59: 6HPa | E59: -1997173.016 | F59: 0.5714532265 | G59: 35.44808292 | H59: 12261.47619
A60: valveop | B60: VLV-JT | C60: 6477.251105 | D60: 6HPb | E60: -1449299.09 | F60: 0.4146894808 | G60: 35.44808292 | H60: 12261.47619
A61: valveop | B61: VLV-Dewar | C61: 464.5580341 | D61: 6LPa | E61: -2115692.262 | F61: 0.4011639165 | G61: 35.05168599 | H61: 18186.0794
A62: valveop | B62: VLV-T6 | C62: 1026.142812 | D62: 6MPa | E62: -840681.3059 | F62: 0.1943185116 | G62: 35.05168687 | H62: 15026.77588
A63: valveop | B63: VLV-LP/VLP | C63: 0 | D63: 7HPa | E63: -1446978.567 | F63: 0.4146894808 | G63: 35.29625049 | H63: 12240.04769
A64: valveop | B64: VLV-HP/LP | C64: 54366.3537 | D64: 7LPa | E64: -2113706.739 | F64: 0.4011639165 | G64: 34.93937886 | H64: 18167.62975
A65: valveop | B65: VLV-T3 | C65: 668.734289 | D65: 8HPa | E65: -1127527.224 | F65: 0.4146894808 | G65: 21.46621544 | H65: 9410.660254
A66: valveop | B66: VLV-T4 | C66: 1676.757138 | D66: 8HPb | E66: -1550674.974 | F66: 0.5603639165 | G66: 22.10126105 | H66: 9584.253304
A67: valveop | B67: VLV-T5 | C67: 6189.979666 | D67: 8HPc | E67: -1551573.308 | F67: 0.5603639165 | G67: 22.10094451 | H67: 9589.626799
A68: valveop | B68: VLV-T1 | C68: 849.732651 | D68: 8HPd | E68: -623172.112 | F68: 0.2250639165 | G68: 22.10094451 | H68: 9589.626799
A69: valveop | B69: VLV-T2 | C69: 1418.369422 | D69: 8LPa | E69: -1774683.298 | F69: 0.4011639165 | G69: 19.41327205 | H69: 15079.91217
A70: valveop | B70: VLV-HXVLP | C70: 869.9425183 | D70: 9HPa | E70: -454155.0009 | F70: 0.2250639165 | G70: 14.47509801 | H70: 6927.021477
D71: 9LPa | E71: -1591841.84 | F71: 0.4011639165 | G71: 14.33569713 | H71: 13471.14118
D72: CC1 | E72: -679157.0237 | F72: 0.1491 | G72: 6.962859888 | H72: 15303.28014
D73: CC2 | E73: -707697.9892 | F73: 0.1491 | G73: 12.43661247 | H73: 16035.80762
D74: From Buffer | E74: 0 | F74: 0 | G74: 300 | H74: 29542.23261
D75: From Subcooler | E75: -78878.76837 | F75: 0.1577 | G75: 4.5 | H75: 1655.630808
D76: From TS | E76: -627799.5695 | F76: 0.1567637457 | G76: 50.55191708 | H76: 14232.23678
D77: From Turbines | E77: -219882.0108 | F77: 0.0304 | G77: 279.8043456 | H77: 28954.14684
D78: From Turbines 2 | E78: -222056.266 | F78: 0.0304 | G78: 297.0180361 | H78: 29490.36155
D79: GHe Return | E79: -62819.21536 | F79: 0.0086 | G79: 300 | H79: 29542.23261
D80: HPa | E80: -797002.7206 | F80: 0.1456744357 | G80: 300 | H80: 23450.90075
D81: HPb | E81: -421132.2019 | F81: 0.1456744357 | G81: 23.93815845 | H81: 10032.29841
D82: HPc | E82: -422002.1444 | F82: 0.1456744357 | G82: 23.93215202 | H82: 10052.2045
D83: HP-LPa | E83: -161972.3476 | F83: 0.02961700438 | G83: 299.995644 | H83: 23443.48169
D84: HP-LPb | E84: -216338.7013 | F84: 0.02961700438 | G84: 301.1627568 | H84: 29562.30372
D85: LevelCompensation | E85: 0 | F85: 0 | G85: 4.400314419 | H85: 6252.944763
D86: LHe | E86: 0 | F86: 0 | G86: 4.400314419 | H86: 1809.326236
D87: LP-VLPa | E87: 0 | F87: 0 | G87: 297.016791 | H87: 29451.15191
D88: LP-VLPb | E88: 0 | F88: 0 | G88: 297.057504 | H88: 31413.95925
D89: Supply 2K | E89: -74577.19952 | F89: 0.1491 | G89: 4.5 | H89: 1655.630808
D90: Supply LHe | E90: -4301.568852 | F90: 0.0086 | G90: 4.5 | H90: 1655.630808
D91: T1_Loss | E91: -1619.307683 | F91: 0.0003 | G91: 135.2348406 | H91: 20345.52143
D92: T1Ha | E92: -908751.2748 | F92: 0.1746340467 | G92: 156.4331631 | H92: 20074.43288
D93: T1Hb | E93: -909601.0075 | F93: 0.1746340467 | G93: 156.4423629 | H93: 20090.65219
D94: T1La | E94: -942620.8452 | F94: 0.1746340467 | G94: 135.2348406 | H94: 20345.52143
D95: T1Lb | E95: -941001.5375 | F95: 0.1743340467 | G95: 135.2348406 | H95: 20345.52143
D96: T2_Loss | E96: -1444.107391 | F96: 0.0003 | G96: 50.04642342 | H96: 16913.90763
D97: T2Ha | E97: -800395.9277 | F97: 0.1743340467 | G97: 63.564069 | H97: 16411.93636
D98: T2Hb | E98: -801814.2971 | F98: 0.1743340467 | G98: 63.56974541 | H98: 16439.05612
D99: T2La | E99: -839190.2847 | F99: 0.1743340467 | G99: 50.04642342 | H99: 16913.90763
D100: T2Lb | E100: -837746.1773 | F100: 0.1740340467 | G100: 50.04642342 | H100: 16913.90763
D101: T3_Loss | E101: -1295.817407 | F101: 0.0003 | G101: 34.93937886 | H101: 15001.74727
D102: T3Ha | E102: -150930.1294 | F102: 0.03785476588 | G102: 50.53857018 | H102: 14173.35081
D103: T3Hb | E103: -151598.8637 | F103: 0.03785476588 | G103: 50.55191708 | H103: 14232.23678
D104: T3Hc | E104: -779389.2339 | F104: 0.1946185116 | G104: 50.55191708 | H104: 14232.07921
D105: T3La | E105: -840633.5171 | F105: 0.1946185116 | G105: 34.93937886 | H105: 15001.74727
D106: T3Lb | E106: -839337.6997 | F106: 0.1943185116 | G106: 34.93937886 | H106: 15001.74727
D107: T4_Loss | E107: -913.6668596 | F107: 0.0003 | G107: 14.47509801 | H107: 10387.00126
D108: T4Ha | E108: -928401.1956 | F108: 0.3353 | G108: 22.10094451 | H108: 9589.626799
D109: T4Hb | E109: -930077.9528 | F109: 0.3353 | G109: 22.09484073 | H109: 9606.296022
D110: T4La | E110: -1021174.993 | F110: 0.3353 | G110: 14.47509801 | H110: 10387.00126
D111: T4Lb | E111: -1020261.327 | F111: 0.335 | G111: 14.47509801 | H111: 10387.00126
D112: T5_Loss | E112: -1204.560116 | F112: 0.0004 | G112: 7.831011114 | H112: 10164.33411
D113: T5Ha | E113: -922765.9576 | F113: 0.335 | G113: 12.15013411 | H113: 9371.621705
D114: T5Hb | E114: -928955.9373 | F114: 0.335 | G114: 12.11841955 | H114: 9433.213543
D115: T5La | E115: -1008819.097 | F115: 0.335 | G115: 7.831011114 | H115: 10164.33411
D116: T5Lb | E116: -1007614.537 | F116: 0.3346 | G116: 7.831011114 | H116: 10164.33411
D117: T6_Loss | E117: -742.7161283 | F117: 0.0008 | G117: 5.434873495 | H117: 3107.495431
D118: To Buffer | E118: 0 | F118: 0 | G118: 299.995644 | H118: 23443.48169
D119: To Subcooler | E119: -146407.9168 | F119: 0.1577 | G119: 5.434873495 | H119: 3107.495431
D120: To TS | E120: -547873.9263 | F120: 0.1567637457 | G120: 35.44808292 | H120: 12261.47619
D121: Turbine Bearings | E121: -153129.1171 | F121: 0.028 | G121: 299.995644 | H121: 23443.48169
D122: VLPa | E122: -726192.3807 | F122: 0.1491 | G122: 18.10338179 | H122: 16547.28886

Sheet TSAuxData (hidden)
A1: Valve | B1: T1 | C1: T2 | D1: T3 | E1: T4 | F1: T5 | G1: T6 | H1: T7 | I1: T8 | J1: T9 | K1: T10 | L1: S1 | M1: S2 | N1: S3 | O1: S4 | P1: S5 | Q1: S6 | R1: S7 | S1: S8 | T1: S9 | U1: S10 | W1: Turbine | X1: Up 1 | Y1: Up 2 | Z1: Up 3 | AA1: Up 4 | AB1: Up 5 | AC1: Up 6 | AD1: Down 1 | AE1: Down 2 | AF1: Down 3 | AG1: Down 4 | AH1: Down 5 | AI1: Down 6
A2: VLV-JT | B2: 4.485006038 | C2: 4.496105963 | D2: 4.505455784 | E2: 4.512890325 | F2: 4.518232129 | G2: 4.521262181 | H2: 4.521725152 | I2: 4.519299568 | J2: 4.513601595 | K2: 4.398830592 | L2: 1644.986052 | M2: 1674.931689 | N2: 1711.9443 | O2: 1744.017893 | P2: 1778.694095 | Q2: 1815.144183 | R2: 1854.883453 | S2: 1888.856025 | T2: 1925.196473 | U2: 1964.541413 | BJ2: 573.1595502 | BK2: 27247.43271
A3: VLV-Dewar | B3: 4.400314408 | C3: 4.397988174 | D3: 4.399349781 | E3: 4.397032113 | F3: 4.394713407 | G3: 4.392393665 | H3: 4.390072888 | I3: 4.387751078 | J3: 4.385428235 | K3: 4.383104362 | L3: 4.380789976 | M3: 4.378472953 | N3: 4.376154872 | O3: 4.373835735 | P3: 6263.092361 | Q3: 6265.641279 | R3: 6268.196388 | S3: 6270.757715 | T3: 6273.325285 | U3: 6275.899125 | V3: 6278.479302 | W3: 6281.065797 | X3: 6283.658644 | Y3: 6286.257871
A4: VLV-T6 | B4: 6.98888493 | C4: 6.990263629 | D4: 6.991640132 | E4: 6.993014437 | F4: 6.99438654 | G4: 6.995756439 | H4: 6.997124131 | I4: 6.998489613 | J4: 6.999852883 | K4: 7.001213938 | L4: 2453.432732 | M4: 2455.120544 | N4: 2456.808599 | O4: 2458.496834 | P4: 2460.185271 | Q4: 2461.873911 | R4: 2463.562756 | S4: 2465.251807 | T4: 2466.941065 | U4: 2468.63053 | W4: T-6 | X4: 12HPb | Y4: 12HPa | AD4: 12MPa | AE4: To Subcooler | AF4: From Subcooler | AG4: Supply 2K | AH4: 2K Return | AI4: CC1
A5: VLV-LP/VLP | B5: 297.016791 | C5: 297.0213147 | D5: 297.0258384 | E5: 297.0303621 | F5: 297.0348858 | G5: 297.0394095 | H5: 297.0439331 | I5: 297.0484567 | J5: 297.0529804 | K5: 297.057504 | L5: 29451.13734 | M5: 29597.28299 | N5: 29754.48446 | O5: 29924.56592 | P5: 30109.79824 | Q5: 30313.1674 | R5: 30538.53769 | S5: 30791.46171 | T5: 31079.48817 | U5: 31413.95925 | W5: T-3 | X5: T3Hc | AD5: T3La | AE5: T3Lb
A6: VLV-HP/LP | B6: 299.995644 | C6: 300.1253541 | D6: 300.2550579 | E6: 300.3847549 | F6: 300.5144444 | G6: 300.6441257 | H6: 300.7737983 | I6: 300.9034614 | J6: 301.0331145 | K6: 301.1627568 | L6: 23443.48169 | M6: 23676.38472 | N6: 23938.2095 | O6: 24237.25275 | P6: 24585.98856 | Q6: 25004.44957 | R6: 25527.9192 | S6: 26227.87001 | T6: 27288.77912 | U6: 29562.30372 | W6: T-4 | X6: T4Hb | Y6: T4Ha | Z6: 8HPc | AA6: 8HPb | AD6: T4La | AE6: T4Lb
A7: VLV-T3 | B7: 50.53857018 | C7: 50.54005492 | D7: 50.54153923 | E7: 50.5430231 | F7: 50.54450652 | G7: 50.54598951 | H7: 50.54747206 | I7: 50.54895417 | J7: 50.55043584 | K7: 50.55191708 | L7: 14173.35081 | M7: 14179.80203 | N7: 14186.27153 | O7: 14192.75942 | P7: 14199.26581 | Q7: 14205.79081 | R7: 14212.33454 | S7: 14218.89711 | T7: 14225.47863 | U7: 14232.07921 | W7: T-5 | X7: T5Hb | Y7: T5Ha | AD7: T5La | AE7: T5Lb | AF7: 11LPb
A8: VLV-T4 | B8: 22.10094451 | C8: 22.10026905 | D8: 22.0995929 | E8: 22.09891608 | F8: 22.09823856 | G8: 22.09756037 | H8: 22.09688148 | I8: 22.09620192 | J8: 22.09552167 | K8: 22.09484073 | L8: 9589.626799 | M8: 9591.470206 | N8: 9593.3151 | O8: 9595.161483 | P8: 9597.009357 | Q8: 9598.858726 | R8: 9600.709591 | S8: 9602.561955 | T8: 9604.415822 | U8: 9606.271193 | W8: T-1 | X8: T1Hb | Y8: T1Ha | Z8: 1HPa | AD8: T1La | AE8: T1Lb
A9: VLV-T5 | B9: 12.15013411 | C9: 12.14662563 | D9: 12.14311332 | E9: 12.13959717 | F9: 12.13607718 | G9: 12.13255334 | H9: 12.12902567 | I9: 12.12549414 | J9: 12.12195877 | K9: 12.11841955 | L9: 9371.621705 | M9: 9378.365542 | N9: 9385.133888 | O9: 9391.926918 | P9: 9398.744811 | Q9: 9405.587745 | R9: 9412.455901 | S9: 9419.349463 | T9: 9426.268614 | U9: 9433.213543 | W9: T-2 | X9: T2Hb | Y9: T2Ha | AD9: T2La | AE9: T2Lb | AF9: 4MPb
A10: VLV-T1 | B10: 156.4331631 | C10: 156.4341853 | D10: 156.4352075 | E10: 156.4362296 | F10: 156.4372518 | G10: 156.438274 | H10: 156.4392962 | I10: 156.4403184 | J10: 156.4413406 | K10: 156.4423629 | L10: 20074.43288 | M10: 20076.22411 | N10: 20078.01682 | O10: 20079.81102 | P10: 20081.60672 | Q10: 20083.40392 | R10: 20085.20262 | S10: 20087.00283 | T10: 20088.80453 | U10: 20090.60775
A11: VLV-T2 | B11: 63.564069 | C11: 63.56469971 | D11: 63.56533042 | E11: 63.56596113 | F11: 63.56659184 | G11: 63.56722256 | H11: 63.56785327 | I11: 63.56848398 | J11: 63.56911469 | K11: 63.56974541 | L11: 16411.93636 | M11: 16414.90116 | N11: 16417.86998 | O11: 16420.84285 | P11: 16423.81977 | Q11: 16426.80076 | R11: 16429.78582 | S11: 16432.77496 | T11: 16435.7682 | U11: 16438.76555
A12: VLV-HXVLP | B12: 23.93815845 | C12: 23.93749424 | D12: 23.93682924 | E12: 23.93616344 | F12: 23.93549686 | G12: 23.93482948 | H12: 23.9341613 | I12: 23.93349233 | J12: 23.93282257 | K12: 23.93215202 | L12: 10032.29841 | M12: 10034.50172 | N12: 10036.70713 | O12: 10038.91467 | P12: 10041.12432 | Q12: 10043.33609 | R12: 10045.54999 | S12: 10047.76602 | T12: 10049.98419 | U12: 10052.2045

Sheet DS_HX_Template (hidden)
E2: Job nbr : | F2: XXX | H2: Document number
E3: Name : | F3: ZZZZ
H4: XXX-DS-YYY
A5: PROCESS | H5: Reference
A6: DATA | C6: PLATE-FIN HEAT EXCHANGER
H7: Exch_Spec_HX-01.xls
B9: Type : | C9: Horizontal/Vertical Aluminum brazed PFHE
G11: Run :
A12: OPERATING CONDITIONS
A13: Fluid | C13: Units
A14: Nozzle name | B14: in
B15: out
A16: Fluid components | C16: molar %
A21: Liquid | B21: inlet | C21: %
A22: fraction | B22: outlet | C22: %
A23: Flowrate | C23: g/s
A24: Maximum flowrate | C24: g/s
A25: Operating | B25: inlet | C25: bar abs
A26: pressure | B26: outlet | C26: bar abs
A27: Operating | B27: inlet | C27: K
A28: temperat. | B28: outlet | C28: K
A29: Pressure | B29: expected | C29: mbar
A30: drop | B30: guaranteed | C30: mbar
A31: Duty | C31: W
G32: Heat leak | I32: W
A33: Design pressure | C33: bar g
A34: Design temperature | C34: °C
A36: CORES CHARACTERISTICS
A37: Exchange | B37: type
A38: fins | B38: ht x thick | C38: mm x mm
B39: density | C39: FPI
A40: Distribution | B40: type
A41: fins | B41: ht x thick | C41: mm x mm
B42: density | C42: FPI
A43: Distributors | B43: inlet | C43: mm
A44: length | B44: outlet | C44: mm
A45: Number of layers
A46: Effective width | C46: m
A47: Effective length | C47: m
A48: Headers | B48: inlet | C48: ND
A49: ND | B49: outlet | C49: ND
A50: Nozzles | B50: inlet | C50: ND
A51: ND | B51: outlet | C51: ND
A52: Manifolds | B52: inlet
A53: ND | B53: outlet
A54: Cores number | E54: Thickness | F54: Parting sheets : | I54: mm
A55: Cores dimensions | C55: Width | F55: Side sheets : | I55: mm
A56: m | C56: Length | E56: Stacking Arrangement :
C57: Height
A59: Notes :
A64: Revision | B64: DATE | C64: BY | E64: VISA | F64: CHECKED | H64: VISA | I64: Page

Sheet Streams Summary
A1: Name | B1: Fluid Package | C1: Property Package | D1: Temperature | E1: Pressure | F1: Vapour fraction | G1: Molecular weight | H1: Mass | I1: Flow | J1: Composition | K1: Enthalpy | L1: Entropy | M1: Heat capacity cp | N1: Density | O1: Molar | P1: Flow | Q1: Composition | R1: Enthalpy | S1: Entropy | T1: Heat capacity cp | U1: Density | V1: Volume Flow | W1: Compressibility | X1: Dynamic Viscosity | Y1: Kinematic viscosity | Z1: Thermal conductivity
A2: 0HPa | B2: Basis-He | C2: MBWR | D2: 300 | E2: 19.74 | F2: 1 | G2: 4.002980232 | I2: 783.9420391 | J2: Helium:1 | K2: 1564.147465 | L2: 23.45090075 | M2: 5.191137824 | N2: 3.139641794 | P2: 15802.25401 | Q2: Helium:1 | R2: 6261.251383 | S2: 93.87349213 | T2: 20.78002209 | U2: 0.7843260799 | V2: 898.8895952 | W2: 1.009026337 | X2: 8.5058332e-05 | Y2: 0.002709173135 | Z2: 0
A3: 0HPb | B3: Basis-He | C3: MBWR | D3: 300 | E3: 19.74 | F3: 1 | G3: 4.002980232 | I3: 929.6164748 | J3: Helium:1 | K3: 1564.147465 | L3: 23.45090075 | M3: 5.191137824 | N3: 3.139641794 | P3: 18738.67574 | Q3: Helium:1 | R3: 6261.251383 | S3: 93.87349213 | T3: 20.78002209 | U3: 0.7843260799 | V3: 1065.923927 | W3: 1.009026337 | X3: 8.5058332e-05 | Y3: 0.002709173135 | Z3: 0
A4: 0HPc | B4: Basis-He | C4: MBWR | D4: 299.995644 | E4: 19.81 | F4: 1 | G4: 4.002980232 | I4: 929.6164748 | J4: Helium:1 | K4: 1564.147465 | L4: 23.44348169 | M4: 5.191132976 | N4: 3.150720534 | P4: 18738.67574 | Q4: Helium:1 | R4: 6261.251383 | S4: 93.84379377 | T4: 20.78000268 | U4: 0.7870937029 | V4: 1062.175865 | W4: 1.009058519 | X4: 8.505374758e-05 | Y4: 0.002699501485 | Z4: 0
A5: 0HPd | B5: Basis-He | C5: MBWR | D5: 299.995644 | E5: 19.81 | F5: 1 | G5: 4.002980232 | I5: 987.2334792 | J5: Helium:1 | K5: 1564.147465 | L5: 23.44348169 | M5: 5.191132976 | N5: 3.150720534 | P5: 19900.08627 | Q5: Helium:1 | R5: 6261.251383 | S5: 93.84379377 | T5: 20.78000268 | U5: 0.7870937029 | V5: 1128.008812 | W5: 1.009058519 | X5: 8.505374758e-05 | Y5: 0.002699501485 | Z5: 0
A6: 0HPe | B6: Basis-He | C6: MBWR | D6: 300 | E6: 20.31 | F6: 1 | G6: 4.002980232 | I6: 987.2334792 | J6: Helium:1 | K6: 1564.331597 | L6: 23.39184747 | M6: 5.191098102 | N6: 3.229464133 | P6: 19900.08627 | Q6: Helium:1 | R6: 6261.988459 | S6: 93.63710302 | T6: 20.77986309 | U6: 0.8067649465 | V6: 1100.504721 | W6: 1.009287543 | X6: 8.505898836e-05 | Y6: 0.002633842175 | Z6: 0
A7: 0HPf | B7: Basis-He | C7: MBWR | D7: 598.695343 | E7: 20.31 | F7: 1 | G7: 4.002980232 | I7: 987.2334792 | J7: Helium:1 | K7: 3114.824536 | L7: 26.97861609 | M7: 5.191061607 | N7: 1.626461798 | P7: 19900.08627 | Q7: Helium:1 | R7: 12468.58105 | S7: 107.9948669 | T7: 20.779717 | U7: 0.4063127229 | V7: 2185.136183 | W7: 1.004192299 | X7: 0.0009936838659 | Y7: 0.06109481743 | Z7: 0
A8: 0LPa | B8: Basis-He | C8: MBWR | D8: 297.016791 | E8: 1.07 | F8: 1 | G8: 4.002980232 | I8: 401.1639165 | J8: Helium:1 | K8: 1542.62603 | L8: 29.45113734 | M8: 5.192500874 | N8: 0.1733595664 | P8: 8086.432151 | Q8: Helium:1 | R8: 6175.101505 | S8: 117.8923206 | T8: 20.78547836 | U8: 0.04330762492 | V8: 8330.605163 | W8: 1.000487516 | X8: 8.188738431e-05 | Y8: 0.04723557286 | Z8: 0
A9: 0LPb | B9: Basis-He | C9: MBWR | D9: 297.016791 | E9: 1.07 | F9: 1 | G9: 4.002980232 | I9: 550.2639165 | J9: Helium:1 | K9: 1542.62603 | L9: 29.45113734 | M9: 5.192500874 | N9: 0.1733595664 | P9: 11091.90444 | Q9: Helium:1 | R9: 6175.101505 | S9: 117.8923206 | T9: 20.78547836 | U9: 0.04330762492 | V9: 11426.82887 | W9: 1.000487516 | X9: 8.188738431e-05 | Y9: 0.04723557286 | Z9: 0
A10: 0LPd | B10: Basis-He | C10: MBWR | D10: 297.0180361 | E10: 1.05 | F10: 1 | G10: 4.002980232 | I10: 550.2639165 | J10: Helium:1 | K10: 1542.62603 | L10: 29.49034714 | M10: 5.192502372 | N10: 0.1701200539 | P10: 11091.90444 | Q10: Helium:1 | R10: 6175.101505 | S10: 118.0492766 | T10: 20.78548435 | U10: 0.04249834974 | V10: 11644.42436 | W10: 1.000478304 | X10: 8.188863554e-05 | Y10: 0.04813579214 | Z10: 0
A11: 0LPe | B11: Basis-He | C11: MBWR | D11: 477.9664 | E11: 1.12 | F11: 1 | G11: 4.002980232 | I11: 149.1 | J11: Helium:1 | K11: 2482.218687 | L11: 31.8266332 | M11: 5.192485325 | N11: 0.1127843944 | P11: 3005.472287 | Q11: Helium:1 | R11: 9936.272335 | S11: 127.4013836 | T11: 20.78541611 | U11: 0.02817510652 | V11: 4759.169056 | W11: 1.000295587 | X11: 0.0004669099325 | Y11: 0.4139845187 | Z11: 0
A12: 0LPf | B12: Basis-He | C12: MBWR | D12: 297.016791 | E12: 1.07 | F12: 1 | G12: 4.002980232 | I12: 149.1 | J12: Helium:1 | K12: 1542.62603 | L12: 29.45115191 | M12: 5.192500874 | N12: 0.1733590804 | P12: 3005.472287 | Q12: Helium:1 | R12: 6175.101505 | S12: 117.8923789 | T12: 20.78547835 | U12: 0.0433075035 | V12: 3096.232391 | W12: 1.000490321 | X12: 8.188738431e-05 | Y12: 0.04723570528 | Z12: 0
A13: 0LPg | B13: Basis-He | C13: MBWR | D13: 297.016791 | E13: 1.07 | F13: 1 | G13: 4.002980232 | I13: 149.1 | J13: Helium:1 | K13: 1542.62603 | L13: 29.45115191 | M13: 5.192500874 | N13: 0.1733590804 | P13: 3005.472287 | Q13: Helium:1 | R13: 6175.101505 | S13: 117.8923789 | T13: 20.78547835 | U13: 0.0433075035 | V13: 3096.232391 | W13: 1.000490321 | X13: 8.188738431e-05 | Y13: 0.04723570528 | Z13: 0
A14: 0LPh | B14: Basis-He | C14: MBWR | D14: 297.2578223 | E14: 1.05 | F14: 1 | G14: 4.002980232 | I14: 618.8809209 | J14: Helium:1 | K14: 1543.871118 | L14: 29.49453736 | M14: 5.19250227 | N14: 0.169982902 | P14: 12475.04666 | Q14: Helium:1 | R14: 6180.085568 | S14: 118.06605 | T14: 20.78548394 | U14: 0.0424640873 | V14: 13107.03187 | W14: 1.000477849 | X14: 8.213866712e-05 | Y14: 0.04832172303 | Z14: 0
A15: 0MPa | B15: Basis-He | C15: MBWR | D15: 640.8777577 | E15: 5 | F15: 1 | G15: 4.002980232 | I15: 618.8809209 | J15: Helium:1 | K15: 3329.277495 | L15: 30.24236867 | M15: 5.192224825 | N15: 0.3752666041 | P15: 12475.04666 | Q15: Helium:1 | R15: 13327.032 | S15: 121.059604 | T15: 20.78437333 | U15: 0.09374680422 | V15: 5937.035938 | W15: 1.000948188 | X15: 0.001237222166 | Y15: 0.3296915186 | Z15: 0
A16: 0MPb | B16: Basis-He | C16: MBWR | D16: 300 | E16: 5 | F16: 1 | G16: 4.002980232 | I16: 618.8809209 | J16: Helium:1 | K16: 1559.385824 | L16: 26.30122285 | M16: 5.19220318 | N16: 0.8006012046 | P16: 12475.04666 | Q16: Helium:1 | R16: 6242.190628 | S16: 105.2832752 | T16: 20.78428669 | U16: 0.2000012886 | V16: 2782.872799 | W16: 1.00228036 | X16: 8.504240971e-05 | Y16: 0.01062231848 | Z16: 0
A17: 0MPc | B17: Basis-He | C17: MBWR | D17: 297.0167906 | E17: 5.07 | F17: 1 | G17: 4.002980232 | I17: 368.3525583 | J17: Helium:1 | K17: 1543.919038 | L17: 26.22046518 | M17: 5.192204007 | N17: 0.8199155887 | P17: 7425.039612 | Q17: Helium:1 | R17: 6180.27739 | S17: 104.9600038 | T17: 20.78429 | U17: 0.2048262897 | V17: 1617.324062 | W17: 1.00233876 | X17: 8.189149111e-05 | Y17: 0.009987795359 | Z17: 0
A18: 0MPd | B18: Basis-He | C18: MBWR | D18: 297.0211487 | E18: 5 | F18: 1 | G18: 4.002980232 | I18: 368.3525583 | J18: Helium:1 | K18: 1543.919038 | L18: 26.24940914 | M18: 5.192209145 | N18: 0.8086095271 | P18: 7425.039612 | Q18: Helium:1 | R18: 6180.27739 | S18: 105.0758659 | T18: 20.78431057 | U18: 0.2020018786 | V18: 1639.937653 | W18: 1.002306362 | X18: 8.189595487e-05 | Y18: 0.01012799777 | Z18: 0
A19: 0MPe | B19: Basis-He | C19: MBWR | D19: 298.8885427 | E19: 5 | F19: 1 | G19: 4.002980232 | I19: 987.2334792 | J19: Helium:1 | K19: 1553.614919 | L19: 26.28195073 | M19: 5.192205362 | N19: 0.803570622 | P19: 19900.08627 | Q19: Helium:1 | R19: 6219.089811 | S19: 105.2061293 | T19: 20.78429543 | U19: 0.2007430903 | V19: 4422.810426 | W19: 1.002289997 | X19: 8.385806254e-05 | Y19: 0.01043568048 | Z19: 0
A20: 0VLPa | B20: Basis-He | C20: MBWR | D20: 290 | E20: 0.436 | F20: 1 | G20: 4.002980232 | I20: 149.1 | J20: Helium:1 | K20: 1505.986117 | L20: 31.19162884 | M20: 5.192549775 | N20: 0.07236974587 | P20: 3005.472287 | Q20: Helium:1 | R20: 6028.432655 | S20: 124.8594737 | T20: 20.7856741 | U20: 0.01807896659 | V20: 7416.911495 | W20: 1.000203002 | X20: 7.482030189e-05 | Y20: 0.1033861609 | Z20: 0
A21: 0VLPb | B21: Basis-He | C21: MBWR | D21: 290.001247 | E21: 0.416 | F21: 1 | G21: 4.002980232 | I21: 149.1 | J21: Helium:1 | K21: 1505.986117 | L21: 31.28913085 | M21: 5.192551216 | N21: 0.06905104105 | P21: 3005.472287 | Q21: Helium:1 | R21: 6028.432655 | S21: 125.2497723 | T21: 20.78567987 | U21: 0.01724990808 | V21: 7773.380268 | W21: 1.000184096 | X21: 7.482150351e-05 | Y21: 0.1083568073 | Z21: 0
A22: 0VLPc | B22: Basis-He | C22: MBWR | D22: 290.001247 | E22: 0.416 | F22: 1 | G22: 4.002980232 | I22: 149.1 | J22: Helium:1 | K22: 1505.986117 | L22: 31.28913085 | M22: 5.192551216 | N22: 0.06905104105 | P22: 3005.472287 | Q22: Helium:1 | R22: 6028.432655 | S22: 125.2497723 | T22: 20.78567987 | U22: 0.01724990808 | V22: 7773.380268 | W22: 1.000184096 | X22: 7.482150351e-05 | Y22: 0.1083568073 | Z22: 0
A23: 10HPa | B23: Basis-He | C23: MBWR | D23: 12.15013411 | E23: 19.375 | F23: 1 | G23: 4.002980232 | I23: 225.0639165 | J23: Helium:1 | K23: 44.31020267 | L23: 5.730800162 | M23: 6.936637626 | N23: 84.62083004 | P23: 4536.709349 | Q23: Helium:1 | R23: 177.3728654 | S23: 22.94027976 | T23: 27.76722329 | U23: 21.13945739 | V23: 9.574830441 | W23: 0.9072773493 | X23: 3.352604231e-06 | Y23: 3.961913667e-06 | Z23: 0
A24: 10LPa | B24: Basis-He | C24: MBWR | D24: 10.55648741 | E24: 1.169100261 | F24: 1 | G24: 4.002980232 | I24: 401.1639165 | J24: Helium:1 | K24: 52.98422443 | L24: 11.82185197 | M24: 5.437049465 | N24: 5.479495194 | P24: 8086.432151 | Q24: Helium:1 | R24: 212.094803 | S24: 47.32263974 | T24: 21.76440153 | U24: 1.368853923 | V24: 263.5626181 | W24: 0.9730798574 | X24: 1.518322445e-06 | Y24: 2.770916646e-05 | Z24: 0
A25: 11HPa | B25: Basis-He | C25: MBWR | D25: 7.923794414 | E25: 19.355 | F25: 1 | G25: 4.002980232 | I25: 225.0639165 | J25: Helium:1 | K25: 17.46304544 | L25: 3.047665492 | M25: 5.100542165 | N25: 131.5052217 | P25: 4536.709349 | Q25: Helium:1 | R25: 69.9042257 | S25: 12.19974472 | T25: 20.41736946 | U25: 32.85182891 | V25: 6.161200968 | W25: 0.8942803512 | X25: 5.056887905e-06 | Y25: 3.845389438e-06 | Z25: 0
A26: 11LPa | B26: Basis-He | C26: MBWR | D26: 7.831011114 | E26: 1.170818763 | F26: 1 | G26: 4.002980232 | I26: 66.56391648 | J26: Helium:1 | K26: 37.89994248 | L26: 10.16433411 | M26: 5.673538768 | N26: 7.691544973 | P26: 1341.757252 | Q26: Helium:1 | R26: 151.7127206 | S26: 40.68762852 | T26: 22.71106354 | U26: 1.921454648 | V26: 31.15500204 | W26: 0.9358687791 | X26: 1.308016693e-06 | Y26: 1.700590321e-05 | Z26: 0
A27: 11LPb | B27: Basis-He | C27: MBWR | D27: 7.831011114 | E27: 1.170818763 | F27: 1 | G27: 4.002980232 | I27: 401.1639165 | J27: Helium:1 | K27: 37.89994248 | L27: 10.16432272 | M27: 5.673541149 | N27: 7.691563325 | P27: 8086.432151 | Q27: Helium:1 | R27: 151.7127206 | S27: 40.68758292 | T27: 22.71107307 | U27: 1.921459233 | V27: 187.7628823 | W27: 0.9358665461 | X27: 1.308016852e-06 | Y27: 1.70058647e-05 | Z27: 0
A28: 12HPa | B28: Basis-He | C28: MBWR | D28: 6.98888493 | E28: 19.345 | F28: 1 | G28: 4.002980232 | I28: 225.0639165 | J28: Helium:1 | K28: 13.03016338 | L28: 2.453432732 | M28: 4.384200724 | N28: 141.2599042 | P28: 4536.709349 | Q28: Helium:1 | R28: 52.15948643 | S28: 9.821042726 | T28: 17.54986883 | U28: 35.28868394 | V28: 5.735740115 | W28: 0.9434060272 | X28: 5.746676383e-06 | Y28: 4.068158204e-06 | Z28: 0
A29: 12HPb | B29: Basis-He | C29: MBWR | D29: 7.001213938 | E29: 19.195 | F29: 1 | G29: 4.002980232 | I29: 225.0639165 | J29: Helium:1 | K29: 13.03016338 | L29: 2.46863053 | M29: 4.407687982 | N29: 140.8596836 | P29: 4536.709349 | Q29: Helium:1 | R29: 52.15948643 | S29: 9.881879213 | T29: 17.64388786 | U29: 35.18870327 | V29: 5.752036911 | W29: 0.9370974781 | X29: 5.712555488e-06 | Y29: 4.055493625e-06 | Z29: 0
A30: 12LPa | B30: Basis-He | C30: MBWR | D30: 5.334896731 | E30: 1.171773486 | F30: 1 | G30: 4.002980232 | I30: 66.56391648 | J30: Helium:1 | K30: 22.83622868 | L30: 7.834239416 | M30: 6.747621838 | N30: 12.94546236 | P30: 1341.757252 | Q30: Helium:1 | R30: 91.412972 | S30: 31.36030552 | T30: 27.01059683 | U30: 3.233956104 | V30: 18.51074089 | W30: 0.8168772354 | X30: 1.098218855e-06 | Y30: 8.483427048e-06 | Z30: 0
A31: 12MPa | B31: Basis-He | C31: MBWR | D31: 5.434873495 | E31: 3.01 | F31: 1 | G31: 4.002980232 | I31: 225.0639165 | J31: Helium:1 | K31: 3.853468723 | L31: 3.107495431 | M31: 19.30476934 | N31: 94.68442287 | P31: 4536.709349 | Q31: Helium:1 | R31: 15.42535912 | S31: 12.43924278 | T31: 77.27661005 | U31: 23.6534825 | V31: 8.557163626 | W31: 0.2816146408 | X31: 2.607626459e-06 | Y31: 2.754018433e-06 | Z31: 0
A32: 12MPb | B32: Basis-He | C32: MBWR | D32: 5.434873495 | E32: 3.01 | F32: 1 | G32: 4.002980232 | I32: 66.56391648 | J32: Helium:1 | K32: 3.853468723 | L32: 3.107495431 | M32: 19.30476934 | N32: 94.68442287 | P32: 1341.757252 | Q32: Helium:1 | R32: 15.42535912 | S32: 12.43924278 | T32: 77.27661005 | U32: 23.6534825 | V32: 2.53082917 | W32: 0.2816146408 | X32: 2.607626459e-06 | Y32: 2.754018433e-06 | Z32: 0
A33: 13LPa | B33: Basis-He | C33: MBWR | D33: 4.4 | E33: 1.192728209 | F33: 0.03503120373 | G33: 4.002980232 | I33: 66.56391648 | J33: Helium:1 | K33: -3.562583609 | L33: 1.964545025 | M33: 6.243571242 | N33: 103.029964 | P33: 1341.757252 | Q33: Helium:1 | R33: -14.26095176 | S33: 7.864034899 | T33: 24.99289226 | U33: 25.73831447 | V33: 2.325829205 | X33: --- | Y33: --- | Z33: ---
A34: 13LPb | B34: Basis-He | C34: MBWR | D34: 4.400314419 | E34: 1.192728209 | F34: 1 | G34: 4.002980232 | I34: 66.56391648 | J34: Helium:1 | K34: 15.34506058 | L34: 6.252944763 | M34: 10.2807637 | N34: 20.03306422 | P34: 1341.757252 | Q34: Helium:1 | R34: 61.42597417 | S34: 25.03041428 | T34: 41.15369385 | U34: 5.004537384 | V34: 11.9617297 | W34: 0.6514290293 | X34: 1.03524567e-06 | Y34: 5.167685076e-06 | Z34: 0
A35: 13LPc | B35: Basis-He | C35: MBWR | D35: 4.400314408 | E35: 1.192728209 | F35: 1 | G35: 4.002980232 | I35: 66.56391648 | J35: Helium:1 | K35: 15.34506058 | L35: 6.252635368 | M35: 10.28238093 | N35: 20.03496677 | P35: 1341.757252 | Q35: Helium:1 | R35: 61.42597417 | S35: 25.02917578 | T35: 41.16016758 | U35: 5.005012667 | V35: 11.9605938 | W35: 0.6513671702 | X35: 1.035258813e-06 | Y35: 5.167259945e-06 | Z35: 0
A36: 13LPd | B36: Basis-He | C36: MBWR | D36: 4.383104362 | E36: 1.172728209 | F36: 0.9980669559 | G36: 4.002980232 | I36: 66.56391648 | J36: Helium:1 | K36: 15.34506058 | L36: 6.275899125 | M36: 10.10645817 | N36: 19.67414112 | P36: 1341.757252 | Q36: Helium:1 | R36: 61.42597417 | S36: 25.12230014 | T36: 40.45595228 | U36: 4.914873414 | V36: 12.17995225 | X36: --- | Y36: --- | Z36: ---
A37: 13MPa | B37: Basis-He | C37: MBWR | D37: 4.485 | E37: 3 | F37: 0 | G37: 4.002980232 | I37: 66.56391648 | J37: Helium:1 | K37: -3.562583609 | L37: 1.640182545 | M37: 4.607541828 | N37: 129.8440933 | P37: 1341.757252 | Q37: Helium:1 | R37: -14.26095176 | S37: 6.565618304 | T37: 18.44389886 | U37: 32.43685598 | V37: 1.845521758 | W37: 0.2480237784 | X37: 0.001439050243 | Y37: 0.001108290879 | Z37: 0
A38: 1HPa | B38: Basis-He | C38: MBWR | D38: 156.4331631 | E38: 19.69 | F38: 1 | G38: 4.002980232 | I38: 783.9420391 | J38: Helium:1 | K38: 818.5835633 | L38: 20.07443288 | M38: 5.19782228 | N38: 5.950553733 | P38: 15802.25401 | Q38: Helium:1 | R38: 3276.773822 | S38: 80.35755801 | T38: 20.80677984 | U38: 1.486530881 | V38: 474.2737344 | W38: 1.018394905 | X38: 1.227872626e-05 | Y38: 0.0002063459438 | Z38: 0
A39: 1HPb | B39: Basis-He | C39: MBWR | D39: 156.4331631 | E39: 19.69 | F39: 1 | G39: 4.002980232 | I39: 609.3079924 | J39: Helium:1 | K39: 818.5835633 | L39: 20.07443288 | M39: 5.19782228 | N39: 5.950553733 | P39: 12282.08106 | Q39: Helium:1 | R39: 3276.773822 | S39: 80.35755801 | T39: 20.80677984 | U39: 1.486530881 | V39: 368.6226309 | W39: 1.018394905 | X39: 1.227872626e-05 | Y39: 0.0002063459438 | Z39: 0
A40: 1LPa | B40: Basis-He | C40: MBWR | D40: 150.7073901 | E40: 1.096541303 | F40: 1 | G40: 4.002980232 | I40: 401.1639165 | J40: Helium:1 | K40: 782.9076047 | L40: 25.87732776 | M40: 5.19291453 | N40: 0.349933762 | P40: 8086.432151 | Q40: Helium:1 | R40: 3133.963665 | S40: 103.5864315 | T40: 20.78713421 | U40: 0.08741830878 | V40: 4127.038475 | W40: 1.00106277 | X40: 1.161784507e-05 | Y40: 0.003320012623 | Z40: 0
A41: 1MPa | B41: Basis-He | C41: MBWR | D41: 150.7073735 | E41: 5.12 | F41: 1 | G41: 4.002980232 | I41: 368.3525583 | J41: Helium:1 | K41: 784.1896426 | L41: 22.67694456 | M41: 5.194148975 | N41: 1.627579738 | P41: 7425.039612 | Q41: Helium:1 | R41: 3139.095638 | S41: 90.77536078 | T41: 20.79207567 | U41: 0.4065919999 | V41: 814.749151 | W41: 1.004962589 | X41: 1.162618538e-05 | Y41: 0.0007143235511 | Z41: 0
A42: 2HPa | B42: Basis-He | C42: MBWR | D42: 135.2348406 | E42: 19.67 | F42: 1 | G42: 4.002980232 | I42: 609.3079924 | J42: Helium:1 | K42: 708.3519561 | L42: 19.31941661 | M42: 5.2019936 | N42: 6.856264242 | P42: 12282.08106 | Q42: Helium:1 | R42: 2835.518878 | S42: 77.33524277 | T42: 20.82347755 | U42: 1.712789932 | V42: 319.9276888 | W42: 1.021374308 | X42: 1.036595148e-05 | Y42: 0.0001511894979 | Z42: 0
A43: 2K Return | B43: Basis-He | C43: MBWR | D43: 3.9 | E43: 0.027 | F43: 1 | G43: 4.002980232 | I43: 149.1 | J43: Helium:1 | K43: 20.10213146 | L43: 14.57343542 | M43: 5.24650342 | N43: 0.3359374771 | P43: 3005.472287 | Q43: Helium:1 | R43: 80.46843486 | S43: 58.3371739 | T43: 21.00164948 | U43: 0.08392184263 | V43: 1597.797318 | W43: 0.9921958603 | X43: 8.56162422e-07 | Y43: 0.0002548576686 | Z43: 0
A44: 2LPa | B44: Basis-He | C44: MBWR | D44: 133.895983 | E44: 1.100742085 | F44: 1 | G44: 4.002980232 | I44: 401.1639165 | J44: Helium:1 | K44: 695.6072729 | L44: 25.25501715 | M44: 5.193119337 | N44: 0.3953340364 | P44: 8086.432151 | Q44: Helium:1 | R44: 2784.502163 | S44: 101.0953344 | T44: 20.78795405 | U44: 0.09875992721 | V44: 3653.08819 | W44: 1.001176222 | X44: 1.022504952e-05 | Y44: 0.002586432885 | Z44: 0
A45: 2MPa | B45: Basis-He | C45: MBWR | D45: 133.8959707 | E45: 5.14 | F45: 1 | G45: 4.002980232 | I45: 368.3525583 | J45: Helium:1 | K45: 696.8677128 | L45: 22.05441694 | M45: 5.195104297 | N45: 1.837874096 | P45: 7425.039612 | Q45: Helium:1 | R45: 2789.547679 | S45: 88.28339505 | T45: 20.79589981 | U45: 0.4591264482 | V45: 721.5234235 | W45: 1.005626164 | X45: 1.023456275e-05 | Y45: 0.000556869634 | Z45: 0
A46: 3HPa | B46: Basis-He | C46: MBWR | D46: 63.564069 | E46: 19.65 | F46: 1 | G46: 4.002980232 | I46: 609.3079924 | J46: Helium:1 | K46: 333.950028 | L46: 15.37456809 | M46: 5.27327972 | N46: 14.28527189 | P46: 12282.08106 | Q46: Helium:1 | R46: 1336.79536 | S46: 61.54409214 | T46: 21.10883448 | U46: 3.568659114 | V46: 153.5503692 | W46: 1.041883268 | X46: 6.297088347e-06 | Y46: 4.408098352e-05 | Z46: 0
A47: 3LPa | B47: Basis-He | C47: MBWR | D47: 60.54498186 | E47: 1.128429056 | F47: 1 | G47: 4.002980232 | I47: 401.1639165 | J47: Helium:1 | K47: 314.5881418 | L47: 21.08051202 | M47: 5.198121794 | N47: 0.8951080003 | P47: 8086.432151 | Q47: Helium:1 | R47: 1259.290113 | S47: 84.38487292 | T47: 20.80797879 | U47: 0.2236103973 | V47: 1613.42553 | W47: 1.002483834 | X47: 5.93259493e-06 | Y47: 0.0006627797907 | Z47: 0
A48: 3MPa | B48: Basis-He | C48: MBWR | D48: 60.54497285 | E48: 5.16 | F48: 1 | G48: 4.002980232 | I48: 368.3525583 | J48: Helium:1 | K48: 315.3236907 | L48: 17.91688762 | M48: 5.21760533 | N48: 4.057130981 | P48: 7425.039612 | Q48: Helium:1 | R48: 1262.2345 | S48: 71.72094695 | T48: 20.885971 | U48: 1.013527608 | V48: 326.8490015 | W48: 1.0113682 | X48: 5.955872211e-06 | Y48: 0.0001468000969 | Z48: 0
A49: 4HPa | B49: Basis-He | C49: MBWR | D49: 50.53297062 | E49: 19.63 | F49: 1 | G49: 4.002980232 | I49: 609.3079924 | J49: Helium:1 | K49: 264.9065251 | L49: 14.16082654 | M49: 5.329367685 | N49: 17.84087877 | P49: 12282.08106 | Q49: Helium:1 | R49: 1060.415584 | S49: 56.68550873 | T49: 21.33335349 | U49: 4.456899043 | V49: 122.9484714 | W49: 1.04830085 | X49: 5.240570284e-06 | Y49: 2.937394706e-05 | Z49: 0
A50: 4HPb | B50: Basis-He | C50: MBWR | D50: 50.53836411 | E50: 19.54 | F50: 1 | G50: 4.002980232 | I50: 609.3079924 | J50: Helium:1 | K50: 264.9229372 | L50: 14.17115442 | M50: 5.328771605 | N50: 17.7610358 | P50: 12282.08106 | Q50: Helium:1 | R50: 1060.481281 | S50: 56.72685099 | T50: 21.3309674 | U50: 4.436953161 | V50: 123.501174 | W50: 1.048073644 | X50: 5.240069363e-06 | Y50: 2.950317438e-05 | Z50: 0
A51: 4LPa | B51: Basis-He | C51: MBWR | D51: 50.04642342 | E51: 1.134348339 | F51: 1 | G51: 4.002980232 | I51: 401.1639165 | J51: Helium:1 | K51: 260.0009258 | L51: 20.07943623 | M51: 5.201386234 | N51: 1.088238744 | P51: 8086.432151 | Q51: Helium:1 | R51: 1040.778566 | S51: 80.37758631 | T51: 20.82104628 | U51: 0.2718571365 | V51: 1327.089398 | W51: 1.002780592 | X51: 5.033087615e-06 | Y51: 0.0004624984771 | Z51: 0
A52: 4LPb | B52: Basis-He | C52: MBWR | D52: 50.04642342 | E52: 1.134348339 | F52: 1 | G52: 4.002980232 | I52: 401.1639165 | J52: Helium:1 | K52: 260.0009258 | L52: 20.07943623 | M52: 5.201386234 | N52: 1.088238744 | P52: 8086.432151 | Q52: Helium:1 | R52: 1040.778566 | S52: 80.37758631 | T52: 20.82104628 | U52: 0.2718571365 | V52: 1327.089398 | W52: 1.002780592 | X52: 5.033087615e-06 | Y52: 0.0004624984771 | Z52: 0
A53: 4MPa | B53: Basis-He | C53: MBWR | D53: 50.04655954 | E53: 5.18 | F53: 1 | G53: 4.002980232 | I53: 194.3185116 | J53: Helium:1 | K53: 260.4816965 | L53: 16.91392144 | M53: 5.232111092 | N53: 4.920628381 | P53: 3916.961111 | Q53: Helium:1 | R53: 1042.703082 | S53: 67.70609318 | T53: 20.94403727 | U53: 1.229241239 | V53: 142.1661194 | W53: 1.012725336 | X53: 5.062408977e-06 | Y53: 0.0001028813514 | Z53: 0
A54: 4MPb | B54: Basis-He | C54: MBWR | D54: 50.04649523 | E54: 5.18 | F54: 1 | G54: 4.002980232 | I54: 368.3525583 | J54: Helium:1 | K54: 260.48136 | L54: 16.91391472 | M54: 5.23211121 | N54: 4.920634667 | P54: 7425.039612 | Q54: Helium:1 | R54: 1042.701735 | S54: 67.70606627 | T54: 20.94403775 | U54: 1.229242809 | V54: 269.4914985 | W54: 1.012725344 | X54: 5.06240313e-06 | Y54: 0.0001028811012 | Z54: 0
A55: 5HPa | B55: Basis-He | C55: MBWR | D55: 50.53857018 | E55: 19.52 | F55: 1 | G55: 4.002980232 | I55: 609.3079924 | J55: Helium:1 | K55: 264.921296 | L55: 14.17335081 | M55: 5.328645059 | N55: 17.7436305 | P55: 12282.08106 | Q55: Helium:1 | R55: 1060.474711 | S55: 56.73564313 | T55: 21.33046084 | U55: 4.432605076 | V55: 123.6223203 | W55: 1.04802366 | X55: 5.239874405e-06 | Y55: 2.953101625e-05 | Z55: 0
A56: 5HPb | B56: Basis-He | C56: MBWR | D56: 50.53857018 | E56: 19.52 | F56: 1 | G56: 4.002980232 | I56: 571.4532265 | J56: Helium:1 | K56: 264.921296 | L56: 14.17335081 | M56: 5.328645059 | N56: 17.7436305 | P56: 11519.0264 | Q56: Helium:1 | R56: 1060.474711 | S56: 56.73564313 | T56: 21.33046084 | U56: 4.432605076 | V56: 115.9419779 | W56: 1.04802366 | X56: 5.239874405e-06 | Y56: 2.953101625e-05 | Z56: 0
A57: 5LPa | B57: Basis-He | C57: MBWR | D57: 50.04599682 | E57: 1.134348339 | F57: 1 | G57: 4.002980232 | I57: 401.1639165 | J57: Helium:1 | K57: 259.9987069 | L57: 20.0793919 | M57: 5.201386411 | N57: 1.088248008 | P57: 8086.432151 | Q57: Helium:1 | R57: 1040.769684 | S57: 80.37740883 | T57: 20.82104698 | U57: 0.2718594509 | V57: 1327.0781 | W57: 1.002780603 | X57: 5.033049815e-06 | Y57: 0.0004624910662 | Z57: 0
A58: 5MPa | B58: Basis-He | C58: MBWR | D58: 50.04599191 | E58: 5.2 | F58: 1 | G58: 4.002980232 | I58: 194.3185116 | J58: Helium:1 | K58: 260.4811312 | L58: 16.90580409 | M58: 5.232261321 | N58: 4.939442521 | P58: 3916.961111 | Q58: Helium:1 | R58: 1042.700819 | S58: 67.67359957 | T58: 20.94463864 | U58: 1.233941272 | V58: 141.6246143 | W58: 1.012774636 | X58: 5.062516481e-06 | Y58: 0.0001024916569 | Z58: 0
A59: 6HPa | B59: Basis-He | C59: MBWR | D59: 35.44808292 | E59: 19.5 | F59: 1 | G59: 4.002980232 | I59: 571.4532265 | J59: Helium:1 | K59: 183.5408726 | L59: 12.26147619 | M59: 5.483224934 | N59: 25.13990513 | P59: 11519.0264 | Q59: Helium:1 | R59: 734.7104849 | S59: 49.08244683 | T59: 21.94924102 | U59: 6.280297097 | V59: 81.83131976 | W59: 1.053500956 | X59: 3.977735382e-06 | Y59: 1.582239615e-05 | Z59: 0
A60: 6HPb | B60: Basis-He | C60: MBWR | D60: 35.44808292 | E60: 19.5 | F60: 1 | G60: 4.002980232 | I60: 414.6894808 | J60: Helium:1 | K60: 183.5408726 | L60: 12.26147619 | M60: 5.483224934 | N60: 25.13990513 | P60: 8359.072719 | Q60: Helium:1 | R60: 734.7104849 | S60: 49.08244683 | T60: 21.94924102 | U60: 6.280297097 | V60: 59.38296597 | W60: 1.053500956 | X60: 3.977735382e-06 | Y60: 1.582239615e-05 | Z60: 0
A61: 6LPa | B61: Basis-He | C61: MBWR | D61: 35.05168599 | E61: 1.155925082 | F61: 1 | G61: 4.002980232 | I61: 401.1639165 | J61: Helium:1 | K61: 181.9390668 | L61: 18.1860794 | M61: 5.212715015 | N61: 1.583013004 | P61: 8086.432151 | Q61: Helium:1 | R61: 728.2984878 | S61: 72.79851632 | T61: 20.86639516 | U61: 0.3954586113 | V61: 912.3046342 | W61: 1.002981684 | X61: 3.680759731e-06 | Y61: 0.0002325160767 | Z61: 0
A62: 6MPa | B62: Basis-He | C62: MBWR | D62: 35.05168687 | E62: 5.22 | F62: 1 | G62: 4.002980232 | I62: 194.3185116 | J62: Helium:1 | K62: 181.7269535 | L62: 15.02677588 | M62: 5.281227528 | N62: 7.07353752 | P62: 3916.961111 | Q62: Helium:1 | R62: 727.4494027 | S62: 60.1518868 | T62: 21.1406494 | U62: 1.767067812 | V62: 98.89629338 | W62: 1.01363507 | X62: 3.726410962e-06 | Y62: 5.268100935e-05 | Z62: 0
A63: 7HPa | B63: Basis-He | C63: MBWR | D63: 35.29625049 | E63: 19.48 | F63: 1 | G63: 4.002980232 | I63: 414.6894808 | J63: Helium:1 | K63: 182.7081301 | L63: 12.24004769 | M63: 5.485574133 | N63: 25.22411688 | P63: 8359.072719 | Q63: Helium:1 | R63: 731.3770331 | S63: 48.99666895 | T63: 21.95864482 | U63: 6.30133436 | V63: 59.1847135 | W63: 1.053418932 | X63: 3.96544701e-06 | Y63: 1.572085567e-05 | Z63: 0
A64: 7LPa | B64: Basis-He | C64: MBWR | D64: 34.93937886 | E64: 1.156879805 | F64: 1 | G64: 4.002980232 | I64: 401.1639165 | J64: Helium:1 | K64: 181.3535778 | L64: 18.16762975 | M64: 5.21287403 | N64: 1.589413627 | P64: 8086.432151 | Q64: Helium:1 | R64: 725.9547868 | S64: 72.72466275 | T64: 20.8670317 | U64: 0.3970575757 | V64: 908.6307523 | W64: 1.002981304 | X64: 3.670798988e-06 | Y64: 0.0002309530336 | Z64: 0
A65: 8HPa | B65: Basis-He | C65: MBWR | D65: 21.46621544 | E65: 19.46 | F65: 1 | G65: 4.002980232 | I65: 414.6894808 | J65: Helium:1 | K65: 104.2305694 | L65: 9.410660254 | M65: 5.975659133 | N65: 42.35072065 | P65: 8359.072719 | Q65: Helium:1 | R65: 417.2329089 | S65: 37.67068697 | T65: 23.92044538 | U65: 10.5797976 | V65: 35.25045402 | W65: 1.030583672 | X65: 3.117745568e-06 | Y65: 7.361729673e-06 | Z65: 0
A66: 8HPb | B66: Basis-He | C66: MBWR | D66: 22.10126105 | E66: 19.46 | F66: 1 | G66: 4.002980232 | I66: 560.3639165 | J66: Helium:1 | K66: 108.0118469 | L66: 9.584253304 | M66: 5.933533484 | N66: 41.01016911 | P66: 11295.49445 | Q66: Helium:1 | R66: 432.3692878 | S66: 38.36557652 | T66: 23.75181725 | U66: 10.24490922 | V66: 49.19048478 | W66: 1.033691468 | X66: 3.139708393e-06 | Y66: 7.655926471e-06 | Z66: 0
A67: 8HPc | B67: Basis-He | C67: MBWR | D67: 22.10094451 | E67: 19.415 | F67: 1 | G67: 4.002980232 | I67: 560.3639165 | J67: Helium:1 | K67: 108.0207696 | L67: 9.589626799 | M67: 5.932420746 | N67: 40.92148326 | P67: 11295.49445 | Q67: Helium:1 | R67: 432.4050055 | S67: 38.38708651 | T67: 23.74736297 | U67: 10.22275427 | V67: 49.29709137 | W67: 1.033550981 | X67: 3.137614906e-06 | Y67: 7.667402684e-06 | Z67: 0
A68: 8HPd | B68: Basis-He | C68: MBWR | D68: 22.10094451 | E68: 19.415 | F68: 1 | G68: 4.002980232 | I68: 225.0639165 | J68: Helium:1 | K68: 108.0207696 | L68: 9.589626799 | M68: 5.932420746 | N68: 40.92148326 | P68: 4536.709349 | Q68: Helium:1 | R68: 432.4050055 | S68: 38.38708651 | T68: 23.74736297 | U68: 10.22275427 | V68: 19.79962687 | W68: 1.033550981 | X68: 3.137614906e-06 | Y68: 7.667402684e-06 | Z68: 0
A69: 8LPa | B69: Basis-He | C69: MBWR | D69: 19.41327205 | E69: 1.163753811 | F69: 1 | G69: 4.002980232 | I69: 401.1639165 | J69: Helium:1 | K69: 100.1378461 | L69: 15.07991217 | M69: 5.262929508 | N69: 2.889005363 | P69: 8086.432151 | Q69: Helium:1 | R69: 400.8498184 | S69: 60.36459033 | T69: 21.06740279 | U69: 0.7217136221 | V69: 499.8918029 | W69: 0.9990120753 | X69: 2.357578407e-06 | Y69: 8.160519318e-05 | Z69: 0
A70: 9HPa | B70: Basis-He | C70: MBWR | D70: 14.47509801 | E70: 19.395 | F70: 1 | G70: 4.002980232 | I70: 225.0639165 | J70: Helium:1 | K70: 60.21300209 | L70: 6.927021477 | M70: 6.709323417 | N70: 67.50436375 | P70: 4536.709349 | Q70: Helium:1 | R70: 241.0314571 | S70: 27.72873004 | T70: 26.85728901 | U70: 16.86352663 | V70: 12.00263293 | W70: 0.9556373879 | X70: 3.098517367e-06 | Y70: 4.590099358e-06 | Z70: 0
A71: 9LPa | B71: Basis-He | C71: MBWR | D71: 14.33569713 | E71: 1.166427036 | F71: 1 | G71: 4.002980232 | I71: 401.1639165 | J71: Helium:1 | K71: 73.28397673 | L71: 13.47114118 | M71: 5.322696672 | N71: 3.952702895 | P71: 8086.432151 | Q71: Helium:1 | R71: 293.3543102 | S71: 53.92471187 | T71: 21.30664956 | U71: 0.9874400236 | V71: 365.3677339 | W71: 0.991063082 | X71: 1.909168332e-06 | Y71: 4.830032467e-05 | Z71: 0
A72: CC1 | B72: Basis-He | C72: MBWR | D72: 6.962859888 | E72: 0.081 | F72: 1 | G72: 4.002980232 | I72: 149.1 | J72: Helium:1 | K72: 35.94028903 | L72: 15.30328014 | M72: 5.229861459 | N72: 0.5635315213 | P72: 3005.472287 | Q72: Helium:1 | R72: 143.8682665 | S72: 61.2587279 | T72: 20.93503204 | U72: 0.1407779926 | V72: 952.4933029 | W72: 0.9938843664 | X72: 1.172769732e-06 | Y72: 0.0002081107601 | Z72: 0
A73: CC2 | B73: Basis-He | C73: MBWR | D73: 12.43661247 | E73: 0.243 | F73: 1 | G73: 4.002980232 | I73: 149.1 | J73: Helium:1 | K73: 64.27690052 | L73: 16.03580762 | M73: 5.228080517 | N73: 0.9438212289 | P73: 3005.472287 | Q73: Helium:1 | R73: 257.2991622 | S73: 64.19102093 | T73: 20.92790296 | U73: 0.2357796377 | V73: 568.7093949 | W73: 0.9967153352 | X73: 1.691071589e-06 | Y73: 0.0001791728706 | Z73: 0
A74: From Buffer | B74: Basis-He | C74: MBWR | D74: 300 | E74: 1.05 | F74: 1 | G74: 4.002980232 | I74: 0 | J74: Helium:1 | K74: 1558.109859 | L74: 29.54223261 | M74: 5.192501137 | N74: 0.1684295341 | P74: 0 | Q74: Helium:1 | R74: 6237.082964 | S74: 118.2569732 | T74: 20.78547941 | U74: 0.04207603445 | V74: 0 | W74: 1.000475613 | X74: 8.503839348e-05 | Y74: 0.05048900355 | Z74: 0
A75: From Subcooler | B75: Basis-He | C75: MBWR | D75: 4.5 | E75: 3 | F75: 0 | G75: 4.002980232 | I75: 157.7 | J75: Helium:1 | K75: -3.493182189 | L75: 1.655630808 | M75: 4.646120933 | N75: 129.5626755 | P75: 3178.826155 | Q75: Helium:1 | R75: -13.98313925 | S75: 6.627457397 | T75: 18.59833025 | U75: 32.36655391 | V75: 4.381817509 | W75: 0.247733959 | X75: 0.001414255563 | Y75: 0.001091560943 | Z75: 0
A76: From TS | B76: Basis-He | C76: MBWR | D76: 50.55191708 | E76: 19 | F76: 1 | G76: 4.002980232 | I76: 156.7637457 | J76: Helium:1 | K76: 264.921296 | L76: 14.23223678 | M76: 5.325289199 | N76: 17.28738527 | P76: 3159.953679 | Q76: Helium:1 | R76: 1060.474711 | S76: 56.97136247 | T76: 21.31702739 | U76: 4.31862869 | V76: 32.64516153 | W76: 1.046750965 | X76: 5.235493846e-06 | Y76: 3.028505331e-05 | Z76: 0
A77: From Turbines | B77: Basis-He | C77: MBWR | D77: 279.8043456 | E77: 1.170818763 | F77: 1 | G77: 4.002980232 | I77: 30.4 | J77: Helium:1 | K77: 1453.283172 | L77: 28.95414684 | M77: 5.192503189 | N77: 0.2013461205 | P77: 612.7857648 | Q77: Helium:1 | R77: 5817.463808 | S77: 115.9028774 | T77: 20.78548762 | U77: 0.0502990544 | V77: 543.5416374 | W77: 1.00057273 | X77: 6.539264263e-05 | Y77: 0.03247772665 | Z77: 0
A78: From Turbines 2 | B78: Basis-He | C78: MBWR | D78: 297.0180361 | E78: 1.05 | F78: 1 | G78: 4.002980232 | I78: 30.4 | J78: Helium:1 | K78: 1542.62603 | L78: 29.49036155 | M78: 5.192502372 | N78: 0.170119582 | P78: 612.7857648 | Q78: Helium:1 | R78: 6175.101505 | S78: 118.0493343 | T78: 20.78548435 | U78: 0.04249823184 | V78: 643.3121851 | W78: 1.000481079 | X78: 8.188863554e-05 | Y78: 0.04813592568 | Z78: 0
A79: GHe Return | B79: Basis-He | C79: MBWR | D79: 300 | E79: 1.05 | F79: 1 | G79: 4.002980232 | I79: 8.6 | J79: Helium:1 | K79: 1558.109859 | L79: 29.54223261 | M79: 5.192501137 | N79: 0.1684295341 | P79: 173.3538677 | Q79: Helium:1 | R79: 6237.082964 | S79: 118.2569732 | T79: 20.78547941 | U79: 0.04207603445 | V79: 183.8157432 | W79: 1.000475613 | X79: 8.503839348e-05 | Y79: 0.05048900355 | Z79: 0
A80: HPa | B80: Basis-He | C80: MBWR | D80: 300 | E80: 19.74 | F80: 1 | G80: 4.002980232 | I80: 145.6744357 | J80: Helium:1 | K80: 1564.147465 | L80: 23.45090075 | M80: 5.191137824 | N80: 3.139641794 | P80: 2936.421727 | Q80: Helium:1 | R80: 6261.251383 | S80: 93.87349213 | T80: 20.78002209 | U80: 0.7843260799 | V80: 167.0343316 | W80: 1.009026337 | X80: 8.5058332e-05 | Y80: 0.002709173135 | Z80: 0
A81: HPb | B81: Basis-He | C81: MBWR | D81: 23.93815845 | E81: 19.64 | F81: 1 | G81: 4.002980232 | I81: 145.6744357 | J81: Helium:1 | K81: 118.7759592 | L81: 10.03229841 | M81: 5.832398111 | N81: 37.93305625 | P81: 2936.421727 | Q81: Helium:1 | R81: 475.4578166 | S81: 40.1590922 | T81: 23.34697434 | U81: 9.47620374 | V81: 13.82509137 | W81: 1.041332975 | X81: 3.220212895e-06 | Y81: 8.489199696e-06 | Z81: 0
A82: HPc | B82: Basis-He | C82: MBWR | D82: 23.93215202 | E82: 19.46 | F82: 1 | G82: 4.002980232 | I82: 145.6744357 | J82: Helium:1 | K82: 118.7759592 | L82: 10.0522045 | M82: 5.828570982 | N82: 37.61567959 | P82: 2936.421727 | Q82: Helium:1 | R82: 475.4578166 | S82: 40.23877589 | T82: 23.33165442 | U82: 9.396918648 | V82: 13.9417385 | W82: 1.040755897 | X82: 3.212188522e-06 | Y82: 8.539493522e-06 | Z82: 0
A83: HP-LPa | B83: Basis-He | C83: MBWR | D83: 299.995644 | E83: 19.81 | F83: 1 | G83: 4.002980232 | I83: 29.61700438 | J83: Helium:1 | K83: 1564.147465 | L83: 23.44348169 | M83: 5.191132976 | N83: 3.150720534 | P83: 597.0025881 | Q83: Helium:1 | R83: 6261.251383 | S83: 93.84379377 | T83: 20.78000268 | U83: 0.7870937029 | V83: 33.84026435 | W83: 1.009058519 | X83: 8.505374758e-05 | Y83: 0.002699501485 | Z83: 0
A84: HP-LPb | B84: Basis-He | C84: MBWR | D84: 301.1627568 | E84: 1.05 | F84: 1 | G84: 4.002980232 | I84: 29.61700438 | J84: Helium:1 | K84: 1564.147465 | L84: 29.56230372 | M84: 5.192500677 | N84: 0.1677800949 | P84: 597.0025881 | Q84: Helium:1 | R84: 6261.251383 | S84: 118.3373174 | T84: 20.78547756 | U84: 0.04191379551 | V84: 635.4819136 | W84: 1.00047055 | X84: 8.629064128e-05 | Y84: 0.05143079776 | Z84: 0
A85: LevelCompensation | B85: Basis-He | C85: MBWR | D85: 4.400314419 | E85: 1.192728209 | F85: 1 | G85: 4.002980232 | I85: 0 | J85: Helium:1 | K85: 15.34506058 | L85: 6.252944763 | M85: 10.2807637 | N85: 20.03306422 | P85: 0 | Q85: Helium:1 | R85: 61.42597417 | S85: 25.03041428 | T85: 41.15369385 | U85: 5.004537384 | V85: 0 | W85: 0.6514290293 | X85: 1.03524567e-06 | Y85: 5.167685076e-06 | Z85: 0
A86: LHe | B86: Basis-He | C86: MBWR | D86: 4.400314419 | E86: 1.192728209 | F86: 0 | G86: 4.002980232 | I86: 0 | J86: Helium:1 | K86: -4.246950598 | L86: 1.809326236 | M86: 6.099385824 | N86: 121.2533976 | P86: 0 | Q86: Helium:1 | R86: -17.00045929 | S86: 7.242697157 | T86: 24.41572088 | U86: 30.290781 | V86: 0 | W86: 0.1076268363 | X86: 0.001508473351 | Y86: 0.001244066873 | Z86: 0
A87: LP-VLPa | B87: Basis-He | C87: MBWR | D87: 297.016791 | E87: 1.07 | F87: 1 | G87: 4.002980232 | I87: 0 | J87: Helium:1 | K87: 1542.62603 | L87: 29.45115191 | M87: 5.192500874 | N87: 0.1733590804 | P87: 0 | Q87: Helium:1 | R87: 6175.101505 | S87: 117.8923789 | T87: 20.78547835 | U87: 0.0433075035 | V87: 0 | W87: 1.000490321 | X87: 8.188738431e-05 | Y87: 0.04723570528 | Z87: 0
A88: LP-VLPb | B88: Basis-He | C88: MBWR | D88: 297.057504 | E88: 0.416 | F88: 1 | G88: 4.002980232 | I88: 0 | J88: Helium:1 | K88: 1542.62603 | L88: 31.41395925 | M88: 5.192549933 | N88: 0.06741121248 | P88: 0 | Q88: Helium:1 | R88: 6175.101505 | S88: 125.7494579 | T88: 20.78567474 | U88: 0.01684025615 | V88: 0 | W88: 1.000178177 | X88: 8.192904166e-05 | Y88: 0.1215362232 | Z88: 0
A89: Supply 2K | B89: Basis-He | C89: MBWR | D89: 4.5 | E89: 3 | F89: 0 | G89: 4.002980232 | I89: 149.1 | J89: Helium:1 | K89: -3.493182189 | L89: 1.655630808 | M89: 4.646120933 | N89: 129.5626755 | P89: 3005.472287 | Q89: Helium:1 | R89: -13.98313925 | S89: 6.627457397 | T89: 18.59833025 | U89: 32.36655391 | V89: 4.142859801 | W89: 0.247733959 | X89: 0.001414255563 | Y89: 0.001091560943 | Z89: 0
A90: Supply LHe | B90: Basis-He | C90: MBWR | D90: 4.5 | E90: 3 | F90: 0 | G90: 4.002980232 | I90: 8.6 | J90: Helium:1 | K90: -3.493182189 | L90: 1.655630808 | M90: 4.646120933 | N90: 129.5626755 | P90: 173.3538677 | Q90: Helium:1 | R90: -13.98313925 | S90: 6.627457397 | T90: 18.59833025 | U90: 32.36655391 | V90: 0.2389577082 | W90: 0.247733959 | X90: 0.001414255563 | Y90: 0.001091560943 | Z90: 0
A91: T1_Loss | B91: Basis-He | C91: MBWR | D91: 135.2348406 | E91: 12 | F91: 1 | G91: 4.002980232 | I91: 0.3 | J91: Helium:1 | K91: 705.9641519 | L91: 20.34552143 | M91: 5.198292483 | N91: 4.217164263 | P91: 6.047227943 | Q91: Helium:1 | R91: 2825.960545 | S91: 81.44272009 | T91: 20.80866205 | U91: 1.053506143 | V91: 0.256096261 | W91: 1.013045251 | X91: 1.034403425e-05 | Y91: 0.0002452841199 | Z91: 0
A92: T1Ha | B92: Basis-He | C92: MBWR | D92: 156.4331631 | E92: 19.69 | F92: 1 | G92: 4.002980232 | I92: 174.6340467 | J92: Helium:1 | K92: 818.5835633 | L92: 20.07443288 | M92: 5.19782228 | N92: 5.950553733 | P92: 3520.172957 | Q92: Helium:1 | R92: 3276.773822 | S92: 80.35755801 | T92: 20.80677984 | U92: 1.486530881 | V92: 105.6511035 | W92: 1.018394905 | X92: 1.227872626e-05 | Y92: 0.0002063459438 | Z92: 0
A93: T1Hb | B93: Basis-He | C93: MBWR | D93: 156.4423629 | E93: 19.54 | F93: 1 | G93: 4.002980232 | I93: 174.6340467 | J93: Helium:1 | K93: 818.5835633 | L93: 20.09065219 | M93: 5.197779531 | N93: 5.905644264 | P93: 3520.172957 | Q93: Helium:1 | R93: 3276.773822 | S93: 80.42248355 | T93: 20.80660872 | U93: 1.475311873 | V93: 106.4545272 | W93: 1.018262194 | X93: 1.227941528e-05 | Y93: 0.0002079267686 | Z93: 0
A94: T1La | B94: Basis-He | C94: MBWR | D94: 135.2348406 | E94: 12 | F94: 1 | G94: 4.002980232 | I94: 174.6340467 | J94: Helium:1 | K94: 705.9641519 | L94: 20.34552143 | M94: 5.198292483 | N94: 4.217164263 | P94: 3520.172957 | Q94: Helium:1 | R94: 2825.960545 | S94: 81.44272009 | T94: 20.80866205 | U94: 1.053506143 | V94: 149.0770881 | W94: 1.013045251 | X94: 1.034403425e-05 | Y94: 0.0002452841199 | Z94: 0
A95: T1Lb | B95: Basis-He | C95: MBWR | D95: 135.2348406 | E95: 12 | F95: 1 | G95: 4.002980232 | I95: 174.3340467 | J95: Helium:1 | K95: 705.9641519 | L95: 20.34552143 | M95: 5.198292483 | N95: 4.217164263 | P95: 3514.125729 | Q95: Helium:1 | R95: 2825.960545 | S95: 81.44272009 | T95: 20.80866205 | U95: 1.053506143 | V95: 148.8209918 | W95: 1.013045251 | X95: 1.034403425e-05 | Y95: 0.0002452841199 | Z95: 0
A96: T2_Loss | B96: Basis-He | C96: MBWR | D96: 50.04642342 | E96: 5.18 | F96: 1 | G96: 4.002980232 | I96: 0.3 | J96: Helium:1 | K96: 260.4809843 | L96: 16.91390763 | M96: 5.232111335 | N96: 4.920641295 | P96: 6.047227943 | Q96: Helium:1 | R96: 1042.700231 | S96: 67.70603789 | T96: 20.94403825 | U96: 1.229244465 | V96: 0.2194835866 | W96: 1.012725433 | X96: 5.062396585e-06 | Y96: 0.0001028808296 | Z96: 0
A97: T2Ha | B97: Basis-He | C97: MBWR | D97: 63.564069 | E97: 11.98 | F97: 1 | G97: 4.002980232 | I97: 174.3340467 | J97: Helium:1 | K97: 332.4184649 | L97: 16.41193636 | M97: 5.243079499 | N97: 8.848644398 | P97: 3514.125729 | Q97: Helium:1 | R97: 1330.664544 | S97: 65.69665681 | T97: 20.98794359 | U97: 2.210514138 | V97: 70.92640861 | W97: 1.025475042 | X97: 6.24037757e-06 | Y97: 7.052354338e-05 | Z97: 0
A98: T2Hb | B98: Basis-He | C98: MBWR | D98: 63.56974541 | E98: 11.83 | F98: 1 | G98: 4.002980232 | I98: 174.3340467 | J98: Helium:1 | K98: 332.4184649 | L98: 16.43905612 | M98: 5.242453798 | N98: 8.739341586 | P98: 3514.125729 | Q98: Helium:1 | R98: 1330.664544 | S98: 65.80521669 | T98: 20.98543892 | U98: 2.183208779 | V98: 71.81348411 | W98: 1.025208664 | X98: 6.239775198e-06 | Y98: 7.13986876e-05 | Z98: 0
A99: T2La | B99: Basis-He | C99: MBWR | D99: 50.04642342 | E99: 5.18 | F99: 1 | G99: 4.002980232 | I99: 174.3340467 | J99: Helium:1 | K99: 260.4809843 | L99: 16.91390763 | M99: 5.232111335 | N99: 4.920641295 | P99: 3514.125729 | Q99: Helium:1 | R99: 1042.700231 | S99: 67.70603789 | T99: 20.94403825 | U99: 1.229244465 | V99: 127.5448728 | W99: 1.012725433 | X99: 5.062396585e-06 | Y99: 0.0001028808296 | Z99: 0
A100: T2Lb | B100: Basis-He | C100: MBWR | D100: 50.04642342 | E100: 5.18 | F100: 1 | G100: 4.002980232 | I100: 174.0340467 | J100: Helium:1 | K100: 260.4809843 | L100: 16.91390763 | M100: 5.232111335 | N100: 4.920641295 | P100: 3508.078501 | Q100: Helium:1 | R100: 1042.700231 | S100: 67.70603789 | T100: 20.94403825 | U100: 1.229244465 | V100: 127.3253892 | W100: 1.012725433 | X100: 5.062396585e-06 | Y100: 0.0001028808296 | Z100: 0
A101: T3_Loss | B101: Basis-He | C101: MBWR | D101: 34.93937886 | E101: 5.24 | F101: 1 | G101: 4.002980232 | I101: 0.3 | J101: Helium:1 | K101: 181.1328239 | L101: 15.00174727 | M101: 5.2821793 | N101: 7.123167717 | P101: 6.047227943 | Q101: Helium:1 | R101: 725.0711133 | S101: 60.05169778 | T101: 21.14445932 | U101: 1.779466124 | V101: 0.1516179378 | W101: 1.013677127 | X101: 3.716875085e-06 | Y101: 5.218008662e-05 | Z101: 0
A102: T3Ha | B102: Basis-He | C102: MBWR | D102: 50.53857018 | E102: 19.52 | F102: 1 | G102: 4.002980232 | I102: 37.85476588 | J102: Helium:1 | K102: 264.921296 | L102: 14.17335081 | M102: 5.328645059 | N102: 17.7436305 | P102: 763.05466 | Q102: Helium:1 | R102: 1060.474711 | S102: 56.73564313 | T102: 21.33046084 | U102: 4.432605076 | V102: 7.680342374 | W102: 1.04802366 | X102: 5.239874405e-06 | Y102: 2.953101625e-05 | Z102: 0
A103: T3Hb | B103: Basis-He | C103: MBWR | D103: 50.55191708 | E103: 19 | F103: 1 | G103: 4.002980232 | I103: 37.85476588 | J103: Helium:1 | K103: 264.921296 | L103: 14.23223678 | M103: 5.325289199 | N103: 17.28738527 | P103: 763.05466 | Q103: Helium:1 | R103: 1060.474711 | S103: 56.97136247 | T103: 21.31702739 | U103: 4.31862869 | V103: 7.883040437 | W103: 1.046750965 | X103: 5.235493846e-06 | Y103: 3.028505331e-05 | Z103: 0
A104: T3Hc | B104: Basis-He | C104: MBWR | D104: 50.55191708 | E104: 19 | F104: 1 | G104: 4.002980232 | I104: 194.6185116 | J104: Helium:1 | K104: 264.921296 | L104: 14.23207921 | M104: 5.325297981 | N104: 17.2878847 | P104: 3923.008339 | Q104: Helium:1 | R104: 1060.474711 | S104: 56.97073176 | T104: 21.31706255 | U104: 4.318753453 | V104: 40.52703115 | W104: 1.046720726 | X104: 5.235499908e-06 | Y104: 3.028421348e-05 | Z104: 0
A105: T3La | B105: Basis-He | C105: MBWR | D105: 34.93937886 | E105: 5.24 | F105: 1 | G105: 4.002980232 | I105: 194.6185116 | J105: Helium:1 | K105: 181.1328239 | L105: 15.00174727 | M105: 5.2821793 | N105: 7.123167717 | P105: 3923.008339 | Q105: Helium:1 | R105: 725.0711133 | S105: 60.05169778 | T105: 21.14445932 | U105: 1.779466124 | V105: 98.35885798 | W105: 1.013677127 | X105: 3.716875085e-06 | Y105: 5.218008662e-05 | Z105: 0
A106: T3Lb | B106: Basis-He | C106: MBWR | D106: 34.93937886 | E106: 5.24 | F106: 1 | G106: 4.002980232 | I106: 194.3185116 | J106: Helium:1 | K106: 181.1328239 | L106: 15.00174727 | M106: 5.2821793 | N106: 7.123167717 | P106: 3916.961111 | Q106: Helium:1 | R106: 725.0711133 | S106: 60.05169778 | T106: 21.14445932 | U106: 1.779466124 | V106: 98.20724004 | W106: 1.013677127 | X106: 3.716875085e-06 | Y106: 5.218008662e-05 | Z106: 0
A107: T4_Loss | B107: Basis-He | C107: MBWR | D107: 14.47509801 | E107: 4.824 | F107: 1 | G107: 4.002980232 | I107: 0.3 | J107: Helium:1 | K107: 70.54417785 | L107: 10.38700126 | M107: 5.731843658 | N107: 16.58377027 | P107: 6.047227943 | Q107: Helium:1 | R107: 282.3869494 | S107: 41.5789607 | T107: 22.94445686 | U107: 4.1428559 | V107: 0.06512391226 | W107: 0.9675183775 | X107: 2.056348384e-06 | Y107: 1.239976405e-05 | Z107: 0
A108: T4Ha | B108: Basis-He | C108: MBWR | D108: 22.10094451 | E108: 19.415 | F108: 1 | G108: 4.002980232 | I108: 335.3 | J108: Helium:1 | K108: 108.0207696 | L108: 9.589626799 | M108: 5.932420746 | N108: 40.92148326 | P108: 6758.785097 | Q108: Helium:1 | R108: 432.4050055 | S108: 38.38708651 | T108: 23.74736297 | U108: 10.22275427 | V108: 29.49746451 | W108: 1.033550981 | X108: 3.137614906e-06 | Y108: 7.667402684e-06 | Z108: 0
A109: T4Hb | B109: Basis-He | C109: MBWR | D109: 22.09484073 | E109: 19.265 | F109: 1 | G109: 4.002980232 | I109: 335.3 | J109: Helium:1 | K109: 108.0207696 | L109: 9.606296022 | M109: 5.929002571 | N109: 40.63559215 | P109: 6758.785097 | Q109: Helium:1 | R109: 432.4050055 | S109: 38.45381308 | T109: 23.73368009 | U109: 10.1513347 | V109: 29.70499348 | W109: 1.033066444 | X109: 3.130440258e-06 | Y109: 7.703690513e-06 | Z109: 0
A110: T4La | B110: Basis-He | C110: MBWR | D110: 14.47509801 | E110: 4.824 | F110: 1 | G110: 4.002980232 | I110: 335.3 | J110: Helium:1 | K110: 70.54417785 | L110: 10.38700126 | M110: 5.731843658 | N110: 16.58377027 | P110: 6758.785097 | Q110: Helium:1 | R110: 282.3869494 | S110: 41.5789607 | T110: 22.94445686 | U110: 4.1428559 | V110: 72.78682593 | W110: 0.9675183775 | X110: 2.056348384e-06 | Y110: 1.239976405e-05 | Z110: 0
A111: T4Lb | B111: Basis-He | C111: MBWR | D111: 14.47509801 | E111: 4.824 | F111: 1 | G111: 4.002980232 | I111: 335 | J111: Helium:1 | K111: 70.54417785 | L111: 10.38700126 | M111: 5.731843658 | N111: 16.58377027 | P111: 6752.737869 | Q111: Helium:1 | R111: 282.3869494 | S111: 41.5789607 | T111: 22.94445686 | U111: 4.1428559 | V111: 72.72170202 | W111: 0.9675183775 | X111: 2.056348384e-06 | Y111: 1.239976405e-05 | Z111: 0
A112: T5_Loss | B112: Basis-He | C112: MBWR | D112: 7.831011114 | E112: 1.170818763 | F112: 1 | G112: 4.002980232 | I112: 0.4 | J112: Helium:1 | K112: 37.89994248 | L112: 10.16433411 | M112: 5.673538768 | N112: 7.691544973 | P112: 8.06297059 | Q112: Helium:1 | R112: 151.7127206 | S112: 40.68762852 | T112: 22.71106354 | U112: 1.921454648 | V112: 0.1872185634 | W112: 0.9358687791 | X112: 1.308016693e-06 | Y112: 1.700590321e-05 | Z112: 0
A113: T5Ha | B113: Basis-He | C113: MBWR | D113: 12.15013411 | E113: 4.804 | F113: 1 | G113: 4.002980232 | I113: 335 | J113: Helium:1 | K113: 56.96126491 | L113: 9.371621705 | M113: 6.001797452 | N113: 20.37685012 | P113: 6752.737869 | Q113: Helium:1 | R113: 228.0148174 | S113: 37.51441643 | T113: 24.02507656 | U113: 5.090419872 | V113: 59.18480986 | W113: 0.9342037064 | X113: 1.866343786e-06 | Y113: 9.159137819e-06 | Z113: 0
A114: T5Hb | B114: Basis-He | C114: MBWR | D114: 12.11841955 | E114: 4.654 | F114: 1 | G114: 4.002980232 | I114: 335 | J114: Helium:1 | K114: 56.96126491 | L114: 9.433213543 | M114: 5.979649167 | N114: 19.76587093 | P114: 6752.737869 | Q114: Helium:1 | R114: 228.0148174 | S114: 37.76096734 | T114: 23.93641741 | U114: 4.937788793 | V114: 61.01426061 | W114: 0.9354512286 | X114: 1.854791234e-06 | Y114: 9.383807272e-06 | Z114: 0
A115: T5La | B115: Basis-He | C115: MBWR | D115: 7.831011114 | E115: 1.170818763 | F115: 1 | G115: 4.002980232 | I115: 335 | J115: Helium:1 | K115: 37.89994248 | L115: 10.16433411 | M115: 5.673538768 | N115: 7.691544973 | P115: 6752.737869 | Q115: Helium:1 | R115: 151.7127206 | S115: 40.68762852 | T115: 22.71106354 | U115: 1.921454648 | V115: 156.7955468 | W115: 0.9358687791 | X115: 1.308016693e-06 | Y115: 1.700590321e-05 | Z115: 0
A116: T5Lb | B116: Basis-He | C116: MBWR | D116: 7.831011114 | E116: 1.170818763 | F116: 1 | G116: 4.002980232 | I116: 334.6 | J116: Helium:1 | K116: 37.89994248 | L116: 10.16433411 | M116: 5.673538768 | N116: 7.691544973 | P116: 6744.674899 | Q116: Helium:1 | R116: 151.7127206 | S116: 40.68762852 | T116: 22.71106354 | U116: 1.921454648 | V116: 156.6083283 | W116: 0.9358687791 | X116: 1.308016693e-06 | Y116: 1.700590321e-05 | Z116: 0
A117: T6_Loss | B117: Basis-He | C117: MBWR | D117: 5.434873495 | E117: 3.01 | F117: 1 | G117: 4.002980232 | I117: 0.8 | J117: Helium:1 | K117: 3.853468723 | L117: 3.107495431 | M117: 19.30476934 | N117: 94.68442287 | P117: 16.12594118 | Q117: Helium:1 | R117: 15.42535912 | S117: 12.43924278 | T117: 77.27661005 | U117: 23.6534825 | V117: 0.03041683006 | W117: 0.2816146408 | X117: 2.607626459e-06 | Y117: 2.754018433e-06 | Z117: 0
A118: To Buffer | B118: Basis-He | C118: MBWR | D118: 299.995644 | E118: 19.81 | F118: 1 | G118: 4.002980232 | I118: 0 | J118: Helium:1 | K118: 1564.147465 | L118: 23.44348169 | M118: 5.191132976 | N118: 3.150720534 | P118: 0 | Q118: Helium:1 | R118: 6261.251383 | S118: 93.84379377 | T118: 20.78000268 | U118: 0.7870937029 | V118: 0 | W118: 1.009058519 | X118: 8.505374758e-05 | Y118: 0.002699501485 | Z118: 0
A119: To Subcooler | B119: Basis-He | C119: MBWR | D119: 5.434873495 | E119: 3.01 | F119: 1 | G119: 4.002980232 | I119: 157.7 | J119: Helium:1 | K119: 3.853468723 | L119: 3.107495431 | M119: 19.30476934 | N119: 94.68442287 | P119: 3178.826155 | Q119: Helium:1 | R119: 15.42535912 | S119: 12.43924278 | T119: 77.27661005 | U119: 23.6534825 | V119: 5.995917626 | W119: 0.2816146408 | X119: 2.607626459e-06 | Y119: 2.754018433e-06 | Z119: 0
A120: To TS | B120: Basis-He | C120: MBWR | D120: 35.44808292 | E120: 19.5 | F120: 1 | G120: 4.002980232 | I120: 156.7637457 | J120: Helium:1 | K120: 183.5408726 | L120: 12.26147619 | M120: 5.483224934 | N120: 25.13990513 | P120: 3159.953679 | Q120: Helium:1 | R120: 734.7104849 | S120: 49.08244683 | T120: 21.94924102 | U120: 6.280297097 | V120: 22.44835379 | W120: 1.053500956 | X120: 3.977735382e-06 | Y120: 1.582239615e-05 | Z120: 0
A121: Turbine Bearings | B121: Basis-He | C121: MBWR | D121: 299.995644 | E121: 19.81 | F121: 1 | G121: 4.002980232 | I121: 28 | J121: Helium:1 | K121: 1564.147465 | L121: 23.44348169 | M121: 5.191132976 | N121: 3.150720534 | P121: 564.4079413 | Q121: Helium:1 | R121: 6261.251383 | S121: 93.84379377 | T121: 20.78000268 | U121: 0.7870937029 | V121: 31.99268197 | W121: 1.009058519 | X121: 8.505374758e-05 | Y121: 0.002699501485 | Z121: 0
A122: VLPa | B122: Basis-He | C122: MBWR | D122: 18.10338179 | E122: 0.486 | F122: 1 | G122: 4.002980232 | I122: 149.1 | J122: Helium:1 | K122: 93.68108684 | L122: 16.54728886 | M122: 5.226478313 | N122: 1.293771567 | P122: 3005.472287 | Q122: Helium:1 | R122: 375.0035388 | S122: 66.2384702 | T122: 20.92148937 | U122: 0.3232020873 | V122: 414.8800406 | W122: 0.9990234125 | X122: 2.232658112e-06 | Y122: 0.000172569731 | Z122: 0

Sheet AUX
A1: YES | B1: -------- | C1: 1 | D1: msoLineSolid | E1: X | F1: K | H1: Temperature | I1: Pressure | J1: Mass Flow | K1: Mass Enthalpy | L1: Mass Entropy | M1: Mass Heat capacity | N1: Mass Density | O1: Molar Flow | P1: Molar Enthalpy | Q1: Molar Entropy | R1: Molar Heat capacity | S1: Molar Density | T1: Volume Flow | U1: Dynamic Viscosity | V1: Kinematic viscosity | W1: Thermal conductivity
A2: NO | B2: . . . . . (carré) | C2: 2 | D2: msoLineSquareDot | F2: bar | H2: C | I2: kPa | J2: kg/h | K2: kJ/g | L2: kJ/g-C | M2: kJ/g-C | N2: kg/m3 | O2: kgmole/h | P2: kJ/gmole | Q2: kJ/gmole-C | R2: kJ/gmole-C | S2: kgmole/m3 | T2: m3/h | U2: cP | V2: cSt | W2: W/m-K
B3: . . . . . (rond) | C3: 3 | D3: msoLineRoundDot | F3: g/s | H3: K | I3: MPa | J3: kg/min | K3: kJ/kg | L3: kJ/g-K | M3: kJ/g-K | N3: g/L | O3: kgmole/min | P3: kJ/kgmole | Q3: kJ/gmole-K | R3: kJ/gmole-K | S3: gmole/L | T3: m3/min | U3: mP | V3: m²/s* | W3: Btu/hr-ft-F
B4: - - - - - | C4: 4 | D4: msoLineDash | F4: kJ/kg | H4: F | I4: kg/m-s2 | J4: kg/s | K4: J/g | L4: kJ/kg-C | M4: kJ/kg-C | N4: g/cm3 | O4: kgmole/s | P4: J/gmole | Q4: kJ/kgmole-C | R4: kJ/kgmole-C | S4: gmole/cm3 | T4: m3/s | U4: microP | W4: Btu/h-ft-F
B5: - . - . - | C5: 5 | D5: msoLineDashDot | F5: kJ/kg-K | H5: R | I5: bar | J5: kg/d | K5: J/kg | L5: kJ/kg-K | M5: kJ/kg-K | N5: g/mL | O5: m3/h_(gas) | P5: J/kgmole | Q5: kJ/kgmole-K | R5: kJ/kgmole-K | S5: gmole/mL | T5: m3/d | U5: P | W5: Kcal/m-hr-C
B6: - . . - . . | C6: 6 | D6: msoLineDashDotDot | F6: kJ/kg-K | I6: mbar | J6: tonne/d | K6: kcal/g | L6: J/g-C | M6: J/g-C | N6: lb/ft3 | O6: m3/d_(gas) | P6: kcal/gmole | Q6: J/gmole-C | R6: J/gmole-C | S6: lbmole/ft3 | T6: L/h | U6: Pa-s | W6: cal/cm-s-C
B7: -- -- -- | C7: 7 | D7: msoLineLongDash | F7: kg/m3 | I7: N/m2 | J7: tonne/h | K7: MJ/kg | L7: J/g-K | M7: J/g-K | N7: API | O7: Nm3/h(gas) | P7: MJ/kgmole | Q7: J/gmole-K | R7: J/gmole-K | S7: Nm3/m3* | T7: L/d | U7: lbf-s/ft2 | W7: kcal/m/°C/h*
B8: -- . -- . | C8: 8 | D8: msoLineLongDashDot | F8: Nm3/h* | I8: atm | J8: tonne/year | K8: kcal/kg | L8: J/kg-C | M8: J/kg-C | N8: SG_60/60api | O8: Nm3/d(gas) | P8: kcal/kgmole | Q8: J/kgmole-C | R8: J/kgmole-C | T8: L/min | U8: lbm/s-ft
F9: J/mol* | I9: at | J9: g/h | K9: cal/g | L9: J/kg-K | M9: J/kg-K | N9: SG_H2O60nbs | O9: gmole/h | P9: cal/gmole | Q9: J/kgmole-K | R9: J/kgmole-K | T9: L/s | U9: lbm/h-ft
F10: kJ/kgmole-C | I10: kg/cm2 | J10: g/min | K10: cal/kg | L10: kcal/g-C | M10: kcal/g-C | N10: SG_H2O4 | O10: gmole/min | P10: cal/kgmole | Q10: kcal/gmol-C | R10: kcal/gmol-C | T10: mL/h | U10: slug/h-ft
F11: kJ/kgmole-C | I11: psia | J11: g/s | K11: Btu/lb | L11: kcal/g-K | M11: kcal/g-K | O11: gmole/s | P11: Btu/lbmole | Q11: kcal/gmol-K | R11: kcal/gmol-K | T11: mL/min | U11: poundals/ft2
F12: kgmole/m3 | I12: lbf/ft2 | J12: lb/hr | L12: kcal/kg-C | M12: kcal/kg-C | O12: lbmole/hr | P12: kkcal/kgmole | Q12: kcal/kgmol-C | R12: kcal/kgmol-C | T12: mL/s
F13: m3/h | I13: torr | J13: Mlb/hr | L13: kcal/kg-K | M13: kcal/kg-K | O13: lbmole/h | P13: Btu/SCF | Q13: kcal/kgmol-K | R13: kcal/kgmol-K | T13: cm3/h
F14: Pa-s | I14: mmHg(0C) | J14: Mlb/day | L14: cal/g-C | M14: cal/g-C | O14: MMSCFH | P14: Btu/MSCF | Q14: cal/gmole-C | R14: cal/gmole-C | T14: cm3/min
F15: m²/s* | I15: inHg(32F) | J15: MMlb/day | L15: cal/g-K | M15: cal/g-K | O15: MMSCFD | P15: Btu/MMSCF | Q15: cal/gmole-K | R15: cal/gmole-K | T15: cm3/s
F16: W/m-K | I16: inHg(60F) | J16: lb/day | L16: cal/kg-C | M16: cal/kg-C | O16: kscfd | P16: kWh/Nm3* | Q16: cal/kgmole-C | R16: cal/kgmole-C | T16: barrel/day
I17: cmH2O(4C) | J17: klb/day | L17: cal/kg-K | M17: cal/kg-K | O17: MSCFD | P17: kcal/Nm3* | Q17: cal/kgmole-K | R17: cal/kgmole-K | T17: kbpd
I18: inH2O(60F) | J18: tn(short)/h | L18: Btu/lb-F | M18: Btu/lb-F | O18: MSCFH | P18: J/mol* | Q18: Btu/lbmole-F | R18: Btu/lbmole-F | T18: barrel/hr
I19: kPag | J19: tn(short)/d | L19: Btu/lb-F | M19: Btu/lb-F | O19: scfd | Q19: Btu/lbmole-F | R19: Btu/lbmole-F | T19: Mgal/day
I20: MPag | J20: tn(long)/h | L20: Btu/lb-R | M20: Btu/lb-R | O20: Nm3/h* | Q20: Btu/lbmole-R | R20: Btu/lbmole-R | T20: MMgal/day
I21: bar_g | J21: tn(long)/d | Q21: kcal/Nm3/°C* | R21: kcal/Nm3/°C* | T21: USGPM
I22: mbar_g | J22: kilo ton(short)/d | Q22: J/mol.K* | R22: J/mol.K* | T22: USGPH
I23: N/m2_g | J23: kilo ton(long)/d | T23: ft3/hr
I24: atm_g | T24: ft3/day
I25: ate | T25: ft3/d
I26: kg/cm2_g
I27: psig
I28: lbf/ft2_g
I29: torr_g
I30: mmHg(0C)_g
I31: inHg(32F)_g
I32: inHg(60F)_g
I33: cmH2O(4C)_g
I34: inH2O(60F)_g

Sheet DS-HX-01
E2: Job nbr : | F2: XXX | H2: Document number
E3: Name : | F3: ZZZZ
H4: XXX-DS-YYY
A5: PROCESS | H5: Reference
A6: DATA | C6: PLATE-FIN HEAT EXCHANGER | H6: HX-01
H7: Exch_Spec_HX-01.xls
B9: Type : | C9: Horizontal/Vertical Aluminum brazed PFHE
G11: Run : | H11: ST!SC_MML__HX-VLP
A12: OPERATING CONDITIONS
A13: Fluid | C13: Units | D13: 0HPa ~ 1HPa | E13: 1MPa ~ 0MPc | F13: 1LPa ~ 0LPa
A14: Nozzle name | B14: in
B15: out
A16: Fluid components | C16: molar %
B17: Helium | D17: 100 | E17: 100 | F17: 100
A21: Liquid | B21: inlet | C21: % | D21: 0 | E21: 0 | F21: 0
A22: fraction | B22: outlet | C22: % | D22: 0 | E22: 0 | F22: 0
A23: Flowrate | C23: g/s | D23: 783.9420391 | E23: 368.3525583 | F23: 401.1639165
A24: Maximum flowrate | C24: g/s
A25: Operating | B25: inlet | C25: bar abs | D25: 19.74 | E25: 5.12 | F25: 1.096541303
A26: pressure | B26: outlet | C26: bar abs | D26: 19.69 | E26: 5.07 | F26: 1.07
A27: Operating | B27: inlet | C27: K | D27: 300 | E27: 150.7073735 | F27: 150.7073901
A28: temperat. | B28: outlet | C28: K | D28: 156.4331631 | E28: 297.0167906 | F28: 297.016791
A29: Pressure | B29: expected | C29: mbar
A30: drop | B30: guaranteed | C30: mbar
A31: Duty | C31: W | D31: -584478.8855 | E31: 279848.2665 | F31: 304771.619
G32: Heat leak | H32: -139 | I32: W
A33: Design pressure | C33: bar g
A34: Design temperature | C34: °C
A36: CORES CHARACTERISTICS
A37: Exchange | B37: type
A38: fins | B38: ht x thick | C38: mm x mm
B39: density | C39: FPI
A40: Distribution | B40: type
A41: fins | B41: ht x thick | C41: mm x mm
B42: density | C42: FPI
A43: Distributors | B43: inlet | C43: mm
A44: length | B44: outlet | C44: mm
A45: Number of layers
A46: Effective width | C46: m
A47: Effective length | C47: m
A48: Headers | B48: inlet | C48: ND
A49: ND | B49: outlet | C49: ND
A50: Nozzles | B50: inlet | C50: ND
A51: ND | B51: outlet | C51: ND
A52: Manifolds | B52: inlet
A53: ND | B53: outlet
A54: Cores number | E54: Thickness | F54: Parting sheets : | I54: mm
A55: Cores dimensions | C55: Width | F55: Side sheets : | I55: mm
A56: m | C56: Length | E56: Stacking Arrangement :
C57: Height
A59: Notes :
A64: Revision | B64: DATE | C64: BY | E64: VISA | F64: CHECKED | H64: VISA | I64: Page

Sheet DS-HX-02
E2: Job nbr : | F2: XXX | H2: Document number
E3: Name : | F3: ZZZZ
H4: XXX-DS-YYY
A5: PROCESS | H5: Reference
A6: DATA | C6: PLATE-FIN HEAT EXCHANGER | H6: HX-02
H7: Exch_Spec_HX-01.xls
B9: Type : | C9: Horizontal/Vertical Aluminum brazed PFHE
G11: Run : | H11: ST!SC_MML__HX-VLP
A12: OPERATING CONDITIONS
A13: Fluid | C13: Units | D13: 1HPb ~ 2HPa | E13: 2MPa ~ 1MPa | F13: 2LPa ~ 1LPa
A14: Nozzle name | B14: in
B15: out
A16: Fluid components | C16: molar %
B17: Helium | D17: 100 | E17: 100 | F17: 100
A21: Liquid | B21: inlet | C21: % | D21: 0 | E21: 0 | F21: 0
A22: fraction | B22: outlet | C22: % | D22: 0 | E22: 0 | F22: 0
A23: Flowrate | C23: g/s | D23: 609.3079924 | E23: 368.3525583 | F23: 401.1639165
A24: Maximum flowrate | C24: g/s
A25: Operating | B25: inlet | C25: bar abs | D25: 19.69 | E25: 5.14 | F25: 1.100742085
A26: pressure | B26: outlet | C26: bar abs | D26: 19.67 | E26: 5.12 | F26: 1.096541303
A27: Operating | B27: inlet | C27: K | D27: 156.4331631 | E27: 133.8959707 | F27: 133.895983
A28: temperat. | B28: outlet | C28: K | D28: 135.2348406 | E28: 150.7073735 | F28: 150.7073901
A29: Pressure | B29: expected | C29: mbar
A30: drop | B30: guaranteed | C30: mbar
A31: Duty | C31: W | D31: -67164.99927 | E31: 32165.25626 | F31: 35021.74301
G32: Heat leak | H32: -22 | I32: W
A33: Design pressure | C33: bar g
A34: Design temperature | C34: °C
A36: CORES CHARACTERISTICS
A37: Exchange | B37: type
A38: fins | B38: ht x thick | C38: mm x mm
B39: density | C39: FPI
A40: Distribution | B40: type
A41: fins | B41: ht x thick | C41: mm x mm
B42: density | C42: FPI
A43: Distributors | B43: inlet | C43: mm
A44: length | B44: outlet | C44: mm
A45: Number of layers
A46: Effective width | C46: m
A47: Effective length | C47: m
A48: Headers | B48: inlet | C48: ND
A49: ND | B49: outlet | C49: ND
A50: Nozzles | B50: inlet | C50: ND
A51: ND | B51: outlet | C51: ND
A52: Manifolds | B52: inlet
A53: ND | B53: outlet
A54: Cores number | E54: Thickness | F54: Parting sheets : | I54: mm
A55: Cores dimensions | C55: Width | F55: Side sheets : | I55: mm
A56: m | C56: Length | E56: Stacking Arrangement :
C57: Height
A59: Notes :
A64: Revision | B64: DATE | C64: BY | E64: VISA | F64: CHECKED | H64: VISA | I64: Page

Sheet DS-HX-03
E2: Job nbr : | F2: XXX | H2: Document number
E3: Name : | F3: ZZZZ
H4: XXX-DS-YYY
A5: PROCESS | H5: Reference
A6: DATA | C6: PLATE-FIN HEAT EXCHANGER | H6: HX-03
H7: Exch_Spec_HX-01.xls
B9: Type : | C9: Horizontal/Vertical Aluminum brazed PFHE
G11: Run : | H11: ST!SC_MML__HX-VLP
A12: OPERATING CONDITIONS
A13: Fluid | C13: Units | D13: T1Lb ~ T2Ha | E13: 2HPa ~ 3HPa | F13: 3MPa ~ 2MPa | G13: 3LPa ~ 2LPa
A14: Nozzle name | B14: in
B15: out
A16: Fluid components | C16: molar %
B17: Helium | D17: 100 | E17: 100 | F17: 100 | G17: 100
A21: Liquid | B21: inlet | C21: % | D21: 0 | E21: 0 | F21: 0 | G21: 0
A22: fraction | B22: outlet | C22: % | D22: 0 | E22: 0 | F22: 0 | G22: 0
A23: Flowrate | C23: g/s | D23: 174.3340467 | E23: 609.3079924 | F23: 368.3525583 | G23: 401.1639165
A24: Maximum flowrate | C24: g/s
A25: Operating | B25: inlet | C25: bar abs | D25: 12 | E25: 19.67 | F25: 5.16 | G25: 1.128429056
A26: pressure | B26: outlet | C26: bar abs | D26: 11.98 | E26: 19.65 | F26: 5.14 | G26: 1.100742085
A27: Operating | B27: inlet | C27: K | D27: 135.2348406 | E27: 135.2348406 | F27: 60.54497285 | G27: 60.54498186
A28: temperat. | B28: outlet | C28: K | D28: 63.564069 | E28: 63.564069 | F28: 133.8959707 | G28: 133.895983
A29: Pressure | B29: expected | C29: mbar
A30: drop | B30: guaranteed | C30: mbar
A31: Duty | C31: W | D31: -65121.73125 | E31: -228126.0872 | F31: 140542.7167 | G31: 152851.1269
G32: Heat leak | H32: -145 | I32: W
A33: Design pressure | C33: bar g
A34: Design temperature | C34: °C
A36: CORES CHARACTERISTICS
A37: Exchange | B37: type
A38: fins | B38: ht x thick | C38: mm x mm
B39: density | C39: FPI
A40: Distribution | B40: type
A41: fins | B41: ht x thick | C41: mm x mm
B42: density | C42: FPI
A43: Distributors | B43: inlet | C43: mm
A44: length | B44: outlet | C44: mm
A45: Number of layers
A46: Effective width | C46: m
A47: Effective length | C47: m
A48: Headers | B48: inlet | C48: ND
A49: ND | B49: outlet | C49: ND
A50: Nozzles | B50: inlet | C50: ND
A51: ND | B51: outlet | C51: ND
A52: Manifolds | B52: inlet
A53: ND | B53: outlet
A54: Cores number | E54: Thickness | F54: Parting sheets : | I54: mm
A55: Cores dimensions | C55: Width | F55: Side sheets : | I55: mm
A56: m | C56: Length | E56: Stacking Arrangement :
C57: Height
A59: Notes :
A64: Revision | B64: DATE | C64: BY | E64: VISA | F64: CHECKED | H64: VISA | I64: Page

Sheet DS-HX-04
E2: Job nbr : | F2: XXX | H2: Document number
E3: Name : | F3: ZZZZ
H4: XXX-DS-YYY
A5: PROCESS | H5: Reference
A6: DATA | C6: PLATE-FIN HEAT EXCHANGER | H6: HX-04
H7: Exch_Spec_HX-01.xls
B9: Type : | C9: Horizontal/Vertical Aluminum brazed PFHE
G11: Run : | H11: ST!SC_MML__HX-VLP
A12: OPERATING CONDITIONS
A13: Fluid | C13: Units | D13: 3HPa ~ 4HPa | E13: 4MPb ~ 3MPa | F13: 4LPb ~ 3LPa
A14: Nozzle name | B14: in
B15: out
A16: Fluid components | C16: molar %
B17: Helium | D17: 100 | E17: 100 | F17: 100
A21: Liquid | B21: inlet | C21: % | D21: 0 | E21: 0 | F21: 0
A22: fraction | B22: outlet | C22: % | D22: 0 | E22: 0 | F22: 0
A23: Flowrate | C23: g/s | D23: 609.3079924 | E23: 368.3525583 | F23: 401.1639165
A24: Maximum flowrate | C24: g/s
A25: Operating | B25: inlet | C25: bar abs | D25: 19.65 | E25: 5.18 | F25: 1.134348339
A26: pressure | B26: outlet | C26: bar abs | D26: 19.63 | E26: 5.16 | F26: 1.128429056
A27: Operating | B27: inlet | C27: K | D27: 63.564069 | E27: 50.04649523 | F27: 50.04642342
A28: temperat. | B28: outlet | C28: K | D28: 50.53297062 | E28: 60.54497285 | F28: 60.54498186
A29: Pressure | B29: expected | C29: mbar
A30: drop | B30: guaranteed | C30: mbar
A31: Duty | C31: W | D31: -42068.75809 | E31: 20201.3128 | F31: 21898.42138
G32: Heat leak | H32: -31 | I32: W
A33: Design pressure | C33: bar g
A34: Design temperature | C34: °C
A36: CORES CHARACTERISTICS
A37: Exchange | B37: type
A38: fins | B38: ht x thick | C38: mm x mm
B39: density | C39: FPI
A40: Distribution | B40: type
A41: fins | B41: ht x thick | C41: mm x mm
B42: density | C42: FPI
A43: Distributors | B43: inlet | C43: mm
A44: length | B44: outlet | C44: mm
A45: Number of layers
A46: Effective width | C46: m
A47: Effective length | C47: m
A48: Headers | B48: inlet | C48: ND
A49: ND | B49: outlet | C49: ND
A50: Nozzles | B50: inlet | C50: ND
A51: ND | B51: outlet | C51: ND
A52: Manifolds | B52: inlet
A53: ND | B53: outlet
A54: Cores number | E54: Thickness | F54: Parting sheets : | I54: mm
A55: Cores dimensions | C55: Width | F55: Side sheets : | I55: mm
A56: m | C56: Length | E56: Stacking Arrangement :
C57: Height
A59: Notes :
A64: Revision | B64: DATE | C64: BY | E64: VISA | F64: CHECKED | H64: VISA | I64: Page

Sheet DS-HX-05
E2: Job nbr : | F2: XXX | H2: Document number
E3: Name : | F3: ZZZZ
H4: XXX-DS-YYY
A5: PROCESS | H5: Reference
A6: DATA | C6: PLATE-FIN HEAT EXCHANGER | H6: HX-05
H7: Exch_Spec_HX-01.xls
B9: Type : | C9: Horizontal/Vertical Aluminum brazed PFHE
G11: Run : | H11: ST!SC_MML__HX-VLP
A12: OPERATING CONDITIONS
A13: Fluid | C13: Units | D13: 4HPb ~ 5HPa | E13: 5MPa ~ 4MPa | F13: 5LPa ~ 4LPa
A14: Nozzle name | B14: in
B15: out
A16: Fluid components | C16: molar %
B17: Helium | D17: 100 | E17: 100 | F17: 100
A21: Liquid | B21: inlet | C21: % | D21: 0 | E21: 0 | F21: 0
A22: fraction | B22: outlet | C22: % | D22: 0 | E22: 0 | F22: 0
A23: Flowrate | C23: g/s | D23: 609.3079924 | E23: 194.3185116 | F23: 401.1639165
A24: Maximum flowrate | C24: g/s
A25: Operating | B25: inlet | C25: bar abs | D25: 19.54 | E25: 5.2 | F25: 1.134348339
A26: pressure | B26: outlet | C26: bar abs | D26: 19.52 | E26: 5.18 | F26: 1.134348339
A27: Operating | B27: inlet | C27: K | D27: 50.53836411 | E27: 50.04599191 | F27: 50.04599682
A28: temperat. | B28: outlet | C28: K | D28: 50.53857018 | E28: 50.04655954 | F28: 50.04642342
A29: Pressure | B29: expected | C29: mbar
A30: drop | B30: guaranteed | C30: mbar
A31: Duty | C31: W | D31: -1 | E31: 0.1098540984 | F31: 0.8901459016
G32: Heat leak | H32: 0 | I32: W
A33: Design pressure | C33: bar g
A34: Design temperature | C34: °C
A36: CORES CHARACTERISTICS
A37: Exchange | B37: type
A38: fins | B38: ht x thick | C38: mm x mm
B39: density | C39: FPI
A40: Distribution | B40: type
A41: fins | B41: ht x thick | C41: mm x mm
B42: density | C42: FPI
A43: Distributors | B43: inlet | C43: mm
A44: length | B44: outlet | C44: mm
A45: Number of layers
A46: Effective width | C46: m
A47: Effective length | C47: m
A48: Headers | B48: inlet | C48: ND
A49: ND | B49: outlet | C49: ND
A50: Nozzles | B50: inlet | C50: ND
A51: ND | B51: outlet | C51: ND
A52: Manifolds | B52: inlet
A53: ND | B53: outlet
A54: Cores number | E54: Thickness | F54: Parting sheets : | I54: mm
A55: Cores dimensions | C55: Width | F55: Side sheets : | I55: mm
A56: m | C56: Length | E56: Stacking Arrangement :
C57: Height
A59: Notes :
A64: Revision | B64: DATE | C64: BY | E64: VISA | F64: CHECKED | H64: VISA | I64: Page

Sheet DS-HX-06
E2: Job nbr : | F2: XXX | H2: Document number
E3: Name : | F3: ZZZZ
H4: XXX-DS-YYY
A5: PROCESS | H5: Reference
A6: DATA | C6: PLATE-FIN HEAT EXCHANGER | H6: HX-06
H7: Exch_Spec_HX-01.xls
B9: Type : | C9: Horizontal/Vertical Aluminum brazed PFHE
G11: Run : | H11: ST!SC_MML__HX-VLP
A12: OPERATING CONDITIONS
A13: Fluid | C13: Units | D13: 5HPb ~ 6HPa | E13: 6MPa ~ 5MPa | F13: 6LPa ~ 5LPa
A14: Nozzle name | B14: in
B15: out
A16: Fluid components | C16: molar %
B17: Helium | D17: 100 | E17: 100 | F17: 100
A21: Liquid | B21: inlet | C21: % | D21: 0 | E21: 0 | F21: 0
A22: fraction | B22: outlet | C22: % | D22: 0 | E22: 0 | F22: 0
A23: Flowrate | C23: g/s | D23: 571.4532265 | E23: 194.3185116 | F23: 401.1639165
A24: Maximum flowrate | C24: g/s
A25: Operating | B25: inlet | C25: bar abs | D25: 19.52 | E25: 5.22 | F25: 1.155925082
A26: pressure | B26: outlet | C26: bar abs | D26: 19.5 | E26: 5.2 | F26: 1.134348339
A27: Operating | B27: inlet | C27: K | D27: 50.53857018 | E27: 35.05168687 | F27: 35.05168599
A28: temperat. | B28: outlet | C28: K | D28: 35.44808292 | E28: 50.04599191 | F28: 50.04599682
A29: Pressure | B29: expected | C29: mbar
A30: drop | B30: guaranteed | C30: mbar
A31: Duty | C31: W | D31: -46505.10552 | E31: 15303.39458 | F31: 31314.71094
G32: Heat leak | H32: -113 | I32: W
A33: Design pressure | C33: bar g
A34: Design temperature | C34: °C
A36: CORES CHARACTERISTICS
A37: Exchange | B37: type
A38: fins | B38: ht x thick | C38: mm x mm
B39: density | C39: FPI
A40: Distribution | B40: type
A41: fins | B41: ht x thick | C41: mm x mm
B42: density | C42: FPI
A43: Distributors | B43: inlet | C43: mm
A44: length | B44: outlet | C44: mm
A45: Number of layers
A46: Effective width | C46: m
A47: Effective length | C47: m
A48: Headers | B48: inlet | C48: ND
A49: ND | B49: outlet | C49: ND
A50: Nozzles | B50: inlet | C50: ND
A51: ND | B51: outlet | C51: ND
A52: Manifolds | B52: inlet
A53: ND | B53: outlet
A54: Cores number | E54: Thickness | F54: Parting sheets : | I54: mm
A55: Cores dimensions | C55: Width | F55: Side sheets : | I55: mm
A56: m | C56: Length | E56: Stacking Arrangement :
C57: Height
A59: Notes :
A64: Revision | B64: DATE | C64: BY | E64: VISA | F64: CHECKED | H64: VISA | I64: Page

Sheet DS-HX-07
E2: Job nbr : | F2: XXX | H2: Document number
E3: Name : | F3: ZZZZ
H4: XXX-DS-YYY
A5: PROCESS | H5: Reference
A6: DATA | C6: PLATE-FIN HEAT EXCHANGER | H6: HX-07
H7: Exch_Spec_HX-01.xls
B9: Type : | C9: Horizontal/Vertical Aluminum brazed PFHE
G11: Run : | H11: ST!SC_MML__HX-VLP
A12: OPERATING CONDITIONS
A13: Fluid | C13: Units | D13: 6HPb ~ 7HPa | E13: T3Lb ~ 6MPa | F13: 7LPa ~ 6LPa
A14: Nozzle name | B14: in
B15: out
A16: Fluid components | C16: molar %
B17: Helium | D17: 100 | E17: 100 | F17: 100
A21: Liquid | B21: inlet | C21: % | D21: 0 | E21: 0 | F21: 0
A22: fraction | B22: outlet | C22: % | D22: 0 | E22: 0 | F22: 0
A23: Flowrate | C23: g/s | D23: 414.6894808 | E23: 194.3185116 | F23: 401.1639165
A24: Maximum flowrate | C24: g/s
A25: Operating | B25: inlet | C25: bar abs | D25: 19.5 | E25: 5.24 | F25: 1.156879805
A26: pressure | B26: outlet | C26: bar abs | D26: 19.48 | E26: 5.22 | F26: 1.155925082
A27: Operating | B27: inlet | C27: K | D27: 35.44808292 | E27: 34.93937886 | F27: 34.93937886
A28: temperat. | B28: outlet | C28: K | D28: 35.29625049 | E28: 35.05168687 | F28: 35.05168599
A29: Pressure | B29: expected | C29: mbar
A30: drop | B30: guaranteed | C30: mbar
A31: Duty | C31: W | D31: -345.3295597 | E31: 115.4503976 | F31: 234.8770667
G32: Heat leak | H32: -5 | I32: W
A33: Design pressure | C33: bar g
A34: Design temperature | C34: °C
A36: CORES CHARACTERISTICS
A37: Exchange | B37: type
A38: fins | B38: ht x thick | C38: mm x mm
B39: density | C39: FPI
A40: Distribution | B40: type
A41: fins | B41: ht x thick | C41: mm x mm
B42: density | C42: FPI
A43: Distributors | B43: inlet | C43: mm
A44: length | B44: outlet | C44: mm
A45: Number of layers
A46: Effective width | C46: m
A47: Effective length | C47: m
A48: Headers | B48: inlet | C48: ND
A49: ND | B49: outlet | C49: ND
A50: Nozzles | B50: inlet | C50: ND
A51: ND | B51: outlet | C51: ND
A52: Manifolds | B52: inlet
A53: ND | B53: outlet
A54: Cores number | E54: Thickness | F54: Parting sheets : | I54: mm
A55: Cores dimensions | C55: Width | F55: Side sheets : | I55: mm
A56: m | C56: Length | E56: Stacking Arrangement :
C57: Height
A59: Notes :
A64: Revision | B64: DATE | C64: BY | E64: VISA | F64: CHECKED | H64: VISA | I64: Page

Sheet DS-HX-08
E2: Job nbr : | F2: XXX | H2: Document number
E3: Name : | F3: ZZZZ
H4: XXX-DS-YYY
A5: PROCESS | H5: Reference
A6: DATA | C6: PLATE-FIN HEAT EXCHANGER | H6: HX-08
H7: Exch_Spec_HX-01.xls
B9: Type : | C9: Horizontal/Vertical Aluminum brazed PFHE
G11: Run : | H11: ST!SC_MML__HX-VLP
A12: OPERATING CONDITIONS
A13: Fluid | C13: Units | D13: 7HPa ~ 8HPa | E13: 8LPa ~ 7LPa
A14: Nozzle name | B14: in
B15: out
A16: Fluid components | C16: molar %
B17: Helium | D17: 100 | E17: 100
A21: Liquid | B21: inlet | C21: % | D21: 0 | E21: 0
A22: fraction | B22: outlet | C22: % | D22: 0 | E22: 0
A23: Flowrate | C23: g/s | D23: 414.6894808 | E23: 401.1639165
A24: Maximum flowrate | C24: g/s
A25: Operating | B25: inlet | C25: bar abs | D25: 19.48 | E25: 1.163753811
A26: pressure | B26: outlet | C26: bar abs | D26: 19.46 | E26: 1.156879805
A27: Operating | B27: inlet | C27: K | D27: 35.29625049 | E27: 19.41327205
A28: temperat. | B28: outlet | C28: K | D28: 21.46621544 | E28: 34.93937886
A29: Pressure | B29: expected | C29: mbar
A30: drop | B30: guaranteed | C30: mbar
A31: Duty | C31: W | D31: -32543.8189 | E31: 32580.821
G32: Heat leak | H32: -36 | I32: W
A33: Design pressure | C33: bar g
A34: Design temperature | C34: °C
A36: CORES CHARACTERISTICS
A37: Exchange | B37: type
A38: fins | B38: ht x thick | C38: mm x mm
B39: density | C39: FPI
A40: Distribution | B40: type
A41: fins | B41: ht x thick | C41: mm x mm
B42: density | C42: FPI
A43: Distributors | B43: inlet | C43: mm
A44: length | B44: outlet | C44: mm
A45: Number of layers
A46: Effective width | C46: m
A47: Effective length | C47: m
A48: Headers | B48: inlet | C48: ND
A49: ND | B49: outlet | C49: ND
A50: Nozzles | B50: inlet | C50: ND
A51: ND | B51: outlet | C51: ND
A52: Manifolds | B52: inlet
A53: ND | B53: outlet
A54: Cores number | E54: Thickness | F54: Parting sheets : | I54: mm
A55: Cores dimensions | C55: Width | F55: Side sheets : | I55: mm
A56: m | C56: Length | E56: Stacking Arrangement :
C57: Height
A59: Notes :
A64: Revision | B64: DATE | C64: BY | E64: VISA | F64: CHECKED | H64: VISA | I64: Page

Sheet DS-HX-09
E2: Job nbr : | F2: XXX | H2: Document number
E3: Name : | F3: ZZZZ
H4: XXX-DS-YYY
A5: PROCESS | H5: Reference
A6: DATA | C6: PLATE-FIN HEAT EXCHANGER | H6: HX-09
H7: Exch_Spec_HX-01.xls
B9: Type : | C9: Horizontal/Vertical Aluminum brazed PFHE
G11: Run : | H11: ST!SC_MML__HX-VLP
A12: OPERATING CONDITIONS
A13: Fluid | C13: Units | D13: 8HPd ~ 9HPa | E13: 9LPa ~ 8LPa
A14: Nozzle name | B14: in
B15: out
A16: Fluid components | C16: molar %
B17: Helium | D17: 100 | E17: 100
A21: Liquid | B21: inlet | C21: % | D21: 0 | E21: 0
A22: fraction | B22: outlet | C22: % | D22: 0 | E22: 0
A23: Flowrate | C23: g/s | D23: 225.0639165 | E23: 401.1639165
A24: Maximum flowrate | C24: g/s
A25: Operating | B25: inlet | C25: bar abs | D25: 19.415 | E25: 1.166427036
A26: pressure | B26: outlet | C26: bar abs | D26: 19.395 | E26: 1.163753811
A27: Operating | B27: inlet | C27: K | D27: 22.10094451 | E27: 14.33569713
A28: temperat. | B28: outlet | C28: K | D28: 14.47509801 | E28: 19.41327205
A29: Pressure | B29: expected | C29: mbar
A30: drop | B30: guaranteed | C30: mbar
A31: Duty | C31: W | D31: -10759.8034 | E31: 10772.8034
G32: Heat leak | H32: -14 | I32: W
A33: Design pressure | C33: bar g
A34: Design temperature | C34: °C
A36: CORES CHARACTERISTICS
A37: Exchange | B37: type
A38: fins | B38: ht x thick | C38: mm x mm
B39: density | C39: FPI
A40: Distribution | B40: type
A41: fins | B41: ht x thick | C41: mm x mm
B42: density | C42: FPI
A43: Distributors | B43: inlet | C43: mm
A44: length | B44: outlet | C44: mm
A45: Number of layers
A46: Effective width | C46: m
A47: Effective length | C47: m
A48: Headers | B48: inlet | C48: ND
A49: ND | B49: outlet | C49: ND
A50: Nozzles | B50: inlet | C50: ND
A51: ND | B51: outlet | C51: ND
A52: Manifolds | B52: inlet
A53: ND | B53: outlet
A54: Cores number | E54: Thickness | F54: Parting sheets : | I54: mm
A55: Cores dimensions | C55: Width | F55: Side sheets : | I55: mm
A56: m | C56: Length | E56: Stacking Arrangement :
C57: Height
A59: Notes :
A64: Revision | B64: DATE | C64: BY | E64: VISA | F64: CHECKED | H64: VISA | I64: Page

Sheet DS-HX-10
E2: Job nbr : | F2: XXX | H2: Document number
E3: Name : | F3: ZZZZ
H4: XXX-DS-YYY
A5: PROCESS | H5: Reference
A6: DATA | C6: PLATE-FIN HEAT EXCHANGER | H6: HX-10
H7: Exch_Spec_HX-01.xls
B9: Type : | C9: Horizontal/Vertical Aluminum brazed PFHE
G11: Run : | H11: ST!SC_MML__HX-VLP
A12: OPERATING CONDITIONS
A13: Fluid | C13: Units | D13: T4Lb ~ T5Ha | E13: 9HPa ~ 10HPa | F13: 10LPa ~ 9LPa
A14: Nozzle name | B14: in
B15: out
A16: Fluid components | C16: molar %
B17: Helium | D17: 100 | E17: 100 | F17: 100
A21: Liquid | B21: inlet | C21: % | D21: 0 | E21: 0 | F21: 0
A22: fraction | B22: outlet | C22: % | D22: 0 | E22: 0 | F22: 0
A23: Flowrate | C23: g/s | D23: 335 | E23: 225.0639165 | F23: 401.1639165
A24: Maximum flowrate | C24: g/s
A25: Operating | B25: inlet | C25: bar abs | D25: 4.824 | E25: 19.395 | F25: 1.169100261
A26: pressure | B26: outlet | C26: bar abs | D26: 4.804 | E26: 19.375 | F26: 1.166427036
A27: Operating | B27: inlet | C27: K | D27: 14.47509801 | E27: 14.47509801 | F27: 10.55648741
A28: temperat. | B28: outlet | C28: K | D28: 12.15013411 | E28: 12.15013411 | F28: 14.33569713
A29: Pressure | B29: expected | C29: mbar
A30: drop | B30: guaranteed | C30: mbar
A31: Duty | C31: W | D31: -4550.275833 | E31: -3579.146322 | F31: 8143.528137
G32: Heat leak | H32: -14 | I32: W
A33: Design pressure | C33: bar g
A34: Design temperature | C34: °C
A36: CORES CHARACTERISTICS
A37: Exchange | B37: type
A38: fins | B38: ht x thick | C38: mm x mm
B39: density | C39: FPI
A40: Distribution | B40: type
A41: fins | B41: ht x thick | C41: mm x mm
B42: density | C42: FPI
A43: Distributors | B43: inlet | C43: mm
A44: length | B44: outlet | C44: mm
A45: Number of layers
A46: Effective width | C46: m
A47: Effective length | C47: m
A48: Headers | B48: inlet | C48: ND
A49: ND | B49: outlet | C49: ND
A50: Nozzles | B50: inlet | C50: ND
A51: ND | B51: outlet | C51: ND
A52: Manifolds | B52: inlet
A53: ND | B53: outlet
A54: Cores number | E54: Thickness | F54: Parting sheets : | I54: mm
A55: Cores dimensions | C55: Width | F55: Side sheets : | I55: mm
A56: m | C56: Length | E56: Stacking Arrangement :
C57: Height
A59: Notes :
A64: Revision | B64: DATE | C64: BY | E64: VISA | F64: CHECKED | H64: VISA | I64: Page

Sheet DS-HX-11
E2: Job nbr : | F2: XXX | H2: Document number
E3: Name : | F3: ZZZZ
H4: XXX-DS-YYY
A5: PROCESS | H5: Reference
A6: DATA | C6: PLATE-FIN HEAT EXCHANGER | H6: HX-11
H7: Exch_Spec_HX-01.xls
B9: Type : | C9: Horizontal/Vertical Aluminum brazed PFHE
G11: Run : | H11: ST!SC_MML__HX-VLP
A12: OPERATING CONDITIONS
A13: Fluid | C13: Units | D13: 10HPa ~ 11HPa | E13: 11LPb ~ 10LPa
A14: Nozzle name | B14: in
B15: out
A16: Fluid components | C16: molar %
B17: Helium | D17: 100 | E17: 100
A21: Liquid | B21: inlet | C21: % | D21: 0 | E21: 0
A22: fraction | B22: outlet | C22: % | D22: 0 | E22: 0
A23: Flowrate | C23: g/s | D23: 225.0639165 | E23: 401.1639165
A24: Maximum flowrate | C24: g/s
A25: Operating | B25: inlet | C25: bar abs | D25: 19.375 | E25: 1.170818763
A26: pressure | B26: outlet | C26: bar abs | D26: 19.355 | E26: 1.169100261
A27: Operating | B27: inlet | C27: K | D27: 12.15013411 | E27: 7.831011114
A28: temperat. | B28: outlet | C28: K | D28: 7.923794414 | E28: 10.55648741
A29: Pressure | B29: expected | C29: mbar
A30: drop | B30: guaranteed | C30: mbar
A31: Duty | C31: W | D31: -6042.326352 | E31: 6051.269625
G32: Heat leak | H32: -9 | I32: W
A33: Design pressure | C33: bar g
A34: Design temperature | C34: °C
A36: CORES CHARACTERISTICS
A37: Exchange | B37: type
A38: fins | B38: ht x thick | C38: mm x mm
B39: density | C39: FPI
A40: Distribution | B40: type
A41: fins | B41: ht x thick | C41: mm x mm
B42: density | C42: FPI
A43: Distributors | B43: inlet | C43: mm
A44: length | B44: outlet | C44: mm
A45: Number of layers
A46: Effective width | C46: m
A47: Effective length | C47: m
A48: Headers | B48: inlet | C48: ND
A49: ND | B49: outlet | C49: ND
A50: Nozzles | B50: inlet | C50: ND
A51: ND | B51: outlet | C51: ND
A52: Manifolds | B52: inlet
A53: ND | B53: outlet
A54: Cores number | E54: Thickness | F54: Parting sheets : | I54: mm
A55: Cores dimensions | C55: Width | F55: Side sheets : | I55: mm
A56: m | C56: Length | E56: Stacking Arrangement :
C57: Height
A59: Notes :
A64: Revision | B64: DATE | C64: BY | E64: VISA | F64: CHECKED | H64: VISA | I64: Page

Sheet DS-HX-12
E2: Job nbr : | F2: XXX | H2: Document number
E3: Name : | F3: ZZZZ
H4: XXX-DS-YYY
A5: PROCESS | H5: Reference
A6: DATA | C6: PLATE-FIN HEAT EXCHANGER | H6: HX-12
H7: Exch_Spec_HX-01.xls
B9: Type : | C9: Horizontal/Vertical Aluminum brazed PFHE
G11: Run : | H11: ST!SC_MML__HX-VLP
A12: OPERATING CONDITIONS
A13: Fluid | C13: Units | D13: 11HPa ~ 12HPa | E13: 12LPa ~ 11LPa
A14: Nozzle name | B14: in
B15: out
A16: Fluid components | C16: molar %
B17: Helium | D17: 100 | E17: 100
A21: Liquid | B21: inlet | C21: % | D21: 0 | E21: 0
A22: fraction | B22: outlet | C22: % | D22: 0 | E22: 0
A23: Flowrate | C23: g/s | D23: 225.0639165 | E23: 66.56391648
A24: Maximum flowrate | C24: g/s
A25: Operating | B25: inlet | C25: bar abs | D25: 19.355 | E25: 1.171773486
A26: pressure | B26: outlet | C26: bar abs | D26: 19.345 | E26: 1.170818763
A27: Operating | B27: inlet | C27: K | D27: 7.923794414 | E27: 5.334896731
A28: temperat. | B28: outlet | C28: K | D28: 6.98888493 | E28: 7.831011114
A29: Pressure | B29: expected | C29: mbar
A30: drop | B30: guaranteed | C30: mbar
A31: Duty | C31: W | D31: -997.681798 | E31: 1002.699787
G32: Heat leak | H32: -5 | I32: W
A33: Design pressure | C33: bar g
A34: Design temperature | C34: °C
A36: CORES CHARACTERISTICS
A37: Exchange | B37: type
A38: fins | B38: ht x thick | C38: mm x mm
B39: density | C39: FPI
A40: Distribution | B40: type
A41: fins | B41: ht x thick | C41: mm x mm
B42: density | C42: FPI
A43: Distributors | B43: inlet | C43: mm
A44: length | B44: outlet | C44: mm
A45: Number of layers
A46: Effective width | C46: m
A47: Effective length | C47: m
A48: Headers | B48: inlet | C48: ND
A49: ND | B49: outlet | C49: ND
A50: Nozzles | B50: inlet | C50: ND
A51: ND | B51: outlet | C51: ND
A52: Manifolds | B52: inlet
A53: ND | B53: outlet
A54: Cores number | E54: Thickness | F54: Parting sheets : | I54: mm
A55: Cores dimensions | C55: Width | F55: Side sheets : | I55: mm
A56: m | C56: Length | E56: Stacking Arrangement :
C57: Height
A59: Notes :
A64: Revision | B64: DATE | C64: BY | E64: VISA | F64: CHECKED | H64: VISA | I64: Page

Sheet DS-HX-13
E2: Job nbr : | F2: XXX | H2: Document number
E3: Name : | F3: ZZZZ
H4: XXX-DS-YYY
A5: PROCESS | H5: Reference
A6: DATA | C6: PLATE-FIN HEAT EXCHANGER | H6: HX-13
H7: Exch_Spec_HX-01.xls
B9: Type : | C9: Horizontal/Vertical Aluminum brazed PFHE
G11: Run : | H11: ST!SC_MML__HX-VLP
A12: OPERATING CONDITIONS
A13: Fluid | C13: Units | D13: 12MPb ~ 13MPa | E13: 13LPd ~ 12LPa
A14: Nozzle name | B14: in
B15: out
A16: Fluid components | C16: molar %
B17: Helium | D17: 100 | E17: 100
A21: Liquid | B21: inlet | C21: % | D21: 0 | E21: 0.193304412
A22: fraction | B22: outlet | C22: % | D22: 100 | E22: 0
A23: Flowrate | C23: g/s | D23: 66.56391648 | E23: 66.56391648
A24: Maximum flowrate | C24: g/s
A25: Operating | B25: inlet | C25: bar abs | D25: 3.01 | E25: 1.172728209
A26: pressure | B26: outlet | C26: bar abs | D26: 3 | E26: 1.171773486
A27: Operating | B27: inlet | C27: K | D27: 5.434873495 | E27: 4.383104362
A28: temperat. | B28: outlet | C28: K | D28: 4.485 | E28: 5.334896731
A29: Pressure | B29: expected | C29: mbar
A30: drop | B30: guaranteed | C30: mbar
A31: Duty | C31: W | D31: -493.641488 | E31: 498.641488
G32: Heat leak | H32: -5 | I32: W
A33: Design pressure | C33: bar g
A34: Design temperature | C34: °C
A36: CORES CHARACTERISTICS
A37: Exchange | B37: type
A38: fins | B38: ht x thick | C38: mm x mm
B39: density | C39: FPI
A40: Distribution | B40: type
A41: fins | B41: ht x thick | C41: mm x mm
B42: density | C42: FPI
A43: Distributors | B43: inlet | C43: mm
A44: length | B44: outlet | C44: mm
A45: Number of layers
A46: Effective width | C46: m
A47: Effective length | C47: m
A48: Headers | B48: inlet | C48: ND
A49: ND | B49: outlet | C49: ND
A50: Nozzles | B50: inlet | C50: ND
A51: ND | B51: outlet | C51: ND
A52: Manifolds | B52: inlet
A53: ND | B53: outlet
A54: Cores number | E54: Thickness | F54: Parting sheets : | I54: mm
A55: Cores dimensions | C55: Width | F55: Side sheets : | I55: mm
A56: m | C56: Length | E56: Stacking Arrangement :
C57: Height
A59: Notes :
A64: Revision | B64: DATE | C64: BY | E64: VISA | F64: CHECKED | H64: VISA | I64: Page

Sheet DS-HX-VLP
E2: Job nbr : | F2: XXX | H2: Document number
E3: Name : | F3: ZZZZ
H4: XXX-DS-YYY
A5: PROCESS | H5: Reference
A6: DATA | C6: PLATE-FIN HEAT EXCHANGER | H6: HX-VLP
H7: Exch_Spec_HX-01.xls
B9: Type : | C9: Horizontal/Vertical Aluminum brazed PFHE
G11: Run : | H11: ST!SC_MML__HX-VLP
A12: OPERATING CONDITIONS
A13: Fluid | C13: Units | D13: HPa ~ HPb | E13: VLPa ~ 0VLPa
A14: Nozzle name | B14: in
B15: out
A16: Fluid components | C16: molar %
B17: Helium | D17: 100 | E17: 100
A21: Liquid | B21: inlet | C21: % | D21: 0 | E21: 0
A22: fraction | B22: outlet | C22: % | D22: 0 | E22: 0
A23: Flowrate | C23: g/s | D23: 145.6744357 | E23: 149.1
A24: Maximum flowrate | C24: g/s
A25: Operating | B25: inlet | C25: bar abs | D25: 19.74 | E25: 0.486
A26: pressure | B26: outlet | C26: bar abs | D26: 19.64 | E26: 0.436
A27: Operating | B27: inlet | C27: K | D27: 300 | E27: 18.10338179
A28: temperat. | B28: outlet | C28: K | D28: 23.93815845 | E28: 290
A29: Pressure | B29: expected | C29: mbar
A30: drop | B30: guaranteed | C30: mbar
A31: Duty | C31: W | D31: -210553.6785 | E31: 210574.6799
G32: Heat leak | H32: -21 | I32: W
A33: Design pressure | C33: bar g
A34: Design temperature | C34: °C
A36: CORES CHARACTERISTICS
A37: Exchange | B37: type
A38: fins | B38: ht x thick | C38: mm x mm
B39: density | C39: FPI
A40: Distribution | B40: type
A41: fins | B41: ht x thick | C41: mm x mm
B42: density | C42: FPI
A43: Distributors | B43: inlet | C43: mm
A44: length | B44: outlet | C44: mm
A45: Number of layers
A46: Effective width | C46: m
A47: Effective length | C47: m
A48: Headers | B48: inlet | C48: ND
A49: ND | B49: outlet | C49: ND
A50: Nozzles | B50: inlet | C50: ND
A51: ND | B51: outlet | C51: ND
A52: Manifolds | B52: inlet
A53: ND | B53: outlet
A54: Cores number | E54: Thickness | F54: Parting sheets : | I54: mm
A55: Cores dimensions | C55: Width | F55: Side sheets : | I55: mm
A56: m | C56: Length | E56: Stacking Arrangement :
C57: Height
A59: Notes :
A64: Revision | B64: DATE | C64: BY | E64: VISA | F64: CHECKED | H64: VISA | I64: Page
